Workbook

Sheet Design
B1: STH Version | C1: = | D1: 8.1
B3: Driver Dimensions
B4: Frame Width | C4: = | D4: 38 | E4: cm | F4: =D4/2.54 -> 14.96062992 | G4: in | I4: Plot
B5: Mounting Width | C5: = | D5: 35.8 | E5: cm | F5: =D5/2.54 -> 14.09448819 | G5: in | H5: x | I5: Panel A, top & bottom
B6: Mounting Depth | C6: = | D6: 16.2 | E6: cm | F6: =D6/2.54 -> 6.377952756 | G6: in | H6: x | I6: Panel B, driver baffle
B7: Magnet Width | C7: = | D7: 17 | E7: cm | F7: =D7/2.54 -> 6.692913386 | G7: in | H7: x | I7: Panel C, sides
B8: Magnet Height | C8: = | D8: 6 | E8: cm | F8: =D8/2.54 -> 2.362204724 | G8: in | H8: x | I8: Panel D, back
H9: x | I9: Panel E, front
B10: Box Dimensions | H10: x | I10: Panel F, 1st inside
B11: d (external) | C11: = | D11: =24*2.54 -> 60.96 | E11: cm | F11: =D11/2.54 -> 24 | G11: in | H11: x | I11: Panel G, 2nd inside
B12: w (external) | C12: = | D12: =18*2.54 -> 45.72 | E12: cm | F12: =D12/2.54 -> 18 | G12: in | H12: x | I12: Panel H, 4th inside
B13: h (external) | C13: = | D13: =34*2.54 -> 86.36 | E13: cm | F13: =D13/2.54 -> 34 | G13: in | H13: x | I13: Panel I, 5th inside
B15: driver offset (y) | C15: = | D15: 0 | E15: cm | F15: =D15/2.54 -> 0 | G15: in | I15: Plot
B16: driver offset (x) | C16: = | D16: 20 | E16: cm | F16: =D16/2.54 -> 7.874015748 | G16: in | H16: x | I16: Advanced Centerline
H17: x | I17: Sample points
B18: HornResp Params | H18: x | I18: Driver
B19: S1 | C19: = | D19: 300 | E19: cm^2 | H19: o | I19: Suggested braces
B20: S2 | C20: = | D20: =Path!H11 -> 350.0252945 | E20: cm^2 | H20: x | I20: Guides
B21: S3 | C21: = | D21: =Path!H12 -> 807.0973256 | E21: cm^2
B22: S4 | C22: = | D22: =Path!H13 -> 1592.210281 | E22: cm^2
B23: S5 | C23: = | D23: 1900 | E23: cm^2
B24: L12 | C24: = | D24: =Path!K11 -> 18.62267208 | E24: cm
B25: L23 | C25: = | D25: =Path!K12 -> 170.1512627 | E25: cm
B26: L34 | C26: = | D26: =Path!K13 -> 44.18271641 | E26: cm
B27: L45 | C27: = | D27: =Path!K14 -> 17.32170951 | E27: cm
B28: Vtc | C28: = | D28: =D35-D36 -> 3000 | E28: cm^3
B29: Atc | C29: = | D29: =D93 -> 845 | E29: cm^2
B30: L (actual) | C30: = | D30: =Path!K15 -> 250.2783607 | E30: cm
B32: Ideal box width | C32: = | D32: =D23^0.5+2*D49 -> 46.18898944 | E32: cm | F32: =D32/2.54 -> 18.18464151 | G32: in | K32: =ABS(H48)+ABS(H51)+ABS(H52)+ABS(H53)+ABS(H54)+ABS(H55)+ABS(H56)+ABS(H57) -> 0.002859058387
B33: Compression ratio | C33: = | D33: =D93/(D20+D37) -> 2.013674576
B35: Cone Volume | C35: = | D35: 3000 | E35: cm^3
B36: Cone Vol. Adj. (S2) | C36: = | D36: 0 | E36: cm^3
B37: Equivalent CSA. | C37: = | D37: =D35/E48 -> 69.60556845 | E37: cm^2
B38: S2-S3 expansion | C38: = | D38: Par | E38: Par, Con, Exp
B40: Horn Design
B41: Vol. (net) | C41: = | D41: =D42-I61 -> 197.6001522 | E41: l. | F41: =(D41*1000/2.54^3)/1728 -> 6.97818352 | G41: cu.ft.
B42: Vol. (gross) | C42: = | D42: =(D11*D12*D13)/10^3 -> 240.693196 | E42: l. | F42: =(D42*1000/2.54^3)/1728 -> 8.5 | G42: cu.ft. | H42: Err
B43: Expansion 1 (S2-S3) | C43: = | D43: 3.569880501 | H43: =Path!U117 -> 0.000151927018
B44: Expansion 2 (S3-S5) | C44: = | D44: 23.2962451 | H44: =Path!U135 -> -8.136023894e-05
B46: Panels | D46: p | E46: x | F46: y | I46: # | J46: v
B47: =I5 -> Panel A, top & bottom | D47: 1.9 | E47: =ROUND(D12-2*D49,1) -> 43.1 | F47: =ROUND(Panels!K7,1) -> 61 | I47: 2 | J47: =F47*E47*D47*I47/10^3 -> 9.99058
B48: Panel B, driver baffle | D48: 1.9 | E48: =E47 -> 43.1 | F48: 42.64009814 | H48: =Path!U96 -> -3.31187332e-05 | I48: 1 | J48: 3.491797637
B49: Panel C, sides | D49: 1.3 | E49: =ROUND(Panels!K19,1) -> 86.4 | F49: =ROUND(Panels!K20,1) -> 61 | I49: 2 | J49: 13.70304
B50: Panel D, back | D50: 1.9 | E50: =E48 -> 43.1 | F50: =ROUND(Panels!K25,1) -> 82.6 | I50: 1 | J50: 6.764114
B51: Panel E, front | D51: 1.9 | E51: =E48 -> 43.1 | F51: 35.64953141 | H51: =D23-Path!$H$14 -> 0.0001209736827 | I51: 1 | J51: 2.919340127
B52: Panel F, 1st inside | D52: 1.3 | E52: =E48 -> 43.1 | F52: 39.26203068 | H52: =Path!U105 -> 0.0007422750954 | I52: 1 | J52: 2.199851579
B53: Panel G, 2nd inside | D53: 1.3 | E53: =E47 -> 43.1 | F53: 31.15817461 | H53: =Path!U48 -> -5.039112239e-09 | I53: 1 | J53: 1.745792523
F54: 8.897359966 | H54: =D19-Path!$H$10 -> 0.0001366462054
B55: =I12 -> Panel H, 4th inside | D55: 1.3 | E55: =E47 -> 43.1 | F55: 18.42545666 | H55: =Path!U57 -> 0.0004221171727 | I55: 1 | J55: 1.032378337
B56: =I13 -> Panel I, 5th inside | D56: 1.3 | E56: =E47 -> 43.1 | F56: 22.24075698 | H56: =Path!U81 -> 0.0008595884088 | I56: 1 | J56: 1.246149613
F57: 32.12003353 | H57: =Path!U72 -> 0.0005443340493
H59: =MAX(H43:H57) -> 0.0008595884088
H61: Pnl Vol | I61: =SUM(J47:J56) -> 43.09304382 | J61: l
B70: Filename | C70: = | D70: I:\Users\Brian.Steele\OneDrive\Hornresp\Import\BOXPLAN.TXT
B72: ID | C72: = | D72: 29.00 | J72: =CONCATENATE(B72,C72,D72) -> ID=29.00
B73: Ang | C73: = | D73: 2.0 x PI | J73: =CONCATENATE(B73,C73,D73) -> Ang=2.0 x PI
B74: Eg | C74: = | D74: 2.83 | J74: Eg=2.83
B75: Rg | C75: = | D75: 0 | J75: Rg=0
B76: Fta | C76: = | D76: 0 | J76: Fta=0
B77: S1 | C77: = | D77: =ROUND(D19,0) -> 300 | J77: S1=300
B78: S2 | C78: = | D78: =ROUND(D20,0) -> 350 | J78: S2=350
B79: Par | C79: = | D79: =ROUND(D24,1) -> 18.6 | J79: Par=18.6
B80: F12 | C80: = | D80: 0 | J80: F12=0
B81: S2 | C81: = | D81: =D78 -> 350 | J81: S2=350
B82: S3 | C82: = | D82: =ROUND(D21,0) -> 807 | J82: S3=807
B83: =D38 -> Par | C83: = | D83: =ROUND(D25,1) -> 170.2 | J83: Par=170.2
B84: F23 | C84: = | D84: 0 | J84: F23=0
B85: S3 | C85: = | D85: =D82 -> 807 | J85: S3=807
B86: S4 | C86: = | D86: =ROUND(D22,0) -> 1592 | J86: S4=1592
B87: Par | C87: = | D87: =ROUND(D26,1) -> 44.2 | J87: Par=44.2
B88: F34 | C88: = | D88: 0 | J88: F34=0
B89: S4 | C89: = | D89: =D86 -> 1592 | J89: S4=1592
B90: S5 | C90: = | D90: =ROUND(D23,0) -> 1900 | J90: S5=1900
B91: Par | C91: = | D91: =ROUND(D27,1) -> 17.3 | J91: Par=17.3
B92: F45 | C92: = | D92: 0 | J92: F45=0
B93: Sd | C93: = | D93: 845 | J93: Sd=845
B94: Bl | C94: = | D94: 26.14 | J94: Bl=26.14
B95: Cms | C95: = | D95: 0.000172 | J95: Cms=0.000172
B96: Rms | C96: = | D96: 2.4 | J96: Rms=2.4
B97: Mmd | C97: = | D97: 133.34 | J97: Mmd=133.34
B98: Le | C98: = | D98: 4.12 | J98: Le=4.12
B99: Re | C99: = | D99: 6.3 | J99: Re=6.3
B100: TH | C100: = | D100: 1 | J100: TH=1
B101: Vrc | C101: = | D101: 0 | J101: Vrc=0
B102: Lrc | C102: = | D102: 0 | J102: Lrc=0
B103: Ap1 | C103: = | D103: 0 | J103: Ap1=0
B104: Lp | C104: = | D104: 0 | J104: Lp=0
B105: Vtc | C105: = | D105: =D35-D36 -> 3000 | J105: Vtc=3000
B106: Atc | C106: = | D106: =D93 -> 845 | J106: Atc=845
B107: Pmax | C107: = | D107: 500 | J107: Pmax=500
B108: Xmax | C108: = | D108: 5 | J108: Xmax=5
B109: Comment | C109: = | D109: BOXPLAN-Export (7.2 Beta) | J109: Comment=BOXPLAN-Export (7.2 Beta)

Sheet Panels
R4: Exp. | S4: Cos | T4: Sin | U4: Cos | V4: Tan | W4: 1/2 | X4: Cos | Y4: Sin | Z4: Cos | AA4: Tan
C5: x | D5: y | F5: x | G5: y | I5: dx | J5: dy | L5: A | M5: B | Q5: 1 | R5: =Design!D43 -> 3.569880501 | S5: =COS(R5*PI()/180) -> 0.9980595985 | T5: =SIN(R5*PI()/180) -> 0.06226586377 | U5: =S5 -> 0.9980595985 | V5: =TAN(R5*PI()/180) -> 0.06238691944 | W5: =R5/2 -> 1.784940251 | X5: =COS(W5*PI()/180) -> 0.9995147819 | Y5: =SIN(W5*PI()/180) -> 0.03114804548 | Z5: =X5 -> 0.9995147819 | AA5: =TAN(W5*PI()/180) -> 0.03116316641
A6: =Design!I5 -> Panel A, top & bottom | C6: =C18-Design!D47 -> 84.46 | D6: =D18 -> 60.96 | F6: =IF(Design!$H$5="x",C6,0) -> 84.46 | G6: =IF(Design!$H$5="x",D6,0) -> 60.96 | Q6: 2 | R6: =Design!$D44 -> 23.2962451 | S6: =COS(R6*PI()/180) -> 0.9184723016 | T6: =SIN(R6*PI()/180) -> 0.395485311 | U6: =S6 -> 0.9184723016 | V6: =TAN(R6*PI()/180) -> 0.4305903513 | W6: =R6/2 -> 11.64812255 | X6: =COS(W6*PI()/180) -> 0.9794060194 | Y6: =SIN(W6*PI()/180) -> 0.2019005924 | Z6: =X6 -> 0.9794060194 | AA6: =TAN(W6*PI()/180) -> 0.2061459583
C7: =C6 -> 84.46 | D7: =D20 -> 0 | F7: =IF(Design!$H$5="x",C7,0) -> 84.46 | G7: =IF(Design!$H$5="x",D7,0) -> 0 | I7: =C6-C7 -> 0 | J7: 60.96 | K7: =(I7^2+J7^2)^0.5 -> 60.96 | Q7: 3 | R7: =(180-R5)/2-R6 -> 64.91881465 | S7: =COS((R7)*PI()/180) -> 0.4239020314 | T7: =SIN((R7)*PI()/180) -> 0.9057080477 | U7: =S7 -> 0.4239020314 | V7: =TAN((R7)*PI()/180) -> 2.136597564 | W7: =R7/2 -> 32.45940732 | X7: =COS(W7*PI()/180) -> 0.8437718979 | Y7: =SIN(W7*PI()/180) -> 0.5367019511 | Z7: =X7 -> 0.8437718979 | AA7: =TAN(W7*PI()/180) -> 0.6360746932
C8: =C7+Design!D47 -> 86.36 | D8: =D7 -> 0 | F8: =IF(Design!$H$5="x",C8,0) -> 86.36 | G8: =IF(Design!$H$5="x",D8,0) -> 0 | I8: -1.9 | J8: 0 | K8: =(I8^2+J8^2)^0.5 -> 1.9 | Q8: 1+2 | R8: =R5+R6 -> 26.8661256 | S8: =COS((R8)*PI()/180) -> 0.8920648621 | T8: =SIN((R8)*PI()/180) -> 0.451907382 | U8: =S8 -> 0.8920648621 | V8: =TAN((R8)*PI()/180) -> 0.506585789 | W8: =R8/2 -> 13.4330628 | X8: =COS(W8*PI()/180) -> 0.972641985 | Y8: =SIN(W8*PI()/180) -> 0.2323092098 | Z8: =X8 -> 0.972641985 | AA8: =TAN(W8*PI()/180) -> 0.2388434937
C9: =C8 -> 86.36 | D9: =D6 -> 60.96 | F9: =IF(Design!$H$5="x",C9,0) -> 86.36 | G9: =IF(Design!$H$5="x",D9,0) -> 60.96 | I9: 0 | J9: -60.96 | K9: =(I9^2+J9^2)^0.5 -> 60.96 | Q9: 1-2 | R9: =R5-R6 -> -19.7263646 | S9: =COS((R9)*PI()/180) -> 0.9413153311 | T9: =SIN((R9)*PI()/180) -> -0.3375284395 | U9: =S9 -> 0.9413153311 | V9: =TAN((R9)*PI()/180) -> -0.3585710637 | W9: =R9/2 -> -9.8631823 | X9: =COS((R9)*PI()/(180*2)) -> 0.9852196027 | Y9: =SIN((R9)*PI()/(180*2)) -> -0.1712960433 | Z9: =X9 -> 0.9852196027 | AA9: =TAN((R9)*PI()/(180*2)) -> -0.1738658497
C10: =C6 -> 84.46 | D10: =D6 -> 60.96 | F10: =IF(Design!$H$5="x",C10,0) -> 84.46 | G10: =IF(Design!$H$5="x",D10,0) -> 60.96 | I10: 1.9 | J10: 0 | K10: =(I10^2+J10^2)^0.5 -> 1.9
A12: =Design!I5 -> Panel A, top & bottom | C12: =C19 -> 0 | D12: =D6 -> 60.96 | F12: =IF(Design!$H$5="x",C12,0) -> 0 | G12: =IF(Design!$H$5="x",D12,0) -> 60.96
C13: =C12 -> 0 | D13: =D7 -> 0 | F13: =IF(Design!$H$5="x",C13,0) -> 0 | G13: =IF(Design!$H$5="x",D13,0) -> 0 | I13: =C12-C13 -> 0 | J13: 60.96 | K13: =(I13^2+J13^2)^0.5 -> 60.96
C14: =C13+Design!D47 -> 1.9 | D14: =D13 -> 0 | F14: =IF(Design!$H$5="x",C14,0) -> 1.9 | G14: =IF(Design!$H$5="x",D14,0) -> 0 | I14: -1.9 | J14: 0 | K14: =(I14^2+J14^2)^0.5 -> 1.9
C15: =C14 -> 1.9 | D15: =D12 -> 60.96 | F15: =IF(Design!$H$5="x",C15,0) -> 1.9 | G15: =IF(Design!$H$5="x",D15,0) -> 60.96 | I15: 0 | J15: -60.96 | K15: =(I15^2+J15^2)^0.5 -> 60.96
C16: =C12 -> 0 | D16: =D12 -> 60.96 | F16: =IF(Design!$H$5="x",C16,0) -> 0 | G16: =IF(Design!$H$5="x",D16,0) -> 60.96 | I16: 1.9 | J16: 0 | K16: =(I16^2+J16^2)^0.5 -> 1.9
A18: Panel C (top, bottom) | C18: =Design!D13 -> 86.36 | D18: =Design!D11 -> 60.96 | F18: =IF(Design!$H$7="x",C18,0) -> 86.36 | G18: =IF(Design!$H$7="x",D18,0) -> 60.96
C19: 0 | D19: =D18 -> 60.96 | F19: =IF(Design!$H$7="x",C19,0) -> 0 | G19: =IF(Design!$H$7="x",D19,0) -> 60.96 | I19: =C18-C19 -> 86.36 | J19: 0 | K19: =(I19^2+J19^2)^0.5 -> 86.36
C20: =C19 -> 0 | D20: 0 | F20: =IF(Design!$H$7="x",C20,0) -> 0 | G20: =IF(Design!$H$7="x",D20,0) -> 0 | I20: 0 | J20: 60.96 | K20: =(I20^2+J20^2)^0.5 -> 60.96
C21: =C18 -> 86.36 | D21: =D20 -> 0 | F21: =IF(Design!$H$7="x",C21,0) -> 86.36 | G21: =IF(Design!$H$7="x",D21,0) -> 0 | I21: -86.36 | J21: 0 | K21: =(I21^2+J21^2)^0.5 -> 86.36
C22: =C18 -> 86.36 | D22: =D18 -> 60.96 | F22: =IF(Design!$H$7="x",C22,0) -> 86.36 | G22: =IF(Design!$H$7="x",D22,0) -> 60.96 | I22: 0 | J22: -60.96 | K22: =(I22^2+J22^2)^0.5 -> 60.96
A24: Panel D (back) | C24: =C14 -> 1.9 | D24: =D20+Design!D50 -> 1.9 | F24: =IF(Design!$H$8="x",C24,0) -> 1.9 | G24: =IF(Design!$H$8="x",D24,0) -> 1.9
C25: =C7 -> 84.46 | D25: =D24 -> 1.9 | F25: =IF(Design!$H$8="x",C25,0) -> 84.46 | G25: =IF(Design!$H$8="x",D25,0) -> 1.9 | I25: =C24-C25 -> -82.56 | J25: 0 | K25: =(I25^2+J25^2)^0.5 -> 82.56
C26: =C25 -> 84.46 | D26: =D25-Design!D50 -> 0 | F26: =IF(Design!$H$8="x",C26,0) -> 84.46 | G26: =IF(Design!$H$8="x",D26,0) -> 0 | I26: 0 | J26: 1.9 | K26: =(I26^2+J26^2)^0.5 -> 1.9
C27: =C24 -> 1.9 | D27: =D26 -> 0 | F27: =IF(Design!$H$8="x",C27,0) -> 1.9 | G27: =IF(Design!$H$8="x",D27,0) -> 0 | I27: 82.56 | J27: 0 | K27: =(I27^2+J27^2)^0.5 -> 82.56
C28: =C24 -> 1.9 | D28: =D24 -> 1.9 | F28: =IF(Design!$H$8="x",C28,0) -> 1.9 | G28: =IF(Design!$H$8="x",D28,0) -> 1.9 | I28: 0 | J28: -1.9 | K28: =(I28^2+J28^2)^0.5 -> 1.9
A30: Panel E (front) | C30: =C6 -> 84.46 | D30: =D18 -> 60.96 | F30: =IF(Design!$H$9="x",C30,0) -> 84.46 | G30: =IF(Design!$H$9="x",D30,0) -> 60.96
C31: =C30-Design!F51 -> 48.81046859 | D31: =D30 -> 60.96 | F31: =IF(Design!$H$9="x",C31,0) -> 48.81046859 | G31: =IF(Design!$H$9="x",D31,0) -> 60.96 | I31: =C30-C31 -> 35.64953141 | J31: 0 | K31: =(I31^2+J31^2)^0.5 -> 35.64953141
C32: =C31 -> 48.81046859 | D32: =D31-Design!D51 -> 59.06 | F32: =IF(Design!$H$9="x",C32,0) -> 48.81046859 | G32: =IF(Design!$H$9="x",D32,0) -> 59.06 | I32: 0 | J32: 1.9 | K32: =(I32^2+J32^2)^0.5 -> 1.9
C33: =C30 -> 84.46 | D33: =D32 -> 59.06 | F33: =IF(Design!$H$9="x",C33,0) -> 84.46 | G33: =IF(Design!$H$9="x",D33,0) -> 59.06 | I33: -35.64953141 | J33: 0 | K33: =(I33^2+J33^2)^0.5 -> 35.64953141
C34: =C33 -> 84.46 | D34: =D31 -> 60.96 | F34: =IF(Design!$H$9="x",C34,0) -> 84.46 | G34: =IF(Design!$H$9="x",D34,0) -> 60.96 | I34: 0 | J34: -1.9 | K34: =(I34^2+J34^2)^0.5 -> 1.9
A36: Panel B (1st inside) | C36: =C32-Design!D48*Panels!S6 -> 47.06537122 | D36: =D39+Design!D48*Panels!T6 -> 61.71142209 | F36: =IF(Design!$H$6="x",C36,0) -> 47.06537122 | G36: =IF(Design!$H$6="x",D36,0) -> 61.71142209 | L36: =IF(C37=C36,0,(D37-D36)/(C37-C36)) -> 2.322392959 | M36: =IF(L36=0,0,D36-L36*C36) -> -47.59286463
C37: =C36-Design!F48*T6 -> 30.20183875 | D37: =D36-Design!F48*Panels!S6 -> 22.54767301 | F37: =IF(Design!$H$6="x",C37,0) -> 30.20183875 | G37: =IF(Design!$H$6="x",D37,0) -> 22.54767301 | I37: =C36-C37 -> 16.86353247 | J37: 39.16374908 | K37: =(I37^2+J37^2)^0.5 -> 42.64009814 | L37: =IF(C38=C37,0,(D38-D37)/(C38-C37)) -> -0.4305903513 | M37: =IF(L37=0,0,D37-L37*C37) -> 35.55229337
C38: =C37+Design!D48*S6 -> 31.94693612 | D38: =D37-Design!D48*Panels!T6 -> 21.79625092 | F38: =IF(Design!$H$6="x",C38,0) -> 31.94693612 | G38: =IF(Design!$H$6="x",D38,0) -> 21.79625092 | I38: -1.745097373 | J38: 0.7514220909 | K38: =(I38^2+J38^2)^0.5 -> 1.9 | L38: =IF(C39=C38,0,(D39-D38)/(C39-C38)) -> 2.322392959 | M38: =IF(L38=0,0,D38-L38*C38) -> -52.39708857
C39: =C31 -> 48.81046859 | D39: =D31 -> 60.96 | F39: =IF(Design!$H$6="x",C39,0) -> 48.81046859 | G39: =IF(Design!$H$6="x",D39,0) -> 60.96 | I39: -16.86353247 | J39: -39.16374908 | K39: =(I39^2+J39^2)^0.5 -> 42.64009814 | L39: =IF(C40=C39,0,(D40-D39)/(C40-C39)) -> -0.4305903513 | M39: =IF(L39=0,0,D39-L39*C39) -> 81.97731682
C40: =C36 -> 47.06537122 | D40: =D36 -> 61.71142209 | F40: =IF(Design!$H$6="x",C40,0) -> 47.06537122 | G40: =IF(Design!$H$6="x",D40,0) -> 61.71142209 | I40: 1.745097373 | J40: -0.7514220909 | K40: =(I40^2+J40^2)^0.5 -> 1.9
A42: Panel F | C42: =C38-Design!D48/S9 -> 29.92848392 | D42: =D38+Design!$D$48*T5 -> 21.91455606 | F42: =IF(Design!$H$10="x",C42,0) -> 29.92848392 | G42: =IF(Design!$H$10="x",D42,0) -> 21.91455606 | L42: =IF(C43=C42,0,(D43-D42)/(C43-C42)) -> 16.02900109 | M42: =IF(L42=0,0,D42-L42*C42) -> -457.8091454
C43: =C42-Design!D52*T5 -> 29.8475383 | D43: =D42-Design!D52*S5 -> 20.61707859 | F43: =IF(Design!$H$10="x",C43,0) -> 29.8475383 | G43: =IF(Design!$H$10="x",D43,0) -> 20.61707859 | I43: =C42-C43 -> 0.08094562291 | J43: 1.297477478 | K43: =(I43^2+J43^2)^0.5 -> 1.3 | L43: =IF(C44=C43,0,(D44-D43)/(C44-C43)) -> -0.06238691944 | M43: =IF(L43=0,0,D43-L43*C43) -> 22.47917455
C44: =C43+Design!F52*S5 -> 69.03338488 | D44: =D43-Design!F52*T5 -> 18.17239433 | F44: =IF(Design!$H$10="x",C44,0) -> 69.03338488 | G44: =IF(Design!$H$10="x",D44,0) -> 18.17239433 | I44: -39.18584658 | J44: 2.444684254 | K44: =(I44^2+J44^2)^0.5 -> 39.26203068 | L44: =IF(C45=C44,0,(D45-D44)/(C45-C44)) -> 16.02900109 | M44: =IF(L44=0,0,D44-L44*C44) -> -1088.363807
C45: =C44+Design!D52*T5 -> 69.1143305 | D45: =D44+Design!D52*S5 -> 19.46987181 | F45: =IF(Design!$H$10="x",C45,0) -> 69.1143305 | G45: =IF(Design!$H$10="x",D45,0) -> 19.46987181 | I45: -0.08094562291 | J45: -1.297477478 | K45: =(I45^2+J45^2)^0.5 -> 1.3 | L45: =IF(C46=C45,0,(D46-D45)/(C46-C45)) -> -0.06238691944 | M45: =IF(L45=0,0,D45-L45*C45) -> 23.78170198
C46: =C42 -> 29.92848392 | D46: =D42 -> 21.91455606 | F46: =IF(Design!$H$10="x",C46,0) -> 29.92848392 | G46: =IF(Design!$H$10="x",D46,0) -> 21.91455606 | I46: 39.18584658 | J46: -2.444684254 | K46: =(I46^2+J46^2)^0.5 -> 39.26203068
A48: Panel G | C48: =C38+(Design!$F$54*S5) -> 40.82703163 | D48: =D38-(Design!$F$54*T5) -> 21.24224912 | F48: =IF(Design!$H$11="x",C48,0) -> 40.82703163 | G48: =IF(Design!$H$11="x",D48,0) -> 21.24224912 | L48: =IF(C49=C48,0,(D49-D48)/(C49-C48)) -> 1.973999314 | M48: =IF(L48=0,0,D48-L48*C48) -> -59.35028333
C49: =C48+Design!$F$53*T8 -> 54.90764075 | D49: =D48+Design!$F$53*U8 -> 49.03736185 | F49: =IF(Design!$H$11="x",C49,0) -> 54.90764075 | G49: =IF(Design!$H$11="x",D49,0) -> 49.03736185 | I49: =C48-C49 -> -14.08060911 | J49: =D48-D49 -> -27.79511273 | K49: =(I49^2+J49^2)^0.5 -> 31.15817461 | L49: =IF(C50=C49,0,(D50-D49)/(C50-C49)) -> -0.506585789 | M49: =IF(L49=0,0,D49-L49*C49) -> 76.85279236
C50: =C49-Design!$D$53*S8 -> 53.74795643 | D50: =D49+Design!$D$53*T8 -> 49.62484145 | F50: =IF(Design!$H$11="x",C50,0) -> 53.74795643 | G50: =IF(Design!$H$11="x",D50,0) -> 49.62484145 | I50: 1.159684321 | J50: -0.5874795965 | K50: =(I50^2+J50^2)^0.5 -> 1.3 | L50: =IF(C51=C50,0,(D51-D50)/(C51-C50)) -> 1.973999314 | M50: =IF(L50=0,0,D50-L50*C50) -> -56.47358768
C51: =C50-Design!$F$53*T8 -> 39.66734731 | D51: =D50-Design!$F$53*U8 -> 21.82972872 | F51: =IF(Design!$H$11="x",C51,0) -> 39.66734731 | G51: =IF(Design!$H$11="x",D51,0) -> 21.82972872 | I51: 14.08060911 | J51: 27.79511273 | K51: =(I51^2+J51^2)^0.5 -> 31.15817461 | L51: =IF(C52=C51,0,(D52-D51)/(C52-C51)) -> -0.506585789 | M51: =IF(L51=0,0,D51-L51*C51) -> 41.92464315
C52: =C48 -> 40.82703163 | D52: =D48 -> 21.24224912 | F52: =IF(Design!$H$11="x",C52,0) -> 40.82703163 | G52: =IF(Design!$H$11="x",D52,0) -> 21.24224912 | I52: -1.159684321 | J52: 0.5874795965 | K52: =(I52^2+J52^2)^0.5 -> 1.3
A54: Panel H | C54: =C49 -> 54.90764075 | D54: =D50 -> 49.62484145 | F54: =IF(Design!$H$12="x",C54,0) -> 54.90764075 | G54: =IF(Design!$H$12="x",D54,0) -> 49.62484145 | L54: =IF(C55=C54,D55-D54,(D55-D54)/(C55-C54)) -> -0.06238691944 | M54: =IF(L54=0,0,D54-L54*C54) -> 53.05036001
C55: =C54+Design!F55*S5 -> 73.29734463 | D55: =D54-Design!F55*T5 -> 48.47756447 | F55: =IF(Design!$H$12="x",C55,0) -> 73.29734463 | G55: =IF(Design!$H$12="x",D55,0) -> 48.47756447 | I55: =C54-C55 -> -18.38970388 | J55: 1.147276975 | K55: =(I55^2+J55^2)^0.5 -> 18.42545666 | L55: =IF(C56=C55,0,(D56-D55)/(C56-C55)) -> 16.02900109 | M55: =IF(L55=0,0,D55-L55*C55) -> -1126.405653
C56: =C55-Design!D55*T5 -> 73.21639901 | D56: =D55-Design!D55*S5 -> 47.180087 | F56: =IF(Design!$H$12="x",C56,0) -> 73.21639901 | G56: =IF(Design!$H$12="x",D56,0) -> 47.180087 | I56: 0.08094562291 | J56: 1.297477478 | K56: =(I56^2+J56^2)^0.5 -> 1.3 | L56: =IF(C57=C56,0,(D57-D56)/(C57-C56)) -> -0.06238691944 | M56: =IF(L56=0,0,D56-L56*C56) -> 51.74783258
C57: =C56-Design!F55*S5 -> 54.82669512 | D57: =D56+Design!F55*T5 -> 48.32736397 | F57: =IF(Design!$H$12="x",C57,0) -> 54.82669512 | G57: =IF(Design!$H$12="x",D57,0) -> 48.32736397 | I57: 18.38970388 | J57: -1.147276975 | K57: =(I57^2+J57^2)^0.5 -> 18.42545666 | L57: =IF(C58=C57,0,(D58-D57)/(C58-C57)) -> 16.02900109 | M57: =IF(L57=0,0,D57-L57*C57) -> -830.4897921
C58: =C54 -> 54.90764075 | D58: =D54 -> 49.62484145 | F58: =IF(Design!$H$12="x",C58,0) -> 54.90764075 | G58: =IF(Design!$H$12="x",D58,0) -> 49.62484145 | I58: -0.08094562291 | J58: -1.297477478 | K58: =(I58^2+J58^2)^0.5 -> 1.3
A60: Panel I | C60: =C7 -> 84.46 | D60: =Design!D50+Design!F57 -> 34.02003353 | F60: =IF(Design!$H$13="x",C60,0) -> 84.46 | G60: =IF(Design!$H$13="x",D60,0) -> 34.02003353 | L60: =IF(C61=C60,0,(D61-D60)/(C61-C60)) -> 0 | M60: =IF(L60=0,0,D60-L60*C60) -> 0
C61: =C60-Design!F56 -> 62.21924302 | D61: =D60 -> 34.02003353 | F61: =IF(Design!$H$13="x",C61,0) -> 62.21924302 | G61: =IF(Design!$H$13="x",D61,0) -> 34.02003353 | I61: =C60-C61 -> 22.24075698 | J61: 0 | K61: =(I61^2+J61^2)^0.5 -> 22.24075698 | L61: =IF(C62=C61,0,(D62-D61)/(C62-C61)) -> 0 | M61: =IF(L61=0,0,D61-L61*C61) -> 0
C62: =C61 -> 62.21924302 | D62: =D61+Design!D56 -> 35.32003353 | F62: =IF(Design!$H$13="x",C62,0) -> 62.21924302 | G62: =IF(Design!$H$13="x",D62,0) -> 35.32003353 | I62: 0 | J62: -1.3 | K62: =(I62^2+J62^2)^0.5 -> 1.3 | L62: =IF(C63=C62,0,(D63-D62)/(C63-C62)) -> 0 | M62: =IF(L62=0,0,D62-L62*C62) -> 0
C63: =C60 -> 84.46 | D63: =D62 -> 35.32003353 | F63: =IF(Design!$H$13="x",C63,0) -> 84.46 | G63: =IF(Design!$H$13="x",D63,0) -> 35.32003353 | I63: -22.24075698 | J63: 0 | K63: =(I63^2+J63^2)^0.5 -> 22.24075698 | L63: =IF(C64=C63,0,(D64-D63)/(C64-C63)) -> 0 | M63: =IF(L63=0,0,D63-L63*C63) -> 0
C64: =C60 -> 84.46 | D64: =D60 -> 34.02003353 | F64: =IF(Design!$H$13="x",C64,0) -> 84.46 | G64: =IF(Design!$H$13="x",D64,0) -> 34.02003353 | I64: 0 | J64: 1.3 | K64: =(I64^2+J64^2)^0.5 -> 1.3
S79: x | T79: y | V79: dX | W79: dY | X79: l | Y79: Delta
S80: =Panels!C37 -> 30.20183875 | T80: =Panels!D37 -> 22.54767301
S81: =Panels!C36 -> 47.06537122 | T81: =Panels!D36 -> 61.71142209 | V81: =S80-S81 -> -16.86353247 | W81: =T80-T81 -> -39.16374908 | X81: =(V81^2+W81^2)^0.5 -> 42.64009814 | Y81: =W81/V81 -> 2.322392959
S83: =IF(Design!$H$20="x",Design!$D$61*SIN(ATAN($Y$81)),0) -> 0 | T83: =IF(Design!$H$20="x",Design!$D$61*COS(ATAN($Y$81)),0) -> 0
Q84: Driver
Q86: Face (1) | R86: =Design!$H$18 -> x | S86: =S87+(Design!$D$4*COS(ATAN($Y$81)))/2+S83 -> 45.62576588 | T86: =T87+(Design!$D$4*SIN(ATAN($Y$81)))/2 -> 58.36809277 | V86: =IF(R86="x",S86,0) -> 45.62576588 | W86: =IF(R86="x",T86,0) -> 58.36809277
R87: =Design!$H$18 -> x | S87: =S80+(Design!D15/Panels!S8)-V81*Design!D16/X81-S83 -> 38.11154497 | T87: =T80-(W81*Design!D16/X81)-T83 -> 40.91711904 | V87: 38.11154497 | W87: 40.91711904
R88: =Design!$H$18 -> x | S88: =S87-Design!$D$6*SIN(ATAN($Y$81)) -> 23.23229368 | T88: =T87+Design!$D$6*COS(ATAN($Y$81)) -> 47.32398108 | V88: 23.23229368 | W88: 47.32398108
R89: =Design!$H$18 -> x | S89: =S88+Design!$D$7*COS(ATAN($Y$81))/2 -> 26.59391882 | T89: =T88+Design!$D$7*SIN(ATAN($Y$81))/2 -> 55.13099565 | V89: 26.59391882 | W89: 55.13099565
R90: =Design!$H$18 -> x | S90: =S89+Design!$D$8*SIN(ATAN($Y$81)) -> 32.10475263 | T90: =T89-Design!$D$8*COS(ATAN($Y$81)) -> 52.75808378 | V90: 32.10475263 | W90: 52.75808378
R91: =Design!$H$18 -> x | S91: =S87+Design!$D$5*COS(ATAN($Y$81))/2 -> 45.19073203 | T91: =T87+(Design!$D$5)*SIN(ATAN($Y$81))/2 -> 57.35777324 | V91: 45.19073203 | W91: 57.35777324
R93: =Design!$H$18 -> x | S93: =S94-(Design!$D$4*COS(ATAN($Y$81)))/2 -> 30.59732406 | T93: =T94-(Design!$D$4*SIN(ATAN($Y$81)))/2 -> 23.46614531 | V93: =IF(R93="x",S93,0) -> 30.59732406 | W93: =IF(R93="x",T93,0) -> 23.46614531
R94: =Design!$H$18 -> x | S94: =S87 -> 38.11154497 | T94: =T87 -> 40.91711904 | V94: 38.11154497 | W94: 40.91711904
R95: =Design!$H$18 -> x | S95: =S88 -> 23.23229368 | T95: =T88 -> 47.32398108 | V95: 23.23229368 | W95: 47.32398108
R96: =Design!$H$18 -> x | S96: =S95-Design!$D$7*COS(ATAN($Y$81))/2 -> 19.87066854 | T96: =T95-Design!$D$7*SIN(ATAN($Y$81))/2 -> 39.51696652 | V96: 19.87066854 | W96: 39.51696652
R97: =Design!$H$18 -> x | S97: =S96+Design!$D$8*SIN(ATAN($Y$81)) -> 25.38150235 | T97: =T96-Design!$D$8*COS(ATAN($Y$81)) -> 37.14405465 | V97: 25.38150235 | W97: 37.14405465
R98: =Design!$H$18 -> x | S98: =S94-Design!$D$5*COS(ATAN($Y$81))/2 -> 31.0323579 | T98: =T94-(Design!$D$5)*SIN(ATAN($Y$81))/2 -> 24.47646485 | V98: 31.0323579 | W98: 24.47646485
R100: =Design!$H$18 -> x | S100: =S97 -> 25.38150235 | T100: =T97 -> 37.14405465 | V100: =IF(R100="x",S100,0) -> 25.38150235 | W100: =IF(R100="x",T100,0) -> 37.14405465
R101: =Design!$H$18 -> x | S101: =S90 -> 32.10475263 | T101: =T90 -> 52.75808378 | V101: =IF(R101="x",S101,0) -> 32.10475263 | W101: =IF(R101="x",T101,0) -> 52.75808378
Q105: Graph Axes
S106: =MIN(C6:D34)-5 -> -5 | T106: =S106 -> -5
S107: =S106 -> -5 | T107: =MAX(C6:D34,Path!D19:E143) -> 86.36
S109: =S106 -> -5 | T109: =S109 -> -5
S110: =T107 -> 86.36 | T110: =T109 -> -5
S114: d | T114: =Design!E47 -> 43.1
V115: n
S116: a1 | T116: =Design!D20 -> 350.0252945 | V116: =Design!D24 -> 18.62267208
S117: a2 | T117: =Path!P120 -> 807.0973256 | V117: =Path!O120 -> 188.8165542
S118: a3 | T118: =Path!P120 -> 807.0973256 | V118: =Path!O120 -> 188.8165542

Sheet Path
H2: Exp. | I2: Cos | J2: Sin | K2: Cos | L2: Tan | M2: 1/2 | N2: Cos | O2: Sin | P2: Cos | Q2: Tan
G3: 1 | H3: =Design!D43 -> 3.569880501 | I3: =COS(H3*PI()/180) -> 0.9980595985 | J3: =SIN(H3*PI()/180) -> 0.06226586377 | K3: =I3 -> 0.9980595985 | L3: =TAN(H3*PI()/180) -> 0.06238691944 | M3: =H3/2 -> 1.784940251 | N3: =COS(M3*PI()/180) -> 0.9995147819 | O3: =SIN(M3*PI()/180) -> 0.03114804548 | P3: =N3 -> 0.9995147819 | Q3: =TAN(M3*PI()/180) -> 0.03116316641
G4: 2 | H4: =Design!$D44 -> 23.2962451 | I4: =COS(H4*PI()/180) -> 0.9184723016 | J4: =SIN(H4*PI()/180) -> 0.395485311 | K4: =I4 -> 0.9184723016 | L4: =TAN(H4*PI()/180) -> 0.4305903513 | M4: =H4/2 -> 11.64812255 | N4: =COS(M4*PI()/180) -> 0.9794060194 | O4: =SIN(M4*PI()/180) -> 0.2019005924 | P4: =N4 -> 0.9794060194 | Q4: =TAN(M4*PI()/180) -> 0.2061459583
G5: 3 | H5: =(180-H3)/2-H4 -> 64.91881465 | I5: =COS((H5)*PI()/180) -> 0.4239020314 | J5: =SIN((H5)*PI()/180) -> 0.9057080477 | K5: =I5 -> 0.4239020314 | L5: =TAN((H5)*PI()/180) -> 2.136597564 | M5: =H5/2 -> 32.45940732 | N5: =COS(M5*PI()/180) -> 0.8437718979 | O5: =SIN(M5*PI()/180) -> 0.5367019511 | P5: =N5 -> 0.8437718979 | Q5: =TAN(M5*PI()/180) -> 0.6360746932
G6: 1+2 | H6: =H3+H4 -> 26.8661256 | I6: =COS((H6)*PI()/180) -> 0.8920648621 | J6: =SIN((H6)*PI()/180) -> 0.451907382 | K6: =I6 -> 0.8920648621 | L6: =TAN((H6)*PI()/180) -> 0.506585789 | M6: =H6/2 -> 13.4330628 | N6: =COS(M6*PI()/180) -> 0.972641985 | O6: =SIN(M6*PI()/180) -> 0.2323092098 | P6: =N6 -> 0.972641985 | Q6: =TAN(M6*PI()/180) -> 0.2388434937
G7: 1-2 | H7: =H3-H4 -> -19.7263646 | I7: =COS((H7)*PI()/180) -> 0.9413153311 | J7: =SIN((H7)*PI()/180) -> -0.3375284395 | K7: =I7 -> 0.9413153311 | L7: =TAN((H7)*PI()/180) -> -0.3585710637 | M7: =H7/2 -> -9.8631823 | N7: =COS((H7)*PI()/(180*2)) -> 0.9852196027 | O7: =SIN((H7)*PI()/(180*2)) -> -0.1712960433 | P7: =N7 -> 0.9852196027 | Q7: =TAN((H7)*PI()/(180*2)) -> -0.1738658497
H9: S | I9: L | J9: W | K9: d | L9: y | O9: Conical | S9: Exponential
G10: S1 | H10: =P24 -> 299.9998634 | I10: =O24 -> 0.04261948053 | J10: =Design!D12-2*Design!D49 -> 43.12 | L10: =H10/J10 -> 6.957325217 | O10: =(H10/PI())^0.5 -> 9.772048013
G11: S2 | H11: =P30 -> 350.0252945 | I11: =O30 -> 18.66529156 | J11: =J10 -> 43.12 | K11: =I11-I10 -> 18.62267208 | L11: 8.117469725 | M11: =ATAN((L11-L10)/(I11-I10))*180/PI() -> 3.564772671 | O11: =(H11/PI())^0.5 -> 10.55540201 | P11: =ATAN((O12-O11)/(I12-I11))*180/PI() -> 1.842284637 | Q11: =SIN(P11*PI()/(180*2)) -> 0.01607627378 | S11: =LN(H12/H11)/(I12-I11) -> 0.00490997732
G12: S3 | H12: =P120 -> 807.0973256 | I12: =O120 -> 188.8165542 | J12: =J11 -> 43.12 | K12: =I12-I11 -> 170.1512627 | L12: 18.71747044 | M12: =ATAN((L12-L11)/(I12-I11))*180/PI() -> 3.564777796 | O12: 16.02832049 | AL12: Intersection points
G13: S4 | H13: =P138 -> 1592.210281 | I13: =O138 -> 232.9992706 | J13: =J12 -> 43.12 | K13: =I13-I12 -> 44.18271641 | L13: 36.92509928 | O13: 22.51258034 | AO13: =AO15-AM15 -> 14.87925129 | AP13: =AP15-AN15 -> -6.406862039
G14: S5 | H14: =P144 -> 1899.999879 | I14: =O144 -> 250.3209802 | J14: =J13 -> 43.12 | K14: =I14-I13 -> 17.32170951 | L14: 44.06307697 | M14: =ATAN((L14-L12)/(I14-I12))*180/PI() -> 22.39626646 | O14: 24.59245301 | AM14: x1 | AN14: y1 | AO14: x2 | AP14: y2 | AQ14: a | AR14: b | AS14: x | AT14: y | AU14: l
K15: =SUM(K10:K14) -> 250.2783607 | AL15: Driver centerline | AM15: =Panels!S95 -> 23.23229368 | AN15: =Panels!T95 -> 47.32398108 | AO15: =Panels!S94 -> 38.11154497 | AP15: =Panels!T94 -> 40.91711904 | AQ15: =(AP15-AN15)/(AO15-AM15) -> -0.4305903513 | AR15: =(AP15*AM15-AN15*AO15)/(AM15-AO15) -> 57.32758258
G16: S2-S3 Exp | H16: =Design!D38 -> Par | AL16: Panel B (top) | AM16: =Panels!C37 -> 30.20183875 | AN16: =Panels!D37 -> 22.54767301 | AO16: =Panels!C40 -> 47.06537122 | AP16: =Panels!D40 -> 61.71142209 | AQ16: =(AP16-AN16)/(AO16-AM16) -> 2.322392959 | AR16: =(AP16*AM16-AN16*AO16)/(AM16-AO16) -> -47.59286463 | AS16: =(AR15-AR16)/(AQ16-AQ15) -> 38.11154497 | AT16: =AS16*AQ16+AR16 -> 40.91711904 | AU16: =(AS16^2+AT16^2)^0.5 -> 55.91690702
AL17: Panel B (bottom) | AM17: =Panels!C38 -> 31.94693612 | AN17: =Panels!D38 -> 21.79625092 | AO17: =Panels!C39 -> 48.81046859 | AP17: =Panels!D39 -> 60.96 | AQ17: =(AP17-AN17)/(AO17-AM17) -> 2.322392959 | AR17: =(AP17*AM17-AN17*AO17)/(AM17-AO17) -> -52.39708857 | AS17: =(AR15-AR17)/(AQ17-AQ15) -> 39.85664234 | AT17: =AS17*AQ17+AR17 -> 40.16569695 | AU17: =(AS17^2+AT17^2)^0.5 -> 56.58476076
A18: Path Calculations | D18: x | E18: y | G18: x | H18: y | J18: d | K18: x | L18: y | M18: dS | N18: d | O18: L | P18: S
D19: =AS26 -> 39.41064241 | E19: =AT26 -> 21.32299341 | G19: =IF(Design!$H$17="x",D19,0) -> 39.41064241 | H19: =IF(Design!$H$17="x",E19,0) -> 21.32299341 | I19: =SUM(D19:D20)/2 -> 35.67878926 | J19: =SUM(E19:E20)/2 -> 21.55962216 | S19: Expansion | U19: Error | W19: Target | Y19: Parabolic | AB19: Conical | AE19: Exponential | AL19: Panel B | AM19: =D23 -> 32.48807372 | AN19: =E23 -> 23.05298507 | AO19: =AM19+100*Panels!T7 -> 123.0588785 | AP19: =AN19-100*Panels!U7 -> -19.33721807 | AQ19: =(AP19-AN19)/(AO19-AM19) -> -0.4680338576 | AR19: =(AP19*AM19-AN19*AO19)/(AM19-AO19) -> 38.25850354
B20: =B23+1 -> 42 | C20: 1 | D20: =Panels!C38 -> 31.94693612 | E20: =Panels!D38 -> 21.79625092 | G20: =IF(Design!$H$17="x",D20,0) -> 31.94693612 | H20: =IF(Design!$H$17="x",E20,0) -> 21.79625092 | Q20: =ATAN((E19-E20)/(D19-D20))*180/PI() -> -3.62814461 | AL20: Panel G | AM20: =AM29 -> 39.66734731 | AN20: =AN29 -> 21.82972872 | AO20: =AO29 -> 53.74795643 | AP20: =AP29 -> 49.62484145 | AQ20: =IF(AO20<>AM20,(AP20-AN20)/(AO20-AM20),"") -> 1.973999314 | AR20: =IF(AQ20<>"",(AP20*AM20-AN20*AO20)/(AM20-AO20),AM20) -> -56.47358768 | AS20: =IF(AQ20<>"",(AR19-AR20)/(AQ20-AQ19),AM20) -> 38.7923032 | AT20: =AS20*AQ19+AR19 -> 20.10239223
M21: =((D19-D20)^2+(E19-E20)^2)^0.5 -> 7.478695357 | N21: =((I19-Panels!H94)^2+(J19-Panels!I94)^2)^0.5 -> 41.68684818 | O21: 0 | P21: =((D19-D20)^2+(E19-E20)^2)^0.5*Panels!$T$114 -> 322.3317699
D22: =AS20 -> 38.7923032 | E22: =AT20 -> 20.10239223 | G22: =IF(Design!$H$17="x",D22,0) -> 38.7923032 | H22: =IF(Design!$H$17="x",E22,0) -> 20.10239223 | I22: =SUM(D22:D23)/2 -> 35.64018846 | J22: =SUM(E22:E23)/2 -> 21.57768865 | K22: =IF(Design!$H$16="x",I22,0) -> 35.64018846 | L22: =IF(Design!$H$16="x",J22,0) -> 21.57768865 | N22: =N21 -> 41.68684818 | O22: 0 | P22: 322.3317699 | S22: =P22/2 -> 161.1658849 | T22: =-S22 -> -161.1658849 | U22: =(S22-Y22)*2 -> 22.446466 | W22: =IF($H$16="Par",Y22,0)+IF($H$16="Con",AB22,0)+IF($H$16="Exp",AE22,0) -> 149.9426519 | Y22: =((_S3_-_S2_)*(O22-_L2_)/(_L3_-_L2_)+_S2_)/2 -> 149.9426519 | Z22: =-Y22 -> -149.9426519 | AB22: =Y22 -> 149.9426519 | AC22: =-AB22 -> -149.9426519 | AE22: =Y22 -> 149.9426519 | AF22: =-AE22 -> -149.9426519 | AG22: =IF(C20>0,L22,"") -> 21.57768865 | AH22: =O21 -> 0 | AI22: =$R$144/2 -> 928.1100952 | AL22: Panel G1 | AM22: =AS26 -> 39.41064241 | AN22: =AT26 -> 21.32299341 | AO22: =AM22-100*Panels!T7 -> -51.16016237 | AP22: =AN22+100*Panels!U7 -> 63.71319655 | AQ22: =(AP22-AN22)/(AO22-AM22) -> -0.4680338576 | AR22: =(AP22*AM22-AN22*AO22)/(AM22-AO22) -> 39.7685084
A23: S1 | B23: 41 | C23: =C20+1 -> 2 | D23: =(Panels!C38+D26)/2 -> 32.48807372 | E23: =(Panels!D38+E26)/2 -> 23.05298507 | G23: =IF(Design!$H$17="x",D23,0) -> 32.48807372 | H23: =IF(Design!$H$17="x",E23,0) -> 23.05298507 | K23: =K22 -> 35.64018846 | L23: =L22 -> 21.57768865 | N23: 41.68684818 | O23: 0 | P23: 322.3317699 | Q23: =ATAN((E22-E23)/(D22-D23))*180/PI() -> -25.08118535 | S23: 161.1658849 | T23: -161.1658849 | U23: =(S23-Y23)*2 -> 22.446466 | W23: =IF($H$16="Par",Y23,0)+IF($H$16="Con",AB23,0)+IF($H$16="Exp",AE23,0) -> 149.9426519 | Y23: 149.9426519 | Z23: -149.9426519 | AB23: =Y23 -> 149.9426519 | AC23: =-AB23 -> -149.9426519 | AE23: =Y23 -> 149.9426519 | AF23: =-AE23 -> -149.9426519 | AG23: =IF(C20>0,L23,"") -> 21.57768865 | AH23: =AH22 -> 0 | AI23: =-AI22 -> -928.1100952 | AL23: Panel B | AM23: =Panels!C38 -> 31.94693612 | AN23: =Panels!D38 -> 21.79625092 | AO23: =Panels!C39 -> 48.81046859 | AP23: =Panels!D39 -> 60.96 | AQ23: =IF(AO23<>AM23,(AP23-AN23)/(AO23-AM23),"") -> 2.322392959 | AR23: =IF(AQ23<>"",(AP23*AM23-AN23*AO23)/(AM23-AO23),AM23) -> -52.39708857 | AS23: =IF(AQ23<>"",(AR22-AR23)/(AQ23-AQ22),AM23) -> 33.02921131 | AT23: =AS23*AQ22+AR22 -> 24.30971922
K24: =K23 -> 35.64018846 | L24: =L23 -> 21.57768865 | M24: =((D22-D23)^2+(E22-E23)^2)^0.5 -> 6.960553674 | N24: =((I22-I19)^2+(J22-J19)^2)^0.5 -> 0.04261948053 | O24: =O21+N24 -> 0.04261948053 | P24: =((D22-D23)^2+(E22-E23)^2)^0.5*Panels!$T$114 -> 299.9998634 | S24: 149.9999317 | T24: -149.9999317 | U24: =(S24-W24)*2 -> 7.210238272e-05 | W24: =IF($H$16="Par",Y24,0)+IF($H$16="Con",AB24,0)+IF($H$16="Exp",AE24,0) -> 149.9998956 | Y24: 149.9998956 | Z24: -149.9998956 | AB24: =Y24 -> 149.9998956 | AC24: =-AB24 -> -149.9998956 | AE24: =Y24 -> 149.9998956 | AF24: =-AE24 -> -149.9998956 | AG24: =IF(C20>0,L24,"") -> 21.57768865 | AJ24: =AJ21+N24 -> 0.04261948053
D25: =AS26 -> 39.41064241 | E25: =AT26 -> 21.32299341 | G25: =IF(Design!$H$17="x",D25,0) -> 39.41064241 | H25: =IF(Design!$H$17="x",E25,0) -> 21.32299341 | I25: =SUM(D25:D26)/2 -> 36.21992686 | J25: =SUM(E25:E26)/2 -> 22.81635631 | K25: =IF(Design!$H$16="x",I25,0) -> 36.21992686 | L25: =IF(Design!$H$16="x",J25,0) -> 22.81635631 | N25: =N24 -> 0.04261948053 | O25: 0.04261948053 | P25: 299.9998634 | S25: =P25/2 -> 149.9999317 | T25: =-S25 -> -149.9999317 | U25: =(S25-W25)*2 -> 7.210238272e-05 | W25: =IF($H$16="Par",Y25,0)+IF($H$16="Con",AB25,0)+IF($H$16="Exp",AE25,0) -> 149.9998956 | Y25: 149.9998956 | Z25: =-Y25 -> -149.9998956 | AB25: 149.9998956 | AC25: =-AB25 -> -149.9998956 | AE25: 149.9998956 | AF25: -149.9998956 | AG25: =IF(C23>0,L25,"") -> 22.81635631 | AH25: =O24 -> 0.04261948053 | AI25: =$R$144/2 -> 928.1100952 | AL25: Panel F (top) | AM25: =Panels!C42 -> 29.92848392 | AN25: =Panels!D42 -> 21.91455606 | AO25: =Panels!C45 -> 69.1143305 | AP25: =Panels!D45 -> 19.46987181 | AQ25: =(AP25-AN25)/(AO25-AM25) -> -0.06238691944 | AR25: =(AP25*AM25-AN25*AO25)/(AM25-AO25) -> 23.78170198
B26: 40 | C26: =C23+1 -> 3 | D26: =AS23 -> 33.02921131 | E26: =AT23 -> 24.30971922 | G26: =IF(Design!$H$17="x",D26,0) -> 33.02921131 | H26: =IF(Design!$H$17="x",E26,0) -> 24.30971922 | K26: =K25 -> 36.21992686 | L26: =L25 -> 22.81635631 | N26: =N25 -> 0.04261948053 | O26: 0.04261948053 | P26: 299.9998634 | Q26: =ATAN((E25-E26)/(D25-D26))*180/PI() -> -25.08118535 | S26: 149.9999317 | T26: -149.9999317 | U26: 7.210238272e-05 | W26: 149.9998956 | Y26: 149.9998956 | Z26: -149.9998956 | AB26: 149.9998956 | AC26: -149.9998956 | AE26: 149.9998956 | AF26: -149.9998956 | AG26: =IF(C23>0,L26,"") -> 22.81635631 | AH26: =AH25 -> 0.04261948053 | AI26: =-AI25 -> -928.1100952 | AL26: Panel G | AM26: =Panels!C51 -> 39.66734731 | AN26: =Panels!D51 -> 21.82972872 | AO26: =Panels!C50 -> 53.74795643 | AP26: =Panels!D50 -> 49.62484145 | AQ26: =(AP26-AN26)/(AO26-AM26) -> 1.973999314 | AR26: =(AP26*AM26-AN26*AO26)/(AM26-AO26) -> -56.47358768 | AS26: =(AR25-AR26)/(AQ26-AQ25) -> 39.41064241 | AT26: =AS26*AQ26+AR26 -> 21.32299341 | AU26: =ATAN(AQ26)*180/PI() -> 63.1338744 | AV26: =90-AU26 -> 26.8661256
K27: =K26 -> 36.21992686 | L27: =L26 -> 22.81635631 | M27: =((D25-D26)^2+(E25-E26)^2)^0.5 -> 7.045792635 | N27: =((I25-I22)^2+(J25-J22)^2)^0.5 -> 1.367623558 | O27: =O24+N27 -> 1.410243039 | P27: =((D25-D26)^2+(E25-E26)^2)^0.5*Panels!$T$114 -> 303.6736626 | S27: 151.8368313 | T27: -151.8368313 | U27: 6.680728211e-05 | W27: 151.8367979 | Y27: 151.8367979 | Z27: -151.8367979 | AB27: 151.8367979 | AC27: -151.8367979 | AE27: 151.8367979 | AF27: -151.8367979 | AG27: =IF(C23>0,L27,"") -> 22.81635631 | AJ27: =AJ24+N27 -> 1.410243039
D28: =AS29 -> 47.21211162 | E28: =AT29 -> 36.72308829 | G28: =IF(Design!$H$17="x",D28,0) -> 47.21211162 | H28: =IF(Design!$H$17="x",E28,0) -> 36.72308829 | I28: =SUM(D28:D29)/2 -> 43.53437698 | J28: =SUM(E28:E29)/2 -> 38.44439262 | K28: =IF(Design!$H$16="x",I28,0) -> 43.53437698 | L28: =IF(Design!$H$16="x",J28,0) -> 38.44439262 | N28: =N27 -> 1.367623558 | O28: 1.410243039 | P28: 303.6736626 | S28: =P28/2 -> 151.8368313 | T28: =-S28 -> -151.8368313 | U28: 6.680728211e-05 | W28: 151.8367979 | Y28: 151.8367979 | Z28: =-Y28 -> -151.8367979 | AB28: 151.8367979 | AC28: -151.8367979 | AE28: 151.8367979 | AF28: -151.8367979 | AG28: =IF(C26>0,L28,"") -> 38.44439262 | AH28: =O27 -> 1.410243039 | AI28: =$R$144/2 -> 928.1100952 | AL28: Panel B | AM28: =AS17 -> 39.85664234 | AN28: =AT17 -> 40.16569695 | AO28: =AM28+100*Panels!T7 -> 130.4274471 | AP28: =AN28-100*Panels!U7 -> -2.224506188 | AQ28: =(AP28-AN28)/(AO28-AM28) -> -0.4680338576 | AR28: =(AP28*AM28-AN28*AO28)/(AM28-AO28) -> 58.81995502
A29: S2 | B29: 39 | C29: =C26+1 -> 4 | D29: =AS17 -> 39.85664234 | E29: =AT17 -> 40.16569695 | G29: =IF(Design!$H$17="x",D29,0) -> 39.85664234 | H29: =IF(Design!$H$17="x",E29,0) -> 40.16569695 | K29: =K28 -> 43.53437698 | L29: =L28 -> 38.44439262 | N29: =N28 -> 1.367623558 | O29: 1.410243039 | P29: 303.6736626 | Q29: =ATAN((E28-E29)/(D28-D29))*180/PI() -> -25.08118535 | S29: 151.8368313 | T29: -151.8368313 | U29: 6.680728211e-05 | W29: 151.8367979 | Y29: 151.8367979 | Z29: -151.8367979 | AB29: 151.8367979 | AC29: -151.8367979 | AE29: 151.8367979 | AF29: -151.8367979 | AG29: =IF(C26>0,L29,"") -> 38.44439262 | AH29: =AH28 -> 1.410243039 | AI29: =-AI28 -> -928.1100952 | AL29: Panel G | AM29: =Panels!C51 -> 39.66734731 | AN29: =Panels!D51 -> 21.82972872 | AO29: =Panels!C50 -> 53.74795643 | AP29: =Panels!D50 -> 49.62484145 | AQ29: =IF(AO29<>AM29,(AP29-AN29)/(AO29-AM29),"") -> 1.973999314 | AR29: =IF(AQ29<>"",(AP29*AM29-AN29*AO29)/(AM29-AO29),AM29) -> -56.47358768 | AS29: =IF(AQ29<>"",(AR28-AR29)/(AQ29-AQ28),AM29) -> 47.21211162 | AT29: =AS29*AQ28+AR28 -> 36.72308829
K30: =K29 -> 43.53437698 | L30: =L29 -> 38.44439262 | M30: =((D28-D29)^2+(E28-E29)^2)^0.5 -> 8.121236532 | N30: =((I28-I25)^2+(J28-J25)^2)^0.5 -> 17.25504852 | O30: =O27+N30 -> 18.66529156 | P30: =((D28-D29)^2+(E28-E29)^2)^0.5*Panels!$T$114 -> 350.0252945 | S30: 175.0126473 | T30: -175.0126473 | U30: 0 | W30: 175.0126473 | Y30: 175.0126473 | Z30: -175.0126473 | AB30: =Y30 -> 175.0126473 | AC30: -175.0126473 | AE30: =Y30 -> 175.0126473 | AF30: -175.0126473 | AG30: =IF(C26>0,L30,"") -> 38.44439262 | AJ30: =AJ27+N30 -> 18.66529156
D31: =Panels!C50 -> 53.74795643 | E31: =Panels!D50 -> 49.62484145 | G31: =IF(Design!$H$17="x",D31,0) -> 53.74795643 | H31: =IF(Design!$H$17="x",E31,0) -> 49.62484145 | I31: =SUM(D31:D32)/2 -> 49.6622113 | J31: =SUM(E31:E32)/2 -> 51.5371085 | K31: =IF(Design!$H$16="x",I31,0) -> 49.6622113 | L31: =IF(Design!$H$16="x",J31,0) -> 51.5371085 | N31: =N30 -> 17.25504852 | O31: 18.66529156 | P31: 350.0252945 | S31: =P31/2 -> 175.0126473 | T31: =-S31 -> -175.0126473 | U31: 0 | W31: 175.0126473 | Y31: 175.0126473 | Z31: =-Y31 -> -175.0126473 | AB31: =PI()*($Q$11*(O31-_L2_)*2+$O$11)^2/2 -> 175.0126473 | AC31: -175.0126473 | AE31: =($H$11*EXP($S$11*(O31-$I$11)))/2 -> 175.0126473 | AF31: -175.0126473 | AG31: =IF(C29>0,L31,"") -> 51.5371085 | AH31: =O30 -> 18.66529156 | AI31: =$R$144/2 -> 928.1100952 | AL31: Cone Comp | AS31: =AU31*COS(ATAN(AQ15)) -> 1.483312915 | AT31: =AU31*SIN(ATAN(AQ15)) -> -0.6387002294 | AU31: =Design!D37/Design!E47 -> 1.614978386
B32: 38 | C32: =C29+1 -> 5 | D32: =AS49 -> 45.57646617 | E32: =AT49 -> 53.44937555 | G32: =IF(Design!$H$17="x",D32,0) -> 45.57646617 | H32: =IF(Design!$H$17="x",E32,0) -> 53.44937555 | K32: =K31 -> 49.6622113 | L32: =L31 -> 51.5371085 | N32: =N31 -> 17.25504852 | O32: 18.66529156 | P32: 350.0252945 | Q32: =ATAN((E31-E32)/(D31-D32))*180/PI() -> -25.08118535 | S32: 175.0126473 | T32: -175.0126473 | U32: 0 | W32: 175.0126473 | Y32: 175.0126473 | Z32: -175.0126473 | AB32: 175.0126473 | AC32: -175.0126473 | AE32: =($H$11*EXP($S$11*(O32-$I$11)))/2 -> 175.0126473 | AF32: -175.0126473 | AG32: =IF(C29>0,L32,"") -> 51.5371085 | AH32: =AH31 -> 18.66529156 | AI32: =-AI31 -> -928.1100952
K33: =K32 -> 49.6622113 | L33: =L32 -> 51.5371085 | M33: =((D31-D32)^2+(E31-E32)^2)^0.5 -> 9.02221226 | N33: =((I31-I28)^2+(J31-J28)^2)^0.5 -> 14.45577955 | O33: =O30+N33 -> 33.12107112 | P33: =((D31-D32)^2+(E31-E32)^2)^0.5*Panels!$T$114 -> 388.8573484 | S33: 194.4286742 | T33: -194.4286742 | U33: -5.596920494e-05 | W33: 194.4287022 | Y33: 194.4287022 | Z33: -194.4287022 | AB33: 190.7647867 | AC33: -190.7647867 | AE33: 187.8860743 | AF33: -187.8860743 | AG33: =IF(C29>0,L33,"") -> 51.5371085 | AJ33: =AJ30+N33 -> 33.12107112 | AL33: S2' | AM33: =AM86-AS31 -> 38.37332942 | AN33: =AM33*AQ15+AR15 -> 40.80439718 | AO33: =AO86 -> 38.11154497 | AP33: =AO33*AQ86+AR86 -> 40.91711904
D34: =D31 -> 53.74795643 | E34: =E31 -> 49.62484145 | G34: =IF(Design!$H$17="x",D34,0) -> 53.74795643 | H34: =IF(Design!$H$17="x",E34,0) -> 49.62484145 | I34: =SUM(D34:D35)/2 -> 50.28285638 | J34: =SUM(E34:E35)/2 -> 52.93976461 | K34: =IF(Design!$H$16="x",I34,0) -> 50.28285638 | L34: =IF(Design!$H$16="x",J34,0) -> 52.93976461 | N34: =N33 -> 14.45577955 | O34: 33.12107112 | P34: 388.8573484 | S34: 194.4286742 | T34: -194.4286742 | U34: -5.596920494e-05 | W34: 194.4287022 | Y34: 194.4287022 | Z34: -194.4287022 | AB34: 190.7647867 | AC34: -190.7647867 | AE34: 187.8860743 | AF34: -187.8860743 | AG34: =IF(C32>0,L34,"") -> 52.93976461 | AH34: =O33 -> 33.12107112 | AI34: =$R$144/2 -> 928.1100952
B35: 37 | C35: =C32+1 -> 6 | D35: =(D32+AN64)/2 -> 46.81775634 | E35: =(E32+AO64)/2 -> 56.25468778 | G35: =IF(Design!$H$17="x",D35,0) -> 46.81775634 | H35: =IF(Design!$H$17="x",E35,0) -> 56.25468778 | K35: =K34 -> 50.28285638 | L35: =L34 -> 52.93976461 | N35: =N34 -> 14.45577955 | O35: 33.12107112 | P35: 388.8573484 | Q35: =ATAN((E34-E35)/(D34-D35))*180/PI() -> -43.73111133 | S35: 194.4286742 | T35: -194.4286742 | U35: -5.596920494e-05 | W35: 194.4287022 | Y35: 194.4287022 | Z35: -194.4287022 | AB35: 190.7647867 | AC35: -190.7647867 | AE35: 187.8860743 | AF35: -187.8860743 | AG35: =IF(C32>0,L35,"") -> 52.93976461 | AH35: =AH34 -> 33.12107112 | AI35: =-AI34 -> -928.1100952
K36: =K35 -> 50.28285638 | L36: =L35 -> 52.93976461 | M36: =((D34-D35)^2+(E34-E35)^2)^0.5 -> 9.590752609 | N36: =((I34-I31)^2+(J34-J31)^2)^0.5 -> 1.533833265 | O36: =O33+N36 -> 34.65490438 | P36: =((D34-D35)^2+(E34-E35)^2)^0.5*Panels!$T$114 -> 413.3614374 | S36: 206.6807187 | T36: -206.6807187 | U36: 20.38374458 | W36: 196.4888464 | Y36: 196.4888464 | Z36: -196.4888464 | AB36: 192.4759965 | AC36: -192.4759965 | AE36: 189.3064021 | AF36: -189.3064021 | AG36: =IF(C32>0,L36,"") -> 52.93976461 | AJ36: =AJ33+N36 -> 34.65490438
D37: =D31 -> 53.74795643 | E37: =E31 -> 49.62484145 | G37: =IF(Design!$H$17="x",D37,0) -> 53.74795643 | H37: =IF(Design!$H$17="x",E37,0) -> 49.62484145 | I37: =SUM(D37:D38)/2 -> 52.58705616 | J37: =SUM(E37:E38)/2 -> 54.34242072 | K37: =IF(Design!$H$16="x",I37,0) -> 52.58705616 | L37: =IF(Design!$H$16="x",J37,0) -> 54.34242072 | N37: =N36 -> 1.533833265 | O37: 34.65490438 | P37: 413.3614374 | S37: 206.6807187 | T37: -206.6807187 | U37: 20.38374458 | W37: 196.4888464 | Y37: 196.4888464 | Z37: -196.4888464 | AB37: 192.4759965 | AC37: -192.4759965 | AE37: 189.3064021 | AF37: -189.3064021 | AG37: =IF(C35>0,L37,"") -> 54.34242072 | AH37: =O36 -> 34.65490438 | AI37: =$R$144/2 -> 928.1100952
B38: 36 | C38: =C35+1 -> 7 | D38: =(Panels!C32+D41)/2 -> 51.42615588 | E38: =Panels!D32 -> 59.06 | G38: =IF(Design!$H$17="x",D38,0) -> 51.42615588 | H38: =IF(Design!$H$17="x",E38,0) -> 59.06 | K38: =K37 -> 52.58705616 | L38: =L37 -> 54.34242072 | N38: =N37 -> 1.533833265 | O38: 34.65490438 | P38: 413.3614374 | Q38: =ATAN((E37-E38)/(D37-D38))*180/PI() -> -76.17535719 | S38: 206.6807187 | T38: -206.6807187 | U38: 20.38374458 | W38: 196.4888464 | Y38: 196.4888464 | Z38: -196.4888464 | AB38: 192.4759965 | AC38: -192.4759965 | AE38: 189.3064021 | AF38: -189.3064021 | AG38: =IF(C35>0,L38,"") -> 54.34242072 | AH38: =AH37 -> 34.65490438 | AI38: =-AI37 -> -928.1100952
K39: =K38 -> 52.58705616 | L39: =L38 -> 54.34242072 | M39: =((D37-D38)^2+(E37-E38)^2)^0.5 -> 9.716633916 | N39: =((I37-I34)^2+(J37-J34)^2)^0.5 -> 2.697550882 | O39: =O36+N39 -> 37.35245526 | P39: =((D37-D38)^2+(E37-E38)^2)^0.5*Panels!$T$114 -> 418.7869218 | S39: 209.3934609 | T39: -209.3934609 | U39: 18.56288209 | W39: 200.1120198 | Y39: 200.1120198 | Z39: -200.1120198 | AB39: 195.5040347 | AC39: -195.5040347 | AE39: 191.8304274 | AF39: -191.8304274 | AG39: =IF(C35>0,L39,"") -> 54.34242072 | AJ39: =AJ36+N39 -> 37.35245526
D40: =D37 -> 53.74795643 | E40: =E37 -> 49.62484145 | G40: =IF(Design!$H$17="x",D40,0) -> 53.74795643 | H40: =IF(Design!$H$17="x",E40,0) -> 49.62484145 | I40: =SUM(D40:D41)/2 -> 53.8948998 | J40: =SUM(E40:E41)/2 -> 54.34242072 | K40: =IF(Design!$H$16="x",I40,0) -> 53.8948998 | L40: =IF(Design!$H$16="x",J40,0) -> 54.34242072 | N40: =N39 -> 2.697550882 | O40: 37.35245526 | P40: 418.7869218 | S40: 209.3934609 | T40: -209.3934609 | U40: 18.56288209 | W40: 200.1120198 | Y40: 200.1120198 | Z40: -200.1120198 | AB40: 195.5040347 | AC40: -195.5040347 | AE40: 191.8304274 | AF40: -191.8304274 | AG40: =IF(C38>0,L40,"") -> 54.34242072 | AH40: =O39 -> 37.35245526 | AI40: =$R$144/2 -> 928.1100952
B41: 35 | C41: =C38+1 -> 8 | D41: =D40+(E41-E40)*Panels!Y5 -> 54.04184317 | E41: =E38 -> 59.06 | G41: =IF(Design!$H$17="x",D41,0) -> 54.04184317 | H41: =IF(Design!$H$17="x",E41,0) -> 59.06 | K41: =K40 -> 53.8948998 | L41: =L40 -> 54.34242072 | N41: =N40 -> 2.697550882 | O41: 37.35245526 | P41: 418.7869218 | Q41: =ATAN((E40-E41)/(D40-D41))*180/PI() -> 88.21592527 | S41: 209.3934609 | T41: -209.3934609 | U41: 18.56288209 | W41: 200.1120198 | Y41: 200.1120198 | Z41: -200.1120198 | AB41: 195.5040347 | AC41: -195.5040347 | AE41: 191.8304274 | AF41: -191.8304274 | AG41: =IF(C38>0,L41,"") -> 54.34242072 | AH41: =AH40 -> 37.35245526 | AI41: =-AI40 -> -928.1100952
K42: =K41 -> 53.8948998 | L42: =L41 -> 54.34242072 | M42: =((D40-D41)^2+(E40-E41)^2)^0.5 -> 9.439734441 | N42: =((I40-I37)^2+(J40-J37)^2)^0.5 -> 1.307843645 | O42: =O39+N42 -> 38.66029891 | P42: =((D40-D41)^2+(E40-E41)^2)^0.5*Panels!$T$114 -> 406.8525544 | S42: 203.4262772 | T42: -203.4262772 | U42: 3.115295121 | W42: 201.8686296 | Y42: 201.8686296 | Z42: -201.8686296 | AB42: 196.9806138 | AC42: -196.9806138 | AE42: 193.0662268 | AF42: -193.0662268 | AG42: =IF(C38>0,L42,"") -> 54.34242072 | AJ42: =AJ39+N42 -> 38.66029891
D43: =Panels!C54 -> 54.90764075 | E43: =Panels!D54 -> 49.62484145 | G43: =IF(Design!$H$17="x",D43,0) -> 54.90764075 | H43: =IF(Design!$H$17="x",E43,0) -> 49.62484145 | I43: =SUM(D43:D44)/2 -> 55.05458412 | J43: =SUM(E43:E44)/2 -> 54.34242072 | K43: =IF(Design!$H$16="x",I43,0) -> 55.05458412 | L43: =IF(Design!$H$16="x",J43,0) -> 54.34242072 | N43: =N42 -> 1.307843645 | O43: 38.66029891 | P43: 406.8525544 | S43: 203.4262772 | T43: -203.4262772 | U43: 3.115295121 | W43: 201.8686296 | Y43: 201.8686296 | Z43: -201.8686296 | AB43: 196.9806138 | AC43: -196.9806138 | AE43: 193.0662268 | AF43: -193.0662268 | AG43: =IF(C41>0,L43,"") -> 54.34242072 | AH43: =O42 -> 38.66029891 | AI43: =$R$144/2 -> 928.1100952
B44: 34 | C44: =C41+1 -> 9 | D44: =D43+(E44-E43)*Panels!Y5 -> 55.2015275 | E44: =E41 -> 59.06 | G44: =IF(Design!$H$17="x",D44,0) -> 55.2015275 | H44: =IF(Design!$H$17="x",E44,0) -> 59.06 | K44: =K43 -> 55.05458412 | L44: =L43 -> 54.34242072 | N44: 1.307843645 | O44: 38.66029891 | P44: 406.8525544 | Q44: =ATAN((E43-E44)/(D43-D44))*180/PI() -> 88.21592527 | S44: 203.4262772 | T44: -203.4262772 | U44: 3.115295121 | W44: 201.8686296 | Y44: 201.8686296 | Z44: -201.8686296 | AB44: 196.9806138 | AC44: -196.9806138 | AE44: 193.0662268 | AF44: -193.0662268 | AG44: =IF(C41>0,L44,"") -> 54.34242072 | AH44: =AH43 -> 38.66029891 | AI44: =-AI43 -> -928.1100952
K45: =K44 -> 55.05458412 | L45: =L44 -> 54.34242072 | M45: =((D43-D44)^2+(E43-E44)^2)^0.5 -> 9.439734441 | N45: =((I43-I40)^2+(J43-J40)^2)^0.5 -> 1.159684321 | O45: =O42+N45 -> 39.81998323 | P45: =((D43-D44)^2+(E43-E44)^2)^0.5*Panels!$T$114 -> 406.8525544 | S45: 203.4262772 | T45: -203.4262772 | U45: 7.12934812e-05 | W45: 203.4262415 | Y45: 203.4262415 | Z45: -203.4262415 | AB45: 198.2945652 | AC45: -198.2945652 | AE45: 194.1686862 | AF45: -194.1686862 | AG45: =IF(C41>0,L45,"") -> 54.34242072 | AJ45: =AJ42+N45 -> 39.81998323
D46: =Panels!C55 -> 73.29734463 | E46: =Panels!D55 -> 48.47756447 | G46: =IF(Design!$H$17="x",D46,0) -> 73.29734463 | H46: =IF(Design!$H$17="x",E46,0) -> 48.47756447 | I46: =SUM(D46:D47)/2 -> 73.46215572 | J46: =SUM(E46:E47)/2 -> 53.76878224 | K46: =IF(Design!$H$16="x",I46,0) -> 73.46215572 | L46: =IF(Design!$H$16="x",J46,0) -> 53.76878224 | N46: =N45 -> 1.159684321 | O46: 39.81998323 | P46: 406.8525544 | S46: =P46/2 -> 203.4262772 | T46: =-S46 -> -203.4262772 | U46: 7.12934812e-05 | W46: 203.4262415 | Y46: 203.4262415 | Z46: =-Y46 -> -203.4262415 | AB46: 198.2945652 | AC46: -198.2945652 | AE46: 194.1686862 | AF46: -194.1686862 | AG46: =IF(C44>0,L46,"") -> 53.76878224 | AH46: =O45 -> 39.81998323 | AI46: =$R$144/2 -> 928.1100952
B47: 33 | C47: =C44+1 -> 10 | D47: =D46+(E47-E46)*Panels!Y5 -> 73.62696681 | E47: =E41 -> 59.06 | G47: =IF(Design!$H$17="x",D47,0) -> 73.62696681 | H47: =IF(Design!$H$17="x",E47,0) -> 59.06 | K47: =K46 -> 73.46215572 | L47: =L46 -> 53.76878224 | N47: 1.159684321 | O47: 39.81998323 | P47: 406.8525544 | Q47: =ATAN((E46-E47)/(D46-D47))*180/PI() -> 88.21592527 | S47: 203.4262772 | T47: -203.4262772 | U47: 7.12934812e-05 | W47: 203.4262415 | Y47: 203.4262415 | Z47: -203.4262415 | AB47: 198.2945652 | AC47: -198.2945652 | AE47: 194.1686862 | AF47: -194.1686862 | AG47: =IF(C44>0,L47,"") -> 53.76878224 | AH47: =AH46 -> 39.81998323 | AI47: =-AI46 -> -928.1100952
K48: =K47 -> 73.46215572 | L48: =L47 -> 53.76878224 | M48: =((D46-D47)^2+(E46-E47)^2)^0.5 -> 10.58756782 | N48: =((I46-I43)^2+(J46-J43)^2)^0.5 -> 18.41650763 | O48: =O45+N48 -> 58.23649086 | P48: =((D46-D47)^2+(E46-E47)^2)^0.5*Panels!$T$114 -> 456.3241732 | S48: 228.1620866 | T48: -228.1620866 | U48: -5.039112239e-09 | W48: 228.1620866 | Y48: 228.1620866 | Z48: -228.1620866 | AB48: 219.746374 | AC48: -219.746374 | AE48: 212.5446178 | AF48: -212.5446178 | AG48: =IF(C44>0,L48,"") -> 53.76878224 | AJ48: =AJ45+N48 -> 58.23649086 | AL48: Panel B | AM48: =Panels!C38 -> 31.94693612 | AN48: =Panels!D38 -> 21.79625092 | AO48: =Panels!C39 -> 48.81046859 | AP48: =Panels!D39 -> 60.96 | AQ48: =(AP48-AN48)/(AO48-AM48) -> 2.322392959 | AR48: =(AP48*AM48-AN48*AO48)/(AM48-AO48) -> -52.39708857
D49: =D46 -> 73.29734463 | E49: =E46 -> 48.47756447 | G49: =IF(Design!$H$17="x",D49,0) -> 73.29734463 | H49: =IF(Design!$H$17="x",E49,0) -> 48.47756447 | I49: =SUM(D49:D50)/2 -> 76.17041402 | J49: =SUM(E49:E50)/2 -> 53.76878224 | K49: =IF(Design!$H$16="x",I49,0) -> 76.17041402 | L49: =IF(Design!$H$16="x",J49,0) -> 53.76878224 | N49: =N48 -> 18.41650763 | O49: 58.23649086 | P49: 456.3241732 | S49: =P49/2 -> 228.1620866 | T49: =-S49 -> -228.1620866 | U49: -5.039112239e-09 | W49: 228.1620866 | Y49: 228.1620866 | Z49: =-Y49 -> -228.1620866 | AB49: 219.746374 | AC49: -219.746374 | AE49: 212.5446178 | AF49: -212.5446178 | AG49: =IF(C47>0,L49,"") -> 53.76878224 | AH49: =O48 -> 58.23649086 | AI49: =$R$144/2 -> 928.1100952 | AL49: Panel G | AM49: =D31 -> 53.74795643 | AN49: =E31 -> 49.62484145 | AO49: =AM49-100*Panels!T7 -> -36.82284835 | AP49: =AN49+100*Panels!U7 -> 92.01504459 | AQ49: =(AP49-AN49)/(AO49-AM49) -> -0.4680338576 | AR49: =(AP49*AM49-AN49*AO49)/(AM49-AO49) -> 74.78070483 | AS49: =(AR48-AR49)/(AQ49-AQ48) -> 45.57646617 | AT49: =AS49*AQ49+AR49 -> 53.44937555
B50: 32 | C50: =C47+1 -> 11 | D50: =(D47+Panels!C33)/2 -> 79.04348341 | E50: =E47 -> 59.06 | G50: =IF(Design!$H$17="x",D50,0) -> 79.04348341 | H50: =IF(Design!$H$17="x",E50,0) -> 59.06 | K50: =K49 -> 76.17041402 | L50: =L49 -> 53.76878224 | N50: 18.41650763 | O50: 58.23649086 | P50: 456.3241732 | Q50: =ATAN((E49-E50)/(D49-D50))*180/PI() -> 61.49855701 | S50: 228.1620866 | T50: -228.1620866 | U50: -5.039112239e-09 | W50: 228.1620866 | Y50: 228.1620866 | Z50: -228.1620866 | AB50: 219.746374 | AC50: -219.746374 | AE50: 212.5446178 | AF50: -212.5446178 | AG50: =IF(C47>0,L50,"") -> 53.76878224 | AH50: =AH49 -> 58.23649086 | AI50: =-AI49 -> -928.1100952
K51: =K50 -> 76.17041402 | L51: =L50 -> 53.76878224 | M51: =((D49-D50)^2+(E49-E50)^2)^0.5 -> 12.04184589 | N51: =((I49-I46)^2+(J49-J46)^2)^0.5 -> 2.708258297 | O51: =O48+N51 -> 60.94474916 | P51: =((D49-D50)^2+(E49-E50)^2)^0.5*Panels!$T$114 -> 519.003558 | S51: 259.501779 | T51: -259.501779 | U51: 55.40427491 | W51: 231.7996415 | Y51: 231.7996415 | Z51: -231.7996415 | AB51: 222.9938953 | AC51: -222.9938953 | AE51: 215.389802 | AF51: -215.389802 | AG51: =IF(C47>0,L51,"") -> 53.76878224 | AJ51: =AJ48+N51 -> 60.94474916 | AL51: Panel H (bottom) | AM51: =Panels!C57 -> 54.82669512 | AN51: =Panels!D57 -> 48.32736397 | AO51: =Panels!C56 -> 73.21639901 | AP51: =Panels!D56 -> 47.180087 | AQ51: =(AP51-AN51)/(AO51-AM51) -> -0.06238691944 | AR51: =(AP51*AM51-AN51*AO51)/(AM51-AO51) -> 51.74783258
D52: =D49 -> 73.29734463 | E52: =E49 -> 48.47756447 | G52: =IF(Design!$H$17="x",D52,0) -> 73.29734463 | H52: =IF(Design!$H$17="x",E52,0) -> 48.47756447 | I52: =SUM(D52:D53)/2 -> 78.87867231 | J52: =SUM(E52:E53)/2 -> 51.12317336 | K52: =IF(Design!$H$16="x",I52,0) -> 78.87867231 | L52: =IF(Design!$H$16="x",J52,0) -> 51.12317336 | N52: =N51 -> 2.708258297 | O52: 60.94474916 | P52: 519.003558 | S52: 259.501779 | T52: -259.501779 | U52: 55.40427491 | W52: 231.7996415 | Y52: 231.7996415 | Z52: -231.7996415 | AB52: 222.9938953 | AC52: -222.9938953 | AE52: 215.389802 | AF52: -215.389802 | AG52: =IF(C50>0,L52,"") -> 51.12317336 | AH52: =O51 -> 60.94474916 | AI52: =$R$144/2 -> 928.1100952 | AL52: Panel G (top) | AM52: =Panels!C62 -> 62.21924302 | AN52: =Panels!D62 -> 35.32003353 | AO52: =AM52+10*Panels!Y5 -> 62.53072348 | AP52: =AN52+10*Panels!X5 -> 45.31518135 | AQ52: =IF(AO52<>AM52,(AP52-AN52)/(AO52-AM52),"") -> 32.08916535 | AR52: =IF(AQ52<>"",(AP52*AM52-AN52*AO52)/(AM52-AO52),AM52) -> -1961.243544 | AS52: =IF(AQ52<>"",(AR51-AR52)/(AQ52-AQ51),AM52) -> 62.60946157 | AT52: =IF(AQ52<>"",AS52*AQ52+AR52,AN51) -> 47.84182115
B53: 31 | C53: =C50+1 -> 12 | D53: =Panels!C33 -> 84.46 | E53: =(E49+E50)/2 -> 53.76878224 | G53: =IF(Design!$H$17="x",D53,0) -> 84.46 | H53: =IF(Design!$H$17="x",E53,0) -> 53.76878224 | K53: =K52 -> 78.87867231 | L53: =L52 -> 51.12317336 | N53: 2.708258297 | O53: 60.94474916 | P53: 519.003558 | Q53: =ATAN((E52-E53)/(D52-D53))*180/PI() -> 25.36145102 | S53: 259.501779 | T53: -259.501779 | U53: 55.40427491 | W53: 231.7996415 | Y53: 231.7996415 | Z53: -231.7996415 | AB53: 222.9938953 | AC53: -222.9938953 | AE53: 215.389802 | AF53: -215.389802 | AG53: =IF(C50>0,L53,"") -> 51.12317336 | AH53: =AH52 -> 60.94474916 | AI53: =-AI52 -> -928.1100952
K54: =K53 -> 78.87867231 | L54: =L53 -> 51.12317336 | M54: =((D52-D53)^2+(E52-E53)^2)^0.5 -> 12.35321255 | N54: =((I52-I49)^2+(J52-J49)^2)^0.5 -> 3.78601497 | O54: =O51+N54 -> 64.73076413 | P54: =((D52-D53)^2+(E52-E53)^2)^0.5*Panels!$T$114 -> 532.423461 | S54: =P54/2 -> 266.2117305 | T54: =-S54 -> -266.2117305 | U54: 58.65392395 | W54: 236.8847685 | Y54: =((_S3_-_S2_)*(O54-_L2_)/(_L3_-_L2_)+_S2_)/2 -> 236.8847685 | Z54: =-Y54 -> -236.8847685 | AB54: 227.5737006 | AC54: -227.5737006 | AE54: 219.4311832 | AF54: -219.4311832 | AG54: =IF(C50>0,L54,"") -> 51.12317336 | AJ54: =AJ51+N54 -> 64.73076413 | AL54: Panel F (top) | AM54: =Panels!C42 -> 29.92848392 | AN54: =Panels!D42 -> 21.91455606 | AO54: =Panels!C45 -> 69.1143305 | AP54: =Panels!D45 -> 19.46987181 | AQ54: =(AP54-AN54)/(AO54-AM54) -> -0.06238691944 | AR54: =(AP54*AM54-AN54*AO54)/(AM54-AO54) -> 23.78170198
D55: =D52 -> 73.29734463 | E55: =E52 -> 48.47756447 | G55: =IF(Design!$H$17="x",D55,0) -> 73.29734463 | H55: =IF(Design!$H$17="x",E55,0) -> 48.47756447 | I55: =SUM(D55:D56)/2 -> 78.87867231 | J55: =SUM(E55:E56)/2 -> 48.30371703 | K55: =IF(Design!$H$16="x",I55,0) -> 78.87867231 | L55: =IF(Design!$H$16="x",J55,0) -> 48.30371703 | N55: =N54 -> 3.78601497 | O55: 64.73076413 | P55: 532.423461 | S55: 266.2117305 | T55: -266.2117305 | U55: 58.65392395 | W55: 236.8847685 | Y55: 236.8847685 | Z55: -236.8847685 | AB55: 227.5737006 | AC55: -227.5737006 | AE55: 219.4311832 | AF55: -219.4311832 | AG55: =IF(C53>0,L55,"") -> 48.30371703 | AH55: =O54 -> 64.73076413 | AI55: =$R$144/2 -> 928.1100952 | AL55: Panel I (bottom) | AM55: =Panels!C61 -> 62.21924302 | AN55: =Panels!D61 -> 34.02003353 | AO55: =AM55+10*Panels!Y5 -> 62.53072348 | AP55: =AN55+10*Panels!X5 -> 44.01518135 | AQ55: =IF(AO55<>AM55,(AP55-AN55)/(AO55-AM55),"") -> 32.08916535 | AR55: =IF(AQ55<>"",(AP55*AM55-AN55*AO55)/(AM55-AO55),AM55) -> -1962.543544 | AS55: =IF(AQ55<>"",(AR54-AR55)/(AQ55-AQ54),AM55) -> 61.78007298 | AT55: =IF(AQ55<>"",AS55*AQ55+AR55,AN54) -> 19.92743354
B56: 30 | C56: =C53+1 -> 13 | D56: =D53 -> 84.46 | E56: =E55-(D56-D55)*Panels!Y5 -> 48.12986958 | G56: =IF(Design!$H$17="x",D56,0) -> 84.46 | H56: =IF(Design!$H$17="x",E56,0) -> 48.12986958 | K56: =K55 -> 78.87867231 | L56: =L55 -> 48.30371703 | N56: =N55 -> 3.78601497 | O56: 64.73076413 | P56: 532.423461 | Q56: =ATAN((E55-E56)/(D55-D56))*180/PI() -> -1.784074725 | S56: 266.2117305 | T56: -266.2117305 | U56: 58.65392395 | W56: 236.8847685 | Y56: 236.8847685 | Z56: -236.8847685 | AB56: 227.5737006 | AC56: -227.5737006 | AE56: 219.4311832 | AF56: -219.4311832 | AG56: =IF(C53>0,L56,"") -> 48.30371703 | AH56: =AH55 -> 64.73076413 | AI56: =-AI55 -> -928.1100952
K57: =K56 -> 78.87867231 | L57: =L56 -> 48.30371703 | M57: =((D55-D56)^2+(E55-E56)^2)^0.5 -> 11.16806907 | N57: =((I55-I52)^2+(J55-J52)^2)^0.5 -> 2.81945633 | O57: =O54+N57 -> 67.55022046 | P57: =((D55-D56)^2+(E55-E56)^2)^0.5*Panels!$T$114 -> 481.3437768 | S57: 240.6718884 | T57: -240.6718884 | U57: 0.0004221171727 | W57: 240.6716773 | Y57: 240.6716773 | Z57: -240.6716773 | AB57: 231.0145376 | AC57: -231.0145376 | AE57: 222.4899948 | AF57: -222.4899948 | AG57: =IF(C53>0,L57,"") -> 48.30371703 | AJ57: =AJ54+N57 -> 67.55022046 | AL57: Panel B (top) | AM57: =AM16 -> 30.20183875 | AN57: =AN16 -> 22.54767301 | AO57: =AO16 -> 47.06537122 | AP57: =AP16 -> 61.71142209 | AQ57: =(AP57-AN57)/(AO57-AM57) -> 2.322392959 | AR57: =(AP57*AM57-AN57*AO57)/(AM57-AO57) -> -47.59286463
D58: =Panels!C56 -> 73.21639901 | E58: =Panels!D56 -> 47.180087 | G58: =IF(Design!$H$17="x",D58,0) -> 73.21639901 | H58: =IF(Design!$H$17="x",E58,0) -> 47.180087 | I58: =SUM(D58:D59)/2 -> 78.8381995 | J58: =SUM(E58:E59)/2 -> 47.00623955 | K58: =IF(Design!$H$16="x",I58,0) -> 78.8381995 | L58: =IF(Design!$H$16="x",J58,0) -> 47.00623955 | N58: =N57 -> 2.81945633 | O58: 67.55022046 | P58: 481.3437768 | S58: 240.6718884 | T58: -240.6718884 | U58: 0.0004221171727 | W58: 240.6716773 | Y58: 240.6716773 | Z58: -240.6716773 | AB58: 231.0145376 | AC58: -231.0145376 | AE58: 222.4899948 | AF58: -222.4899948 | AG58: =IF(C56>0,L58,"") -> 47.00623955 | AH58: =O57 -> 67.55022046 | AI58: =$R$144/2 -> 928.1100952 | AL58: Sample Point 42 | AM58: =Panels!C15 -> 1.9 | AN58: =Panels!D15 -> 60.96 | AO58: =AM58+10*Panels!X6 -> 11.69406019 | AP58: =AN58-10*Panels!Y6 -> 58.94099408 | AQ58: =IF(AO58<>AM58,(AP58-AN58)/(AO58-AM58),"") -> -0.2061459583 | AR58: =IF(AQ58<>"",(AP58*AM58-AN58*AO58)/(AM58-AO58),AM58) -> 61.35167732 | AS58: =IF(AQ58<>"",(AR57-AR58)/(AQ58-AQ57),AM58) -> 43.08596606 | AT58: =IF(AQ58<>"",AS58*AQ58+AR58,AN57) -> 52.46967956
B59: 29 | C59: =C56+1 -> 14 | D59: =D56 -> 84.46 | E59: =E58-(D56-D55)*Panels!Y5 -> 46.8323921 | G59: =IF(Design!$H$17="x",D59,0) -> 84.46 | H59: =IF(Design!$H$17="x",E59,0) -> 46.8323921 | K59: =K58 -> 78.8381995 | L59: =L58 -> 47.00623955 | N59: =N58 -> 2.81945633 | O59: 67.55022046 | P59: 481.3437768 | Q59: =ATAN((E58-E59)/(D58-D59))*180/PI() -> -1.771238916 | S59: 240.6718884 | T59: -240.6718884 | U59: 0.0004221171727 | W59: 240.6716773 | Y59: 240.6716773 | Z59: -240.6716773 | AB59: 231.0145376 | AC59: -231.0145376 | AE59: 222.4899948 | AF59: -222.4899948 | AG59: =IF(C56>0,L59,"") -> 47.00623955 | AH59: =AH58 -> 67.55022046 | AI59: =-AI58 -> -928.1100952
K60: =K59 -> 78.8381995 | L60: =L59 -> 47.00623955 | M60: =((D58-D59)^2+(E58-E59)^2)^0.5 -> 11.24897573 | N60: =((I58-I55)^2+(J58-J55)^2)^0.5 -> 1.298108568 | O60: =O57+N60 -> 68.84832902 | P60: =((D58-D59)^2+(E58-E59)^2)^0.5*Panels!$T$114 -> 484.8308541 | S60: 242.4154271 | T60: -242.4154271 | U60: 0.0004308971725 | W60: 242.4152116 | Y60: 242.4152116 | Z60: -242.4152116 | AB60: 232.6074163 | AC60: -232.6074163 | AE60: 223.9126045 | AF60: -223.9126045 | AG60: =IF(C56>0,L60,"") -> 47.00623955 | AJ60: =AJ57+N60 -> 68.84832902
D61: =D58 -> 73.21639901 | E61: =E58 -> 47.180087 | G61: =IF(Design!$H$17="x",D61,0) -> 73.21639901 | H61: =IF(Design!$H$17="x",E61,0) -> 47.180087 | I61: =SUM(D61:D62)/2 -> 78.8381995 | J61: =SUM(E61:E62)/2 -> 44.12814991 | K61: =IF(Design!$H$16="x",I61,0) -> 78.8381995 | L61: =IF(Design!$H$16="x",J61,0) -> 44.12814991 | N61: =N60 -> 1.298108568 | O61: 68.84832902 | P61: 484.8308541 | S61: 242.4154271 | T61: -242.4154271 | U61: 0.0004308971725 | W61: 242.4152116 | Y61: 242.4152116 | Z61: -242.4152116 | AB61: 232.6074163 | AC61: -232.6074163 | AE61: 223.9126045 | AF61: -223.9126045 | AG61: =IF(C59>0,L61,"") -> 44.12814991 | AH61: =O60 -> 68.84832902 | AI61: =$R$144/2 -> 928.1100952 | AL61: Cone Comp.
B62: 28 | C62: =C59+1 -> 15 | D62: =D59 -> 84.46 | E62: =(E59+Panels!D63)/2 -> 41.07621282 | G62: =IF(Design!$H$17="x",D62,0) -> 84.46 | H62: =IF(Design!$H$17="x",E62,0) -> 41.07621282 | K62: =K61 -> 78.8381995 | L62: =L61 -> 44.12814991 | N62: =N61 -> 1.298108568 | O62: 68.84832902 | P62: 484.8308541 | Q62: =ATAN((E61-E62)/(D61-D62))*180/PI() -> -28.49644575 | S62: 242.4154271 | T62: -242.4154271 | U62: 0.0004308971725 | W62: 242.4152116 | Y62: 242.4152116 | Z62: -242.4152116 | AB62: 232.6074163 | AC62: -232.6074163 | AE62: 223.9126045 | AF62: -223.9126045 | AG62: =IF(C59>0,L62,"") -> 44.12814991 | AH62: =AH61 -> 68.84832902 | AI62: =-AI61 -> -928.1100952 | AL62: CC1 | AN62: =Panels!C38 -> 31.94693612 | AO62: =Panels!D38 -> 21.79625092 | AR62: =(AO62-AO63)/(AN62-AN63) -> 2.95782492 | AS62: =ATAN(AR62)*180/PI() -> 71.32031065
K63: =K62 -> 78.8381995 | L63: =L62 -> 44.12814991 | M63: =((D61-D62)^2+(E61-E62)^2)^0.5 -> 12.79358602 | N63: =((I61-I58)^2+(J61-J58)^2)^0.5 -> 2.878089641 | O63: =O60+N63 -> 71.72641867 | P63: =((D61-D62)^2+(E61-E62)^2)^0.5*Panels!$T$114 -> 551.4035576 | S63: 275.7017788 | T63: -275.7017788 | U63: 58.8418119 | W63: 246.2808728 | Y63: 246.2808728 | Z63: -246.2808728 | AB63: =PI()*($Q$11*(O63-_L2_)*2+$O$11)^2/2 -> 236.1585708 | AC63: -236.1585708 | AE63: 227.0992558 | AF63: -227.0992558 | AG63: =IF(C59>0,L63,"") -> 44.12814991 | AJ63: =AJ60+N63 -> 71.72641867 | AL63: CC2 | AN63: =Path!AM33 -> 38.37332942 | AO63: =Path!AN33 -> 40.80439718 | AR63: =(AO64-AO63)/(AN64-AN63) -> 1.884796207 | AS63: =ATAN(AR63)*180/PI() -> 62.05130692
D64: =D61 -> 73.21639901 | E64: =E61 -> 47.180087 | G64: =IF(Design!$H$17="x",D64,0) -> 73.21639901 | H64: =IF(Design!$H$17="x",E64,0) -> 47.180087 | I64: =SUM(D64:D65)/2 -> 76.02729925 | J64: =SUM(E64:E65)/2 -> 41.25006026 | K64: =IF(Design!$H$16="x",I64,0) -> 76.02729925 | L64: =IF(Design!$H$16="x",J64,0) -> 41.25006026 | N64: =N63 -> 2.878089641 | O64: 71.72641867 | P64: 551.4035576 | S64: 275.7017788 | T64: -275.7017788 | U64: 58.8418119 | W64: 246.2808728 | Y64: 246.2808728 | Z64: -246.2808728 | AB64: 236.1585708 | AC64: -236.1585708 | AE64: 227.0992558 | AF64: -227.0992558 | AG64: =IF(C62>0,L64,"") -> 41.25006026 | AH64: =O63 -> 71.72641867 | AI64: =$R$144/2 -> 928.1100952 | AN64: =Panels!C39-Design!$D$51*Panels!T6 -> 48.0590465 | AO64: =Panels!D32 -> 59.06
B65: 27 | C65: =C62+1 -> 16 | D65: =(D61+D62)/2 -> 78.8381995 | E65: =Panels!D63 -> 35.32003353 | G65: =IF(Design!$H$17="x",D65,0) -> 78.8381995 | H65: =IF(Design!$H$17="x",E65,0) -> 35.32003353 | K65: =K64 -> 76.02729925 | L65: =L64 -> 41.25006026 | N65: =N64 -> 2.878089641 | O65: 71.72641867 | P65: 551.4035576 | Q65: =ATAN((E64-E65)/(D64-D65))*180/PI() -> -64.63851507 | S65: 275.7017788 | T65: -275.7017788 | U65: 58.8418119 | W65: 246.2808728 | Y65: 246.2808728 | Z65: -246.2808728 | AB65: 236.1585708 | AC65: -236.1585708 | AE65: 227.0992558 | AF65: -227.0992558 | AG65: =IF(C62>0,L65,"") -> 41.25006026 | AH65: =AH64 -> 71.72641867 | AI65: =-AI64 -> -928.1100952
K66: =K65 -> 76.02729925 | L66: =L65 -> 41.25006026 | M66: =((D64-D65)^2+(E64-E65)^2)^0.5 -> 13.12499558 | N66: =((I64-I61)^2+(J64-J61)^2)^0.5 -> 4.023003877 | O66: =O63+N66 -> 75.74942254 | P66: =((D64-D65)^2+(E64-E65)^2)^0.5*Panels!$T$114 -> 565.6873095 | S66: 282.8436547 | T66: -282.8436547 | U66: 62.31869396 | W66: 251.6843078 | Y66: 251.6843078 | Z66: -251.6843078 | AB66: 241.1674709 | AC66: -241.1674709 | AE66: 231.6297125 | AF66: -231.6297125 | AG66: =IF(C62>0,L66,"") -> 41.25006026 | AJ66: =AJ63+N66 -> 75.74942254
D67: =D64 -> 73.21639901 | E67: =E64 -> 47.180087 | G67: =IF(Design!$H$17="x",D67,0) -> 73.21639901 | H67: =IF(Design!$H$17="x",E67,0) -> 47.180087 | I67: =SUM(D67:D68)/2 -> 73.03169026 | J67: =SUM(E67:E68)/2 -> 41.25006026 | K67: =IF(Design!$H$16="x",I67,0) -> 73.03169026 | L67: =IF(Design!$H$16="x",J67,0) -> 41.25006026 | N67: =N66 -> 4.023003877 | O67: 75.74942254 | P67: 565.6873095 | S67: 282.8436547 | T67: -282.8436547 | U67: 62.31869396 | W67: 251.6843078 | Y67: 251.6843078 | Z67: -251.6843078 | AB67: 241.1674709 | AC67: -241.1674709 | AE67: 231.6297125 | AF67: -231.6297125 | AG67: =IF(C65>0,L67,"") -> 41.25006026 | AH67: =O66 -> 75.74942254 | AI67: =$R$144/2 -> 928.1100952
B68: 26 | C68: =C65+1 -> 17 | D68: =D67-(E67-E68)*Panels!Y5 -> 72.84698152 | E68: =E65 -> 35.32003353 | G68: =IF(Design!$H$17="x",D68,0) -> 72.84698152 | H68: =IF(Design!$H$17="x",E68,0) -> 35.32003353 | K68: =K67 -> 73.03169026 | L68: =L67 -> 41.25006026 | N68: =N67 -> 4.023003877 | O68: 75.74942254 | P68: 565.6873095 | Q68: =ATAN((E67-E68)/(D67-D68))*180/PI() -> 88.21592527 | S68: 282.8436547 | T68: -282.8436547 | U68: 62.31869396 | W68: 251.6843078 | Y68: 251.6843078 | Z68: -251.6843078 | AB68: 241.1674709 | AC68: -241.1674709 | AE68: 231.6297125 | AF68: -231.6297125 | AG68: =IF(C65>0,L68,"") -> 41.25006026 | AH68: =AH67 -> 75.74942254 | AI68: =-AI67 -> -928.1100952
K69: =K68 -> 73.03169026 | L69: =L68 -> 41.25006026 | M69: =((D67-D68)^2+(E67-E68)^2)^0.5 -> 11.86580538 | N69: =((I67-I64)^2+(J67-J64)^2)^0.5 -> 2.995608991 | O69: =O66+N69 -> 78.74503153 | P69: =((D67-D68)^2+(E67-E68)^2)^0.5*Panels!$T$114 -> 511.4162121 | S69: 255.708106 | T69: -255.708106 | U69: 0.0005855200678 | W69: 255.7078133 | Y69: 255.7078133 | Z69: -255.7078133 | AB69: 244.9313396 | AC69: -244.9313396 | AE69: 235.0617868 | AF69: -235.0617868 | AG69: =IF(C65>0,L69,"") -> 41.25006026 | AJ69: =AJ66+N69 -> 78.74503153
D70: =AS52 -> 62.60946157 | E70: =AT52 -> 47.84182115 | G70: =IF(Design!$H$17="x",D70,0) -> 62.60946157 | H70: =IF(Design!$H$17="x",E70,0) -> 47.84182115 | I70: =SUM(D70:D71)/2 -> 62.4143523 | J70: =SUM(E70:E71)/2 -> 41.58092734 | K70: =IF(Design!$H$16="x",I70,0) -> 62.4143523 | L70: =IF(Design!$H$16="x",J70,0) -> 41.58092734 | N70: =N69 -> 2.995608991 | O70: 78.74503153 | P70: 511.4162121 | S70: 255.708106 | T70: -255.708106 | U70: 0.0005855200678 | W70: 255.7078133 | Y70: 255.7078133 | Z70: -255.7078133 | AB70: 244.9313396 | AC70: -244.9313396 | AE70: 235.0617868 | AF70: -235.0617868 | AG70: =IF(C68>0,L70,"") -> 41.58092734 | AH70: =O69 -> 78.74503153 | AI70: =$R$144/2 -> 928.1100952
B71: 25 | C71: =C68+1 -> 18 | D71: =Panels!C62 -> 62.21924302 | E71: =E68 -> 35.32003353 | G71: =IF(Design!$H$17="x",D71,0) -> 62.21924302 | H71: =IF(Design!$H$17="x",E71,0) -> 35.32003353 | K71: =K70 -> 62.4143523 | L71: =L70 -> 41.58092734 | N71: =N70 -> 2.995608991 | O71: 78.74503153 | P71: 511.4162121 | Q71: =ATAN((E70-E71)/(D70-D71))*180/PI() -> 88.21505975 | S71: 255.708106 | T71: -255.708106 | U71: 0.0005855200678 | W71: 255.7078133 | Y71: 255.7078133 | Z71: -255.7078133 | AB71: 244.9313396 | AC71: -244.9313396 | AE71: 235.0617868 | AF71: -235.0617868 | AG71: =IF(C68>0,L71,"") -> 41.58092734 | AH71: =AH70 -> 78.74503153 | AI71: =-AI70 -> -928.1100952
K72: =K71 -> 62.4143523 | L72: =L71 -> 41.58092734 | M72: =((D70-D71)^2+(E70-E71)^2)^0.5 -> 12.52786636 | N72: =((I70-I67)^2+(J70-J67)^2)^0.5 -> 10.6224921 | O72: =O69+N72 -> 89.36752364 | P72: =((D70-D71)^2+(E70-E71)^2)^0.5*Panels!$T$114 -> 539.9510402 | S72: 269.9755201 | T72: -269.9755201 | U72: 0.0005443340493 | W72: 269.9752479 | Y72: 269.9752479 | Z72: -269.9752479 | AB72: 258.5130028 | AC72: -258.5130028 | AE72: 247.6470625 | AF72: -247.6470625 | AG72: =IF(C68>0,L72,"") -> 41.58092734 | AJ72: =AJ69+N72 -> 89.36752364
D73: =(D70+Panels!C57)/2 -> 58.71807835 | E73: =(E70+Panels!D57)/2 -> 48.08459256 | G73: =IF(Design!$H$17="x",D73,0) -> 58.71807835 | H73: =IF(Design!$H$17="x",E73,0) -> 48.08459256 | I73: =SUM(D73:D74)/2 -> 60.46866069 | J73: =SUM(E73:E74)/2 -> 41.70231305 | K73: =IF(Design!$H$16="x",I73,0) -> 60.46866069 | L73: =IF(Design!$H$16="x",J73,0) -> 41.70231305 | N73: =N72 -> 10.6224921 | O73: 89.36752364 | P73: 539.9510402 | S73: 269.9755201 | T73: -269.9755201 | U73: 0.0005443340493 | W73: 269.9752479 | Y73: 269.9752479 | Z73: -269.9752479 | AB73: 258.5130028 | AC73: -258.5130028 | AE73: 247.6470625 | AF73: -247.6470625 | AG73: =IF(C71>0,L73,"") -> 41.70231305 | AH73: =O72 -> 89.36752364 | AI73: =$R$144/2 -> 928.1100952
B74: 24 | C74: =C71+1 -> 19 | D74: =Panels!C62 -> 62.21924302 | E74: =E71 -> 35.32003353 | G74: =IF(Design!$H$17="x",D74,0) -> 62.21924302 | H74: =IF(Design!$H$17="x",E74,0) -> 35.32003353 | K74: =K73 -> 60.46866069 | L74: =L73 -> 41.70231305 | N74: =N73 -> 10.6224921 | O74: 89.36752364 | P74: 539.9510402 | Q74: =ATAN((E73-E74)/(D73-D74))*180/PI() -> -74.66168495 | S74: 269.9755201 | T74: -269.9755201 | U74: 0.0005443340493 | W74: 269.9752479 | Y74: 269.9752479 | Z74: -269.9752479 | AB74: 258.5130028 | AC74: -258.5130028 | AE74: 247.6470625 | AF74: -247.6470625 | AG74: =IF(C71>0,L74,"") -> 41.70231305 | AH74: =AH73 -> 89.36752364 | AI74: =-AI73 -> -928.1100952
K75: =K74 -> 60.46866069 | L75: =L74 -> 41.70231305 | M75: =((D73-D74)^2+(E73-E74)^2)^0.5 -> 13.23601606 | N75: =((I73-I70)^2+(J73-J70)^2)^0.5 -> 1.949474375 | O75: =O72+N75 -> 91.31699801 | P75: =((D73-D74)^2+(E73-E74)^2)^0.5*Panels!$T$114 -> 570.4722923 | S75: 285.2361461 | T75: -285.2361461 | U75: 25.28498421 | W75: 272.593654 | Y75: 272.593654 | Z75: -272.593654 | AB75: 261.0453528 | AC75: -261.0453528 | AE75: 250.0288903 | AF75: -250.0288903 | AG75: =IF(C71>0,L75,"") -> 41.70231305 | AJ75: =AJ72+N75 -> 91.31699801
D76: =(AS77+D79)/2 -> 52.02718135 | E76: =(AT77+E79)/2 -> 43.35133698 | G76: =IF(Design!$H$17="x",D76,0) -> 52.02718135 | H76: =IF(Design!$H$17="x",E76,0) -> 43.35133698 | I76: =SUM(D76:D77)/2 -> 57.12321219 | J76: =SUM(E76:E77)/2 -> 39.33568526 | K76: =IF(Design!$H$16="x",I76,0) -> 57.12321219 | L76: =IF(Design!$H$16="x",J76,0) -> 39.33568526 | N76: =N75 -> 1.949474375 | O76: 91.31699801 | P76: 570.4722923 | S76: =P76/2 -> 285.2361461 | T76: =-S76 -> -285.2361461 | U76: 25.28498421 | W76: 272.593654 | Y76: 272.593654 | Z76: =-Y76 -> -272.593654 | AB76: 261.0453528 | AC76: -261.0453528 | AE76: 250.0288903 | AF76: -250.0288903 | AG76: =IF(C74>0,L76,"") -> 39.33568526 | AH76: =O75 -> 91.31699801 | AI76: =$R$144/2 -> 928.1100952 | AL76: Panel H | AM76: =Panels!C56 -> 73.21639901 | AN76: =Panels!D56 -> 47.180087 | AO76: =Panels!C57 -> 54.82669512 | AP76: =Panels!D57 -> 48.32736397 | AQ76: =(AP76-AN76)/(AO76-AM76) -> -0.06238691944 | AR76: =(AP76*AM76-AN76*AO76)/(AM76-AO76) -> 51.74783258
B77: 23 | C77: =C74+1 -> 20 | D77: =D80 -> 62.21924302 | E77: =E80 -> 35.32003353 | G77: =IF(Design!$H$17="x",D77,0) -> 62.21924302 | H77: =IF(Design!$H$17="x",E77,0) -> 35.32003353 | K77: =K76 -> 57.12321219 | L77: =L76 -> 39.33568526 | N77: =N76 -> 1.949474375 | O77: 91.31699801 | P77: 570.4722923 | Q77: =ATAN((E76-E77)/(D76-D77))*180/PI() -> -38.23796723 | S77: 285.2361461 | T77: -285.2361461 | U77: 25.28498421 | W77: 272.593654 | Y77: 272.593654 | Z77: -272.593654 | AB77: 261.0453528 | AC77: -261.0453528 | AE77: 250.0288903 | AF77: -250.0288903 | AG77: =IF(C74>0,L77,"") -> 39.33568526 | AH77: =AH76 -> 91.31699801 | AI77: =-AI76 -> -928.1100952 | AL77: Panel G | AM77: =AM80 -> 40.82703163 | AN77: =AN80 -> 21.24224912 | AO77: =AO80 -> 54.90764075 | AP77: =AP80 -> 49.03736185 | AQ77: =IF(AO77<>AM77,(AP77-AN77)/(AO77-AM77),"") -> 1.973999314 | AR77: =IF(AQ77<>"",(AP77*AM77-AN77*AO77)/(AM77-AO77),AM77) -> -59.35028333 | AS77: =IF(AQ77<>"",(AR76-AR77)/(AQ77-AQ76),AM77) -> 54.55650508 | AT77: =AS77*AQ76+AR76 -> 48.34422029
K78: =K77 -> 57.12321219 | L78: =L77 -> 39.33568526 | M78: =((D76-D77)^2+(E76-E77)^2)^0.5 -> 12.97613025 | N78: =((I76-I73)^2+(J76-J73)^2)^0.5 -> 4.097920539 | O78: =O75+N78 -> 95.41491855 | P78: =((D76-D77)^2+(E76-E77)^2)^0.5*Panels!$T$114 -> 559.2712136 | S78: 279.6356068 | T78: -279.6356068 | U78: 3.075789391 | W78: 278.0977121 | Y78: 278.0977121 | Z78: -278.0977121 | AB78: 266.4087577 | AC78: -266.4087577 | AE78: 255.1105981 | AF78: -255.1105981 | AG78: =IF(C74>0,L78,"") -> 39.33568526 | AJ78: =AJ75+N78 -> 95.41491855
D79: =AS80 -> 49.49785762 | E79: =AT80 -> 38.35845367 | G79: =IF(Design!$H$17="x",D79,0) -> 49.49785762 | H79: =IF(Design!$H$17="x",E79,0) -> 38.35845367 | I79: =SUM(D79:D80)/2 -> 55.85855032 | J79: =SUM(E79:E80)/2 -> 36.8392436 | K79: =IF(Design!$H$16="x",I79,0) -> 55.85855032 | L79: =IF(Design!$H$16="x",J79,0) -> 36.8392436 | N79: =N78 -> 4.097920539 | O79: 95.41491855 | P79: 559.2712136 | S79: 279.6356068 | T79: -279.6356068 | U79: 3.075789391 | W79: 278.0977121 | Y79: 278.0977121 | Z79: -278.0977121 | AB79: 266.4087577 | AC79: -266.4087577 | AE79: 255.1105981 | AF79: -255.1105981 | AG79: =IF(C74>0,L79,"") -> 36.8392436 | AH79: =O75 -> 91.31699801 | AI79: =$R$144/2 -> 928.1100952 | AL79: Panel I | AM79: =Panels!C62 -> 62.21924302 | AN79: =Panels!D62 -> 35.32003353 | AO79: =AM79-100*Panels!X8 -> -35.04495548 | AP79: =AN79+100*Panels!Y8 -> 58.55095451 | AQ79: =(AP79-AN79)/(AO79-AM79) -> -0.2388434937 | AR79: =(AP79*AM79-AN79*AO79)/(AM79-AO79) -> 50.18069491
B80: 22 | C80: =C77+1 -> 21 | D80: =D74 -> 62.21924302 | E80: =E71 -> 35.32003353 | G80: =IF(Design!$H$17="x",D80,0) -> 62.21924302 | H80: =IF(Design!$H$17="x",E80,0) -> 35.32003353 | K80: =K79 -> 55.85855032 | L80: =L79 -> 36.8392436 | N80: =N79 -> 4.097920539 | O80: 95.41491855 | P80: 559.2712136 | Q80: =ATAN((E79-E80)/(D79-D80))*180/PI() -> -13.4330628 | S80: 279.6356068 | T80: -279.6356068 | U80: 3.075789391 | W80: 278.0977121 | Y80: 278.0977121 | Z80: -278.0977121 | AB80: 266.4087577 | AC80: -266.4087577 | AE80: 255.1105981 | AF80: -255.1105981 | AG80: =IF(C74>0,L80,"") -> 36.8392436 | AH80: =AH79 -> 91.31699801 | AI80: =-AI79 -> -928.1100952 | AL80: Panel G | AM80: =Panels!C48 -> 40.82703163 | AN80: =Panels!D48 -> 21.24224912 | AO80: =Panels!C49 -> 54.90764075 | AP80: =Panels!D49 -> 49.03736185 | AQ80: =IF(AO80<>AM80,(AP80-AN80)/(AO80-AM80),"") -> 1.973999314 | AR80: =IF(AQ80<>"",(AP80*AM80-AN80*AO80)/(AM80-AO80),AM80) -> -59.35028333 | AS80: =IF(AQ80<>"",(AR79-AR80)/(AQ80-AQ79),AM80) -> 49.49785762 | AT80: =AS80*AQ79+AR79 -> 38.35845367
K81: =K80 -> 55.85855032 | L81: =L80 -> 36.8392436 | M81: =((D79-D80)^2+(E79-E80)^2)^0.5 -> 13.07920653 | N81: =((I79-I76)^2+(J79-J76)^2)^0.5 -> 2.798497915 | O81: =O78+N81 -> 98.21341647 | P81: =((D79-D80)^2+(E79-E80)^2)^0.5*Panels!$T$114 -> 563.7138015 | S81: 281.8569007 | T81: -281.8569007 | U81: 0.0008595884088 | W81: 281.856471 | Y81: 281.856471 | Z81: -281.856471 | AB81: 270.1028036 | AC81: -270.1028036 | AE81: 258.6401545 | AF81: -258.6401545 | AG81: =IF(C74>0,L81,"") -> 36.8392436 | AJ81: =AJ75+N81 -> 94.11549593
D82: =AS83 -> 48.91037802 | E82: =AT83 -> 37.19876935 | G82: =IF(Design!$H$17="x",D82,0) -> 48.91037802 | H82: =IF(Design!$H$17="x",E82,0) -> 37.19876935 | I82: =SUM(D82:D83)/2 -> 55.56481052 | J82: =SUM(E82:E83)/2 -> 35.60940144 | K82: =IF(Design!$H$16="x",I82,0) -> 55.56481052 | L82: =IF(Design!$H$16="x",J82,0) -> 35.60940144 | N82: =N81 -> 2.798497915 | O82: 98.21341647 | P82: 563.7138015 | S82: =P82/2 -> 281.8569007 | T82: =-S82 -> -281.8569007 | U82: 0.0008595884088 | W82: 281.856471 | Y82: 281.856471 | Z82: =-Y82 -> -281.856471 | AB82: 270.1028036 | AC82: -270.1028036 | AE82: 258.6401545 | AF82: -258.6401545 | AG82: =IF(C77>0,L82,"") -> 35.60940144 | AH82: =O78 -> 95.41491855 | AI82: =$R$144/2 -> 928.1100952 | AL82: Panel I | AM82: =Panels!C61 -> 62.21924302 | AN82: =Panels!D61 -> 34.02003353 | AO82: =AM82-100*Panels!X8 -> -35.04495548 | AP82: =AN82+100*Panels!Y8 -> 57.25095451 | AQ82: =(AP82-AN82)/(AO82-AM82) -> -0.2388434937 | AR82: =(AP82*AM82-AN82*AO82)/(AM82-AO82) -> 48.88069491
B83: 21 | C83: =C80+1 -> 22 | D83: =Panels!C61 -> 62.21924302 | E83: =Panels!D61 -> 34.02003353 | G83: =IF(Design!$H$17="x",D83,0) -> 62.21924302 | H83: =IF(Design!$H$17="x",E83,0) -> 34.02003353 | K83: =K82 -> 55.56481052 | L83: =L82 -> 35.60940144 | N83: =N82 -> 2.798497915 | O83: 98.21341647 | P83: 563.7138015 | Q83: =ATAN((E82-E83)/(D82-D83))*180/PI() -> -13.4330628 | S83: 281.8569007 | T83: -281.8569007 | U83: 0.0008595884088 | W83: 281.856471 | Y83: 281.856471 | Z83: -281.856471 | AB83: 270.1028036 | AC83: -270.1028036 | AE83: 258.6401545 | AF83: -258.6401545 | AG83: =IF(C77>0,L83,"") -> 35.60940144 | AH83: =AH82 -> 95.41491855 | AI83: =-AI82 -> -928.1100952 | AL83: Panel G | AM83: =AM80 -> 40.82703163 | AN83: =AN80 -> 21.24224912 | AO83: =AO80 -> 54.90764075 | AP83: =AP80 -> 49.03736185 | AQ83: =IF(AO83<>AM83,(AP83-AN83)/(AO83-AM83),"") -> 1.973999314 | AR83: =IF(AQ83<>"",(AP83*AM83-AN83*AO83)/(AM83-AO83),AM83) -> -59.35028333 | AS83: =IF(AQ83<>"",(AR82-AR83)/(AQ83-AQ82),AM83) -> 48.91037802 | AT83: =AS83*AQ82+AR82 -> 37.19876935
K84: =K83 -> 55.56481052 | L84: =L83 -> 35.60940144 | M84: =((D82-D83)^2+(E82-E83)^2)^0.5 -> 13.68321048 | N84: =((I82-I79)^2+(J82-J79)^2)^0.5 -> 1.264434581 | O84: =O81+N84 -> 99.47785105 | P84: =((D82-D83)^2+(E82-E83)^2)^0.5*Panels!$T$114 -> 589.7463715 | S84: 294.8731858 | T84: -294.8731858 | U84: 22.63681846 | W84: 283.5547765 | Y84: 283.5547765 | Z84: -283.5547765 | AB84: 271.7802125 | AC84: -271.7802125 | AE84: 260.2508766 | AF84: -260.2508766 | AG84: =IF(C77>0,L84,"") -> 35.60940144 | AJ84: =AJ78+N84 -> 96.67935313
D85: =(D82+Panels!C48)/2 -> 44.86870483 | E85: =(E82+Panels!D48)/2 -> 29.22050923 | G85: =IF(Design!$H$17="x",D85,0) -> 44.86870483 | H85: =IF(Design!$H$17="x",E85,0) -> 29.22050923 | I85: =SUM(D85:D86)/2 -> 53.54397393 | J85: =SUM(E85:E86)/2 -> 31.62027138 | K85: =IF(Design!$H$16="x",I85,0) -> 53.54397393 | L85: =IF(Design!$H$16="x",J85,0) -> 31.62027138 | N85: =N84 -> 1.264434581 | O85: 99.47785105 | P85: 589.7463715 | S85: =P85/2 -> 294.8731858 | T85: =-S85 -> -294.8731858 | U85: 22.63681846 | W85: 283.5547765 | Y85: 283.5547765 | Z85: =-Y85 -> -283.5547765 | AB85: 271.7802125 | AC85: -271.7802125 | AE85: 260.2508766 | AF85: -260.2508766 | AG85: =IF(C83>0,L85,"") -> 31.62027138 | AH85: =O84 -> 99.47785105 | AI85: =$R$144/2 -> 928.1100952
B86: =B89+1 -> 20 | C86: =C83+1 -> 23 | D86: =D83 -> 62.21924302 | E86: =E83 -> 34.02003353 | G86: =IF(Design!$H$17="x",D86,0) -> 62.21924302 | H86: =IF(Design!$H$17="x",E86,0) -> 34.02003353 | K86: =K85 -> 53.54397393 | L86: =L85 -> 31.62027138 | N86: =N85 -> 1.264434581 | O86: 99.47785105 | P86: 589.7463715 | Q86: =ATAN((E85-E86)/(D85-D86))*180/PI() -> 15.46256521 | S86: 294.8731858 | T86: -294.8731858 | U86: 22.63681846 | W86: 283.5547765 | Y86: =((_S3_-_S2_)*(O86-_L2_)/(_L3_-_L2_)+_S2_)/2 -> 283.5547765 | Z86: -283.5547765 | AB86: 271.7802125 | AC86: -271.7802125 | AE86: 260.2508766 | AF86: -260.2508766 | AG86: =IF(C83>0,L86,"") -> 31.62027138 | AH86: =AH85 -> 99.47785105 | AI86: =-AI85 -> -928.1100952 | AL86: S2 Section | AM86: =AS17 -> 39.85664234 | AN86: =AT17 -> 40.16569695 | AO86: =AO15 -> 38.11154497 | AP86: =AP15 -> 40.91711904 | AQ86: =(AP86-AN86)/(AO86-AM86) -> -0.4305903513 | AR86: =(AP86*AM86-AN86*AO86)/(AM86-AO86) -> 57.32758258
K87: =K86 -> 53.54397393 | L87: =L86 -> 31.62027138 | M87: =((D85-D86)^2+(E85-E86)^2)^0.5 -> 18.00212791 | N87: =((I85-I82)^2+(J85-J82)^2)^0.5 -> 4.47179373 | O87: =O84+N87 -> 103.9496448 | P87: =((D85-D86)^2+(E85-E86)^2)^0.5*Panels!$T$114 -> 775.8917127 | S87: 387.9458564 | T87: -387.9458564 | U87: 196.7697196 | W87: 289.5609966 | Y87: 289.5609966 | Z87: -289.5609966 | AB87: 277.7541835 | AC87: -277.7541835 | AE87: 266.0282434 | AF87: -266.0282434 | AG87: =IF(C83>0,L87,"") -> 31.62027138 | AJ87: =AJ84+N87 -> 101.1511469
D88: =(Panels!C48+D91)/2 -> 51.30355231 | E88: =(Panels!D48+E91)/2 -> 20.58484133 | G88: =IF(Design!$H$17="x",D88,0) -> 51.30355231 | H88: =IF(Design!$H$17="x",E88,0) -> 20.58484133 | I88: =SUM(D88:D89)/2 -> 56.76139767 | J88: =SUM(E88:E89)/2 -> 27.30243743 | K88: =IF(Design!$H$16="x",I88,0) -> 56.76139767 | L88: =IF(Design!$H$16="x",J88,0) -> 27.30243743 | N88: =N87 -> 4.47179373 | O88: 103.9496448 | P88: 775.8917127 | S88: 387.9458564 | T88: -387.9458564 | U88: 196.7697196 | W88: 289.5609966 | Y88: 289.5609966 | Z88: -289.5609966 | AB88: 277.7541835 | AC88: -277.7541835 | AE88: 266.0282434 | AF88: -266.0282434 | AG88: =IF(C86>0,L88,"") -> 27.30243743 | AH88: =O87 -> 103.9496448 | AI88: =$R$144/2 -> 928.1100952
B89: 19 | C89: =C86+1 -> 24 | D89: =D86 -> 62.21924302 | E89: =E86 -> 34.02003353 | G89: =IF(Design!$H$17="x",D89,0) -> 62.21924302 | H89: =IF(Design!$H$17="x",E89,0) -> 34.02003353 | K89: =K88 -> 56.76139767 | L89: =L88 -> 27.30243743 | N89: =N88 -> 4.47179373 | O89: 103.9496448 | P89: 775.8917127 | Q89: =ATAN((E88-E89)/(D88-D89))*180/PI() -> 50.90717623 | S89: 387.9458564 | T89: -387.9458564 | U89: =(S89-W89)*2 -> 196.7697196 | W89: =IF($H$16="Par",Y89,0)+IF($H$16="Con",AB89,0)+IF($H$16="Exp",AE89,0) -> 289.5609966 | Y89: 289.5609966 | Z89: -289.5609966 | AB89: 277.7541835 | AC89: =-AB89 -> -277.7541835 | AE89: 266.0282434 | AF89: -266.0282434 | AG89: =IF(C86>0,L89,"") -> 27.30243743 | AH89: =AH88 -> 103.9496448 | AI89: =-AI88 -> -928.1100952
K90: =K89 -> 56.76139767 | L90: =L89 -> 27.30243743 | M90: =((D88-D89)^2+(E88-E89)^2)^0.5 -> 17.31059483 | N90: =((I88-I85)^2+(J88-J85)^2)^0.5 -> 5.384747492 | O90: =O87+N90 -> 109.3343923 | P90: =((D88-D89)^2+(E88-E89)^2)^0.5*Panels!$T$114 -> 746.0866371 | S90: 373.0433185 | T90: -373.0433185 | U90: 152.4997647 | W90: 296.7934362 | Y90: 296.7934362 | Z90: -296.7934362 | AB90: 285.033977 | AC90: -285.033977 | AE90: 273.1555654 | AF90: -273.1555654 | AG90: =IF(C86>0,L90,"") -> 27.30243743 | AJ90: =AJ87+N90 -> 106.5358944
D91: =AS55 -> 61.78007298 | E91: =AT55 -> 19.92743354 | G91: =IF(Design!$H$17="x",D91,0) -> 61.78007298 | H91: =IF(Design!$H$17="x",E91,0) -> 19.92743354 | I91: =SUM(D91:D92)/2 -> 61.999658 | J91: =SUM(E91:E92)/2 -> 26.97373354 | K91: =IF(Design!$H$16="x",I91,0) -> 61.999658 | L91: =IF(Design!$H$16="x",J91,0) -> 26.97373354 | N91: =N90 -> 5.384747492 | O91: 109.3343923 | P91: 746.0866371 | S91: 373.0433185 | T91: -373.0433185 | U91: 152.4997647 | W91: 296.7934362 | Y91: 296.7934362 | Z91: -296.7934362 | AB91: 285.033977 | AC91: -285.033977 | AE91: 273.1555654 | AF91: -273.1555654 | AG91: =IF(C89>0,L91,"") -> 26.97373354 | AH91: =O90 -> 109.3343923 | AI91: =$R$144/2 -> 928.1100952
B92: 18 | C92: =C89+1 -> 25 | D92: =D89 -> 62.21924302 | E92: =E89 -> 34.02003353 | G92: =IF(Design!$H$17="x",D92,0) -> 62.21924302 | H92: =IF(Design!$H$17="x",E92,0) -> 34.02003353 | K92: =K91 -> 61.999658 | L92: =L91 -> 26.97373354 | N92: =N91 -> 5.384747492 | O92: 109.3343923 | P92: 746.0866371 | Q92: =ATAN((E91-E92)/(D91-D92))*180/PI() -> 88.21505975 | S92: 373.0433185 | T92: -373.0433185 | U92: 152.4997647 | W92: 296.7934362 | Y92: 296.7934362 | Z92: -296.7934362 | AB92: 285.033977 | AC92: -285.033977 | AE92: 273.1555654 | AF92: -273.1555654 | AG92: =IF(C89>0,L92,"") -> 26.97373354 | AH92: =AH91 -> 109.3343923 | AI92: =-AI91 -> -928.1100952
K93: =K92 -> 61.999658 | L93: =L92 -> 26.97373354 | M93: =((D91-D92)^2+(E91-E92)^2)^0.5 -> 14.09944129 | N93: =((I91-I88)^2+(J91-J88)^2)^0.5 -> 5.248563386 | O93: =O90+N93 -> 114.5829557 | P93: =((D91-D92)^2+(E91-E92)^2)^0.5*Panels!$T$114 -> 607.6859198 | S93: 303.8429599 | T93: -303.8429599 | U93: -4.752910513e-06 | W93: 303.8429623 | Y93: 303.8429623 | Z93: -303.8429623 | AB93: 292.2202868 | AC93: -292.2202868 | AE93: 280.2863605 | AF93: -280.2863605 | AG93: =IF(C89>0,L93,"") -> 26.97373354 | AJ93: =AJ90+N93 -> 111.7844577
D94: =Panels!C45+(E94-E95)*Panels!Y5 -> 69.5675396 | E94: =E92 -> 34.02003353 | G94: =IF(Design!$H$17="x",D94,0) -> 69.5675396 | H94: =IF(Design!$H$17="x",E94,0) -> 34.02003353 | I94: =SUM(D94:D95)/2 -> 69.34093505 | J94: =SUM(E94:E95)/2 -> 26.74495267 | K94: =IF(Design!$H$16="x",I94,0) -> 69.34093505 | L94: =IF(Design!$H$16="x",J94,0) -> 26.74495267 | N94: =N93 -> 5.248563386 | O94: 114.5829557 | P94: 607.6859198 | S94: 303.8429599 | T94: -303.8429599 | U94: -4.752910513e-06 | W94: 303.8429623 | Y94: 303.8429623 | Z94: -303.8429623 | AB94: 292.2202868 | AC94: -292.2202868 | AE94: 280.2863605 | AF94: -280.2863605 | AG94: =IF(C92>0,L94,"") -> 26.74495267 | AH94: =O93 -> 114.5829557 | AI94: =$R$144/2 -> 928.1100952
B95: 17 | C95: =C92+1 -> 26 | D95: =Panels!C45 -> 69.1143305 | E95: =Panels!D45 -> 19.46987181 | G95: =IF(Design!$H$17="x",D95,0) -> 69.1143305 | H95: =IF(Design!$H$17="x",E95,0) -> 19.46987181 | K95: =K94 -> 69.34093505 | L95: =L94 -> 26.74495267 | N95: =N94 -> 5.248563386 | O95: 114.5829557 | P95: 607.6859198 | Q95: =ATAN((E94-E95)/(D94-D95))*180/PI() -> 88.21592527 | S95: 303.8429599 | T95: -303.8429599 | U95: -4.752910513e-06 | W95: 303.8429623 | Y95: 303.8429623 | Z95: -303.8429623 | AB95: =PI()*($Q$11*(O95-_L2_)*2+$O$11)^2/2 -> 292.2202868 | AC95: -292.2202868 | AE95: 280.2863605 | AF95: -280.2863605 | AG95: =IF(C92>0,L95,"") -> 26.74495267 | AH95: =AH94 -> 114.5829557 | AI95: =-AI94 -> -928.1100952
K96: =K95 -> 69.34093505 | L96: =L95 -> 26.74495267 | M96: =((D94-D95)^2+(E94-E95)^2)^0.5 -> 14.5572183 | N96: =((I94-I91)^2+(J94-J91)^2)^0.5 -> 7.344841004 | O96: =O93+N96 -> 121.9277967 | P96: =((D94-D95)^2+(E94-E95)^2)^0.5*Panels!$T$114 -> 627.4161088 | S96: 313.7080544 | T96: -313.7080544 | U96: -3.31187332e-05 | W96: 313.708071 | Y96: 313.708071 | Z96: -313.708071 | AB96: 302.4270128 | AC96: -302.4270128 | AE96: =($H$11*EXP($S$11*(O96-$I$11)))/2 -> 290.578801 | AF96: -290.578801 | AG96: =IF(C92>0,L96,"") -> 26.74495267 | AJ96: =AJ93+N96 -> 119.1292987
D97: =(D94+Panels!C6)/2 -> 77.0137698 | E97: =E94 -> 34.02003353 | G97: =IF(Design!$H$17="x",D97,0) -> 77.0137698 | H97: =IF(Design!$H$17="x",E97,0) -> 34.02003353 | I97: =SUM(D97:D98)/2 -> 73.06405015 | J97: =SUM(E97:E98)/2 -> 26.74495267 | K97: =IF(Design!$H$16="x",I97,0) -> 73.06405015 | L97: =IF(Design!$H$16="x",J97,0) -> 26.74495267 | N97: =N96 -> 7.344841004 | O97: 121.9277967 | P97: 627.4161088 | S97: 313.7080544 | T97: -313.7080544 | U97: -3.31187332e-05 | W97: 313.708071 | Y97: 313.708071 | Z97: -313.708071 | AB97: 302.4270128 | AC97: -302.4270128 | AE97: 290.578801 | AF97: -290.578801 | AG97: =IF(C95>0,L97,"") -> 26.74495267 | AH97: =O96 -> 121.9277967 | AI97: =$R$144/2 -> 928.1100952
B98: 16 | C98: =C95+1 -> 27 | D98: =D95 -> 69.1143305 | E98: =E95 -> 19.46987181 | G98: =IF(Design!$H$17="x",D98,0) -> 69.1143305 | H98: =IF(Design!$H$17="x",E98,0) -> 19.46987181 | K98: =K97 -> 73.06405015 | L98: =L97 -> 26.74495267 | N98: =N97 -> 7.344841004 | O98: 121.9277967 | P98: 627.4161088 | Q98: =ATAN((E97-E98)/(D97-D98))*180/PI() -> 61.50198883 | S98: 313.7080544 | T98: -313.7080544 | U98: -3.31187332e-05 | W98: 313.708071 | Y98: 313.708071 | Z98: -313.708071 | AB98: 302.4270128 | AC98: -302.4270128 | AE98: 290.578801 | AF98: -290.578801 | AG98: =IF(C95>0,L98,"") -> 26.74495267 | AH98: =AH97 -> 121.9277967 | AI98: =-AI97 -> -928.1100952
K99: =K98 -> 73.06405015 | L99: =L98 -> 26.74495267 | M99: =((D97-D98)^2+(E97-E98)^2)^0.5 -> 16.55621779 | N99: =((I97-I94)^2+(J97-J94)^2)^0.5 -> 3.7231151 | O99: =O96+N99 -> 125.6509118 | P99: =((D97-D98)^2+(E97-E98)^2)^0.5*Panels!$T$114 -> 713.5729866 | S99: 356.7864933 | T99: -356.7864933 | U99: 76.15555674 | W99: 318.708715 | Y99: 318.708715 | Z99: -318.708715 | AB99: 307.6677384 | AC99: -307.6677384 | AE99: 295.9395499 | AF99: -295.9395499 | AG99: =IF(C95>0,L99,"") -> 26.74495267 | AJ99: =AJ96+N99 -> 122.8524138
D100: =Panels!C6 -> 84.46 | E100: =(E97+E103)/2 -> 26.50595887 | G100: =IF(Design!$H$17="x",D100,0) -> 84.46 | H100: =IF(Design!$H$17="x",E100,0) -> 26.50595887 | I100: =SUM(D100:D101)/2 -> 76.78716525 | J100: =SUM(E100:E101)/2 -> 22.98791534 | K100: =IF(Design!$H$16="x",I100,0) -> 76.78716525 | L100: =IF(Design!$H$16="x",J100,0) -> 22.98791534 | N100: =N99 -> 3.7231151 | O100: 125.6509118 | P100: 713.5729866 | S100: 356.7864933 | T100: -356.7864933 | U100: 76.15555674 | W100: 318.708715 | Y100: 318.708715 | Z100: -318.708715 | AB100: 307.6677384 | AC100: -307.6677384 | AE100: 295.9395499 | AF100: -295.9395499 | AG100: =IF(C98>0,L100,"") -> 22.98791534 | AH100: =O99 -> 125.6509118 | AI100: =$R$144/2 -> 928.1100952
B101: 15 | C101: =C98+1 -> 28 | D101: =D98 -> 69.1143305 | E101: =E98 -> 19.46987181 | G101: =IF(Design!$H$17="x",D101,0) -> 69.1143305 | H101: =IF(Design!$H$17="x",E101,0) -> 19.46987181 | K101: =K100 -> 76.78716525 | L101: =L100 -> 22.98791534 | N101: =N100 -> 3.7231151 | O101: 125.6509118 | P101: 713.5729866 | Q101: =ATAN((E100-E101)/(D100-D101))*180/PI() -> 24.63175689 | S101: 356.7864933 | T101: -356.7864933 | U101: 76.15555674 | W101: 318.708715 | Y101: 318.708715 | Z101: -318.708715 | AB101: 307.6677384 | AC101: -307.6677384 | AE101: 295.9395499 | AF101: -295.9395499 | AG101: =IF(C98>0,L101,"") -> 22.98791534 | AH101: =AH100 -> 125.6509118 | AI101: =-AI100 -> -928.1100952
K102: =K101 -> 76.78716525 | L102: =L101 -> 22.98791534 | M102: =((D100-D101)^2+(E100-E101)^2)^0.5 -> 16.88182731 | N102: =((I100-I97)^2+(J100-J97)^2)^0.5 -> 5.289320899 | O102: =O99+N102 -> 130.9402327 | P102: =((D100-D101)^2+(E100-E101)^2)^0.5*Panels!$T$114 -> 727.6067572 | S102: 363.8033786 | T102: -363.8033786 | U102: 75.9807895 | W102: 325.8129839 | Y102: 325.8129839 | Z102: -325.8129839 | AB102: 315.1904936 | AC102: -315.1904936 | AE102: 303.7259018 | AF102: -303.7259018 | AG102: =IF(C98>0,L102,"") -> 22.98791534 | AJ102: =AJ99+N102 -> 128.1417347
D103: =D100 -> 84.46 | E103: =E101-(D103-D104)*Panels!Y5 -> 18.9918842 | G103: =IF(Design!$H$17="x",D103,0) -> 84.46 | H103: =IF(Design!$H$17="x",E103,0) -> 18.9918842 | I103: =SUM(D103:D104)/2 -> 76.78716525 | J103: =SUM(E103:E104)/2 -> 19.230878 | K103: =IF(Design!$H$16="x",I103,0) -> 76.78716525 | L103: =IF(Design!$H$16="x",J103,0) -> 19.230878 | N103: =N102 -> 5.289320899 | O103: 130.9402327 | P103: 727.6067572 | S103: 363.8033786 | T103: -363.8033786 | U103: 75.9807895 | W103: 325.8129839 | Y103: 325.8129839 | Z103: -325.8129839 | AB103: 315.1904936 | AC103: -315.1904936 | AE103: 303.7259018 | AF103: -303.7259018 | AG103: =IF(C101>0,L103,"") -> 19.230878 | AH103: =O102 -> 130.9402327 | AI103: =$R$144/2 -> 928.1100952
B104: 14 | C104: =C101+1 -> 29 | D104: =D101 -> 69.1143305 | E104: =E101 -> 19.46987181 | G104: =IF(Design!$H$17="x",D104,0) -> 69.1143305 | H104: =IF(Design!$H$17="x",E104,0) -> 19.46987181 | K104: =K103 -> 76.78716525 | L104: =L103 -> 19.230878 | N104: =N103 -> 5.289320899 | O104: 130.9402327 | P104: 727.6067572 | Q104: =ATAN((E103-E104)/(D103-D104))*180/PI() -> -1.784074725 | S104: 363.8033786 | T104: -363.8033786 | U104: 75.9807895 | W104: 325.8129839 | Y104: 325.8129839 | Z104: -325.8129839 | AB104: 315.1904936 | AC104: -315.1904936 | AE104: 303.7259018 | AF104: -303.7259018 | AG104: =IF(C101>0,L104,"") -> 19.230878 | AH104: =AH103 -> 130.9402327 | AI104: =-AI103 -> -928.1100952
K105: =K104 -> 76.78716525 | L105: =L104 -> 19.230878 | M105: =((D103-D104)^2+(E103-E104)^2)^0.5 -> 15.35311188 | N105: =((I103-I100)^2+(J103-J100)^2)^0.5 -> 3.757037334 | O105: =O102+N105 -> 134.69727 | P105: =((D103-D104)^2+(E103-E104)^2)^0.5*Panels!$T$114 -> 661.7191222 | S105: 330.8595611 | T105: -330.8595611 | U105: 0.0007422750954 | W105: 330.85919 | Y105: 330.85919 | Z105: -330.85919 | AB105: 320.5891443 | AC105: -320.5891443 | AE105: 309.3807206 | AF105: -309.3807206 | AG105: =IF(C101>0,L105,"") -> 19.230878 | AJ105: =AJ102+N105 -> 131.8987721
D106: =(D103+D109)/2 -> 84.46 | E106: =Panels!D44-(D103-D104)*Panels!Y5 -> 17.69440672 | G106: =IF(Design!$H$17="x",D106,0) -> 84.46 | H106: =IF(Design!$H$17="x",E106,0) -> 17.69440672 | I106: =SUM(D106:D107)/2 -> 76.74669244 | J106: =SUM(E106:E107)/2 -> 17.93340053 | K106: =IF(Design!$H$16="x",I106,0) -> 76.74669244 | L106: =IF(Design!$H$16="x",J106,0) -> 17.93340053 | N106: =N105 -> 3.757037334 | O106: 134.69727 | P106: 661.7191222 | S106: 330.8595611 | T106: -330.8595611 | U106: 0.0007422750954 | W106: 330.85919 | Y106: 330.85919 | Z106: -330.85919 | AB106: 320.5891443 | AC106: -320.5891443 | AE106: 309.3807206 | AF106: -309.3807206 | AG106: =IF(C104>0,L106,"") -> 17.93340053 | AH106: =O105 -> 134.69727 | AI106: =$R$144/2 -> 928.1100952
B107: 13 | C107: =C104+1 -> 30 | D107: =Panels!C44 -> 69.03338488 | E107: =Panels!D44 -> 18.17239433 | G107: =IF(Design!$H$17="x",D107,0) -> 69.03338488 | H107: =IF(Design!$H$17="x",E107,0) -> 18.17239433 | K107: =K106 -> 76.74669244 | L107: =L106 -> 17.93340053 | N107: =N106 -> 3.757037334 | O107: 134.69727 | P107: 661.7191222 | Q107: =ATAN((E106-E107)/(D106-D107))*180/PI() -> -1.774719436 | S107: 330.8595611 | T107: -330.8595611 | U107: 0.0007422750954 | W107: 330.85919 | Y107: 330.85919 | Z107: -330.85919 | AB107: 320.5891443 | AC107: -320.5891443 | AE107: 309.3807206 | AF107: -309.3807206 | AG107: =IF(C104>0,L107,"") -> 17.93340053 | AH107: =AH106 -> 134.69727 | AI107: =-AI106 -> -928.1100952
K108: =K107 -> 76.74669244 | L108: =L107 -> 17.93340053 | M108: =((D106-D107)^2+(E106-E107)^2)^0.5 -> 15.43401847 | N108: =((I106-I103)^2+(J106-J103)^2)^0.5 -> 1.298108568 | O108: =O105+N108 -> 135.9953786 | P108: =((D106-D107)^2+(E106-E107)^2)^0.5*Panels!$T$114 -> 665.2061963 | S108: 332.6030981 | T108: -332.6030981 | U108: 0.0007477560948 | W108: 332.6027243 | Y108: 332.6027243 | Z108: -332.6027243 | AB108: 322.4651091 | AC108: -322.4651091 | AE108: 311.3589129 | AF108: -311.3589129 | AG108: =IF(C104>0,L108,"") -> 17.93340053 | AJ108: =AJ105+N108 -> 133.1968806
D109: =D103 -> 84.46 | E109: =(E106+Panels!D25)/2 -> 9.79720336 | G109: =IF(Design!$H$17="x",D109,0) -> 84.46 | H109: =IF(Design!$H$17="x",E109,0) -> 9.79720336 | I109: =SUM(D109:D110)/2 -> 76.74669244 | J109: =SUM(E109:E110)/2 -> 13.98479885 | K109: =IF(Design!$H$16="x",I109,0) -> 76.74669244 | L109: =IF(Design!$H$16="x",J109,0) -> 13.98479885 | N109: =N108 -> 1.298108568 | O109: 135.9953786 | P109: 665.2061963 | S109: 332.6030981 | T109: -332.6030981 | U109: 0.0007477560948 | W109: 332.6027243 | Y109: 332.6027243 | Z109: -332.6027243 | AB109: 322.4651091 | AC109: -322.4651091 | AE109: 311.3589129 | AF109: -311.3589129 | AG109: =IF(C107>0,L109,"") -> 13.98479885 | AH109: =O108 -> 135.9953786 | AI109: =$R$144/2 -> 928.1100952
B110: 12 | C110: =C107+1 -> 31 | D110: =Panels!C44 -> 69.03338488 | E110: =Panels!D44 -> 18.17239433 | G110: =IF(Design!$H$17="x",D110,0) -> 69.03338488 | H110: =IF(Design!$H$17="x",E110,0) -> 18.17239433 | K110: =K109 -> 76.74669244 | L110: =L109 -> 13.98479885 | N110: =N109 -> 1.298108568 | O110: 135.9953786 | P110: 665.2061963 | Q110: =ATAN((E109-E110)/(D109-D110))*180/PI() -> -28.49776934 | S110: 332.6030981 | T110: -332.6030981 | U110: 0.0007477560948 | W110: 332.6027243 | Y110: 332.6027243 | Z110: -332.6027243 | AB110: 322.4651091 | AC110: -322.4651091 | AE110: 311.3589129 | AF110: -311.3589129 | AG110: =IF(C107>0,L110,"") -> 13.98479885 | AH110: =AH109 -> 135.9953786 | AI110: =-AI109 -> -928.1100952
K111: =K110 -> 76.74669244 | L111: =L110 -> 13.98479885 | M111: =((D109-D110)^2+(E109-E110)^2)^0.5 -> 17.55346911 | N111: =((I109-I106)^2+(J109-J106)^2)^0.5 -> 3.94860168 | O111: =O108+N111 -> 139.9439802 | P111: =((D109-D110)^2+(E109-E110)^2)^0.5*Panels!$T$114 -> 756.5545188 | S111: 378.2772594 | T111: -378.2772594 | U111: 80.74206474 | W111: 337.906227 | Y111: 337.906227 | Z111: -337.906227 | AB111: 328.2050825 | AC111: -328.2050825 | AE111: 317.4542941 | AF111: -317.4542941 | AG111: =IF(C107>0,L111,"") -> 13.98479885 | AJ111: =AJ108+N111 -> 137.1454823
D112: =(D113+D109)/2 -> 76.74669244 | E112: =Panels!D25 -> 1.9 | G112: =IF(Design!$H$17="x",D112,0) -> 76.74669244 | H112: =IF(Design!$H$17="x",E112,0) -> 1.9 | I112: =SUM(D112:D113)/2 -> 72.89003866 | J112: =SUM(E112:E113)/2 -> 10.03619717 | K112: =IF(Design!$H$16="x",I112,0) -> 72.89003866 | L112: =IF(Design!$H$16="x",J112,0) -> 10.03619717 | N112: =N111 -> 3.94860168 | O112: 139.9439802 | P112: 756.5545188 | S112: 378.2772594 | T112: -378.2772594 | U112: 80.74206474 | W112: 337.906227 | Y112: 337.906227 | Z112: -337.906227 | AB112: 328.2050825 | AC112: -328.2050825 | AE112: 317.4542941 | AF112: -317.4542941 | AG112: =IF(C110>0,L112,"") -> 10.03619717 | AH112: =O111 -> 139.9439802 | AI112: =$R$144/2 -> 928.1100952
B113: 11 | C113: =C110+1 -> 32 | D113: =D110 -> 69.03338488 | E113: =E110 -> 18.17239433 | G113: =IF(Design!$H$17="x",D113,0) -> 69.03338488 | H113: =IF(Design!$H$17="x",E113,0) -> 18.17239433 | K113: =K112 -> 72.89003866 | L113: =L112 -> 10.03619717 | N113: =N112 -> 3.94860168 | O113: 139.9439802 | P113: 756.5545188 | Q113: =ATAN((E112-E113)/(D112-D113))*180/PI() -> -64.63849434 | S113: 378.2772594 | T113: -378.2772594 | U113: 80.74206474 | W113: 337.906227 | Y113: 337.906227 | Z113: -337.906227 | AB113: 328.2050825 | AC113: -328.2050825 | AE113: 317.4542941 | AF113: -317.4542941 | AG113: =IF(C110>0,L113,"") -> 10.03619717 | AH113: =AH112 -> 139.9439802 | AI113: =-AI112 -> -928.1100952
K114: =K113 -> 72.89003866 | L114: =L113 -> 10.03619717 | M114: =((D112-D113)^2+(E112-E113)^2)^0.5 -> 18.00794077 | N114: =((I112-I109)^2+(J112-J109)^2)^0.5 -> 5.51953201 | O114: =O111+N114 -> 145.4635123 | P114: =((D112-D113)^2+(E112-E113)^2)^0.5*Panels!$T$114 -> 776.1422472 | S114: 388.0711236 | T114: -388.0711236 | U114: 85.50284643 | W114: 345.3197004 | Y114: 345.3197004 | Z114: -345.3197004 | AB114: 336.3135369 | AC114: -336.3135369 | AE114: 326.1751899 | AF114: -326.1751899 | AG114: =IF(C110>0,L114,"") -> 10.03619717 | AJ114: =AJ111+N114 -> 142.6650143
D115: =D113 -> 69.03338488 | E115: =E113 -> 18.17239433 | G115: =IF(Design!$H$17="x",D115,0) -> 69.03338488 | H115: =IF(Design!$H$17="x",E115,0) -> 18.17239433 | I115: =SUM(D115:D116)/2 -> 68.77995824 | J115: =SUM(E115:E116)/2 -> 10.03619717 | K115: =IF(Design!$H$16="x",I115,0) -> 68.77995824 | L115: =IF(Design!$H$16="x",J115,0) -> 10.03619717 | N115: =N114 -> 5.51953201 | O115: 145.4635123 | P115: 776.1422472 | S115: 388.0711236 | T115: =-S115 -> -388.0711236 | U115: 85.50284643 | W115: 345.3197004 | Y115: 345.3197004 | Z115: =-Y115 -> -345.3197004 | AB115: 336.3135369 | AC115: -336.3135369 | AE115: 326.1751899 | AF115: -326.1751899 | AG115: =IF(C113>0,L115,"") -> 10.03619717 | AH115: =O114 -> 145.4635123 | AI115: =$R$144/2 -> 928.1100952
B116: 10 | C116: =C113+1 -> 33 | D116: =D113-(E115-E116)*Panels!Y5 -> 68.5265316 | E116: =E112 -> 1.9 | G116: =IF(Design!$H$17="x",D116,0) -> 68.5265316 | H116: =IF(Design!$H$17="x",E116,0) -> 1.9 | K116: =K115 -> 68.77995824 | L116: =L115 -> 10.03619717 | N116: =N115 -> 5.51953201 | O116: 145.4635123 | P116: 776.1422472 | Q116: =ATAN((E115-E116)/(D115-D116))*180/PI() -> 88.21592527 | S116: 388.0711236 | T116: -388.0711236 | U116: 85.50284643 | W116: 345.3197004 | Y116: 345.3197004 | Z116: -345.3197004 | AB116: 336.3135369 | AC116: -336.3135369 | AE116: 326.1751899 | AF116: -326.1751899 | AG116: =IF(C113>0,L116,"") -> 10.03619717 | AH116: =AH115 -> 145.4635123 | AI116: =-AI115 -> -928.1100952
K117: =K116 -> 68.77995824 | L117: =L116 -> 10.03619717 | M117: =((D115-D116)^2+(E115-E116)^2)^0.5 -> 16.28028616 | N117: =((I115-I112)^2+(J115-J112)^2)^0.5 -> 4.11008042 | O117: =O114+N117 -> 149.5735927 | P117: =((D115-D116)^2+(E115-E116)^2)^0.5*Panels!$T$114 -> 701.6803336 | S117: 350.8401668 | T117: -350.8401668 | U117: 0.000151927018 | W117: 350.8400908 | Y117: 350.8400908 | Z117: -350.8400908 | AB117: 342.4157102 | AC117: -342.4157102 | AE117: 332.8244024 | AF117: -332.8244024 | AG117: =IF(C113>0,L117,"") -> 10.03619717 | AJ117: =AJ114+N117 -> 146.7750948
D118: =Panels!C43 -> 29.8475383 | E118: =Panels!D43 -> 20.61707859 | G118: =IF(Design!$H$17="x",D118,0) -> 29.8475383 | H118: =IF(Design!$H$17="x",E118,0) -> 20.61707859 | I118: =SUM(D118:D119)/2 -> 29.55603809 | J118: =SUM(E118:E119)/2 -> 11.25853929 | K118: =IF(Design!$H$16="x",I118,0) -> 29.55603809 | L118: =IF(Design!$H$16="x",J118,0) -> 11.25853929 | N118: =N117 -> 4.11008042 | O118: 149.5735927 | P118: 701.6803336 | S118: 350.8401668 | T118: -350.8401668 | U118: 0.000151927018 | W118: 350.8400908 | Y118: 350.8400908 | Z118: -350.8400908 | AB118: 342.4157102 | AC118: -342.4157102 | AE118: 332.8244024 | AF118: -332.8244024 | AG118: =IF(C116>0,L118,"") -> 11.25853929 | AH118: =O117 -> 149.5735927 | AI118: =$R$144/2 -> 928.1100952
A119: S3 | B119: 9 | C119: =C116+1 -> 34 | D119: =D118-(E118-E119)*Panels!Y5 -> 29.26453788 | E119: =E116 -> 1.9 | G119: =IF(Design!$H$17="x",D119,0) -> 29.26453788 | H119: =IF(Design!$H$17="x",E119,0) -> 1.9 | K119: =K118 -> 29.55603809 | L119: =L118 -> 11.25853929 | N119: =N118 -> 4.11008042 | O119: 149.5735927 | P119: 701.6803336 | Q119: =ATAN((E118-E119)/(D118-D119))*180/PI() -> 88.21592527 | S119: 350.8401668 | T119: -350.8401668 | U119: 0.000151927018 | W119: 350.8400908 | Y119: 350.8400908 | Z119: -350.8400908 | AB119: 342.4157102 | AC119: -342.4157102 | AE119: 332.8244024 | AF119: -332.8244024 | AG119: =IF(C116>0,L119,"") -> 11.25853929 | AH119: =AH118 -> 149.5735927 | AI119: =-AI118 -> -928.1100952
K120: =K119 -> 29.55603809 | L120: =L119 -> 11.25853929 | M120: =((D118-D119)^2+(E118-E119)^2)^0.5 -> 18.72615605 | N120: =((I118-I115)^2+(J118-J115)^2)^0.5 -> 39.24296156 | O120: =O117+N120 -> 188.8165542 | P120: =((D118-D119)^2+(E118-E119)^2)^0.5*Panels!$T$114 -> 807.0973256 | S120: 403.5486628 | T120: -403.5486628 | U120: 0 | W120: 403.5486628 | Y120: 403.5486628 | Z120: -403.5486628 | AB120: 403.441822 | AC120: -403.441822 | AE120: 403.5486628 | AF120: -403.5486628 | AG120: =IF(C116>0,L120,"") -> 11.25853929 | AJ120: =AJ117+N120 -> 186.0180563
D121: =D118 -> 29.8475383 | E121: =E118 -> 20.61707859 | G121: =IF(Design!$H$17="x",D121,0) -> 29.8475383 | H121: =IF(Design!$H$17="x",E121,0) -> 20.61707859 | I121: =SUM(D121:D122)/2 -> 22.71490362 | J121: =SUM(E121:E122)/2 -> 11.25853929 | K121: =IF(Design!$H$16="x",I121,0) -> 22.71490362 | L121: =IF(Design!$H$16="x",J121,0) -> 11.25853929 | N121: =N120 -> 39.24296156 | O121: 188.8165542 | P121: 807.0973256 | S121: 403.5486628 | T121: -403.5486628 | U121: 0 | W121: 403.5486628 | Y121: =((_S5_-_S3_)*(O121-_L3_)/(_L5_-_L3_)+_S3_)/2 -> 403.5486628 | Z121: -403.5486628 | AB121: =Y121 -> 403.5486628 | AC121: -403.5486628 | AE121: =Y121 -> 403.5486628 | AF121: -403.5486628 | AG121: =IF(C119>0,L121,"") -> 11.25853929 | AH121: =O120 -> 188.8165542 | AI121: =$R$144/2 -> 928.1100952
B122: 8 | C122: =C119+1 -> 35 | D122: =(D119+Panels!C27)/2 -> 15.58226894 | E122: =E119 -> 1.9 | G122: =IF(Design!$H$17="x",D122,0) -> 15.58226894 | H122: =IF(Design!$H$17="x",E122,0) -> 1.9 | K122: =K121 -> 22.71490362 | L122: =L121 -> 11.25853929 | N122: 39.24296156 | O122: 188.8165542 | P122: 807.0973256 | Q122: =ATAN((E121-E122)/(D121-D122))*180/PI() -> 52.6870697 | S122: 403.5486628 | T122: -403.5486628 | U122: 0 | W122: 403.5486628 | Y122: 403.5486628 | Z122: -403.5486628 | AB122: 403.5486628 | AC122: -403.5486628 | AE122: 403.5486628 | AF122: -403.5486628 | AG122: =IF(C119>0,L122,"") -> 11.25853929 | AH122: =AH121 -> 188.8165542 | AI122: =-AI121 -> -928.1100952
K123: =K122 -> 22.71490362 | L123: =L122 -> 11.25853929 | M123: =((D121-D122)^2+(E121-E122)^2)^0.5 -> 23.53352801 | N123: =((I121-I118)^2+(J121-J118)^2)^0.5 -> 6.84113447 | O123: =O120+N123 -> 195.6576887 | P123: =((D121-D122)^2+(E121-E122)^2)^0.5*Panels!$T$114 -> 1014.295057 | S123: 507.1475286 | T123: -507.1475286 | U123: 85.6342308 | W123: 464.3304132 | Y123: 464.3304132 | Z123: -464.3304132 | AB123: 464.3304132 | AC123: -464.3304132 | AE123: 464.3304132 | AF123: -464.3304132 | AG123: =IF(C119>0,L123,"") -> 11.25853929 | AJ123: =AJ120+N123 -> 192.8591908
D124: =D121 -> 29.8475383 | E124: =E121 -> 20.61707859 | G124: =IF(Design!$H$17="x",D124,0) -> 29.8475383 | H124: =IF(Design!$H$17="x",E124,0) -> 20.61707859 | I124: =SUM(D124:D125)/2 -> 15.87376915 | J124: =SUM(E124:E125)/2 -> 15.93780894 | K124: =IF(Design!$H$16="x",I124,0) -> 15.87376915 | L124: =IF(Design!$H$16="x",J124,0) -> 15.93780894 | N124: =N123 -> 6.84113447 | O124: 195.6576887 | P124: 1014.295057 | S124: 507.1475286 | T124: -507.1475286 | U124: 85.6342308 | W124: 464.3304132 | Y124: 464.3304132 | Z124: -464.3304132 | AB124: 464.3304132 | AC124: -464.3304132 | AE124: 464.3304132 | AF124: -464.3304132 | AG124: =IF(C122>0,L124,"") -> 15.93780894 | AH124: =O123 -> 195.6576887 | AI124: =$R$144/2 -> 928.1100952
B125: 7 | C125: =C122+1 -> 36 | D125: =Panels!C24 -> 1.9 | E125: =(E121+E122)/2 -> 11.25853929 | G125: =IF(Design!$H$17="x",D125,0) -> 1.9 | H125: =IF(Design!$H$17="x",E125,0) -> 11.25853929 | K125: =K124 -> 15.87376915 | L125: =L124 -> 15.93780894 | N125: 6.84113447 | O125: 195.6576887 | P125: 1014.295057 | Q125: =ATAN((E124-E125)/(D124-D125))*180/PI() -> 18.5136862 | S125: 507.1475286 | T125: -507.1475286 | U125: 85.6342308 | W125: 464.3304132 | Y125: 464.3304132 | Z125: -464.3304132 | AB125: 464.3304132 | AC125: -464.3304132 | AE125: 464.3304132 | AF125: -464.3304132 | AG125: =IF(C122>0,L125,"") -> 15.93780894 | AH125: =AH124 -> 195.6576887 | AI125: =-AI124 -> -928.1100952
K126: =K125 -> 15.87376915 | L126: =L125 -> 15.93780894 | M126: =((D124-D125)^2+(E124-E125)^2)^0.5 -> 29.47282061 | N126: =((I124-I121)^2+(J124-J121)^2)^0.5 -> 8.288346353 | O126: =O123+N126 -> 203.9460351 | P126: =((D124-D125)^2+(E124-E125)^2)^0.5*Panels!$T$114 -> 1270.278568 | S126: 635.1392841 | T126: -635.1392841 | U126: 194.3380175 | W126: 537.9702753 | Y126: 537.9702753 | Z126: -537.9702753 | AB126: 537.9702753 | AC126: -537.9702753 | AE126: 537.9702753 | AF126: -537.9702753 | AG126: =IF(C122>0,L126,"") -> 15.93780894 | AJ126: =AJ123+N126 -> 201.1475371
D127: =D124 -> 29.8475383 | E127: =E124 -> 20.61707859 | G127: =IF(Design!$H$17="x",D127,0) -> 29.8475383 | H127: =IF(Design!$H$17="x",E127,0) -> 20.61707859 | I127: =SUM(D127:D128)/2 -> 15.87376915 | J127: =SUM(E127:E128)/2 -> 23.43839085 | K127: =IF(Design!$H$16="x",I127,0) -> 15.87376915 | L127: =IF(Design!$H$16="x",J127,0) -> 23.43839085 | N127: =N126 -> 8.288346353 | O127: 203.9460351 | P127: 1270.278568 | S127: 635.1392841 | T127: -635.1392841 | U127: 194.3380175 | W127: 537.9702753 | Y127: 537.9702753 | Z127: -537.9702753 | AB127: 537.9702753 | AC127: -537.9702753 | AE127: 537.9702753 | AF127: -537.9702753 | AG127: =IF(C125>0,L127,"") -> 23.43839085 | AH127: =O126 -> 203.9460351 | AI127: =$R$144/2 -> 928.1100952
B128: 6 | C128: =C125+1 -> 37 | D128: =D125 -> 1.9 | E128: =E127+(D127-D128)*Panels!Y6 -> 26.25970312 | G128: =IF(Design!$H$17="x",D128,0) -> 1.9 | H128: =IF(Design!$H$17="x",E128,0) -> 26.25970312 | K128: =K127 -> 15.87376915 | L128: =L127 -> 23.43839085 | N128: 8.288346353 | O128: 203.9460351 | P128: 1270.278568 | Q128: =ATAN((E127-E128)/(D127-D128))*180/PI() -> -11.41460172 | S128: 635.1392841 | T128: -635.1392841 | U128: 194.3380175 | W128: 537.9702753 | Y128: 537.9702753 | Z128: -537.9702753 | AB128: 537.9702753 | AC128: -537.9702753 | AE128: 537.9702753 | AF128: -537.9702753 | AG128: =IF(C125>0,L128,"") -> 23.43839085 | AH128: =AH127 -> 203.9460351 | AI128: =-AI127 -> -928.1100952
K129: =K128 -> 15.87376915 | L129: =L128 -> 23.43839085 | M129: =((D127-D128)^2+(E127-E128)^2)^0.5 -> 28.51147328 | N129: =((I127-I124)^2+(J127-J124)^2)^0.5 -> 7.500581915 | O129: =O126+N129 -> 211.446617 | P129: =((D127-D128)^2+(E127-E128)^2)^0.5*Panels!$T$114 -> 1228.844498 | S129: 614.4222492 | T129: -614.4222492 | U129: 19.6223991 | W129: 604.6110496 | Y129: 604.6110496 | Z129: -604.6110496 | AB129: 604.6110496 | AC129: -604.6110496 | AE129: 604.6110496 | AF129: -604.6110496 | AG129: =IF(C125>0,L129,"") -> 23.43839085 | AJ129: =AJ126+N129 -> 208.6481191
D130: =Panels!C42 -> 29.92848392 | E130: =Panels!D42 -> 21.91455606 | G130: =IF(Design!$H$17="x",D130,0) -> 29.92848392 | H130: =IF(Design!$H$17="x",E130,0) -> 21.91455606 | I130: =SUM(D130:D131)/2 -> 15.91424196 | J130: =SUM(E130:E131)/2 -> 24.74403982 | K130: =IF(Design!$H$16="x",I130,0) -> 15.91424196 | L130: =IF(Design!$H$16="x",J130,0) -> 24.74403982 | N130: =N129 -> 7.500581915 | O130: 211.446617 | P130: 1228.844498 | S130: 614.4222492 | T130: -614.4222492 | U130: 19.6223991 | W130: 604.6110496 | Y130: 604.6110496 | Z130: -604.6110496 | AB130: 604.6110496 | AC130: -604.6110496 | AE130: 604.6110496 | AF130: -604.6110496 | AG130: =IF(C128>0,L130,"") -> 24.74403982 | AH130: =O129 -> 211.446617 | AI130: =$R$144/2 -> 928.1100952
B131: 5 | C131: =C128+1 -> 38 | D131: =D128 -> 1.9 | E131: =E130+(D130-D131)*Panels!Y6 -> 27.57352357 | G131: =IF(Design!$H$17="x",D131,0) -> 1.9 | H131: =IF(Design!$H$17="x",E131,0) -> 27.57352357 | K131: =K130 -> 15.91424196 | L131: =L130 -> 24.74403982 | N131: 7.500581915 | O131: 211.446617 | P131: 1228.844498 | Q131: =ATAN((E130-E131)/(D130-D131))*180/PI() -> -11.41460172 | S131: 614.4222492 | T131: -614.4222492 | U131: 19.6223991 | W131: 604.6110496 | Y131: 604.6110496 | Z131: -604.6110496 | AB131: 604.6110496 | AC131: -604.6110496 | AE131: 604.6110496 | AF131: -604.6110496 | AG131: =IF(C128>0,L131,"") -> 24.74403982 | AH131: =AH130 -> 211.446617 | AI131: =-AI130 -> -928.1100952
K132: =K131 -> 15.91424196 | L132: =L131 -> 24.74403982 | M132: =((D130-D131)^2+(E130-E131)^2)^0.5 -> 28.59405225 | N132: =((I130-I127)^2+(J130-J127)^2)^0.5 -> 1.306276105 | O132: =O129+N132 -> 212.7528931 | P132: =((D130-D131)^2+(E130-E131)^2)^0.5*Panels!$T$114 -> 1232.403652 | S132: 616.201826 | T132: -616.201826 | U132: -0.03031319715 | W132: 616.2169826 | Y132: 616.2169826 | Z132: -616.2169826 | AB132: 616.2169826 | AC132: -616.2169826 | AE132: 616.2169826 | AF132: -616.2169826 | AG132: =IF(C128>0,L132,"") -> 24.74403982 | AJ132: =AJ129+N132 -> 209.9543952
D133: =Panels!C37 -> 30.20183875 | E133: =Panels!D37 -> 22.54767301 | G133: =IF(Design!$H$17="x",D133,0) -> 30.20183875 | H133: =IF(Design!$H$17="x",E133,0) -> 22.54767301 | I133: =SUM(D133:D134)/2 -> 16.05091937 | J133: =SUM(E133:E134)/2 -> 25.40475202 | K133: =IF(Design!$H$16="x",I133,0) -> 16.05091937 | L133: =IF(Design!$H$16="x",J133,0) -> 25.40475202 | N133: =N132 -> 1.306276105 | O133: 212.7528931 | P133: 1232.403652 | S133: =P133/2 -> 616.201826 | T133: -616.201826 | U133: -0.03031319715 | W133: 616.2169826 | Y133: 616.2169826 | Z133: -616.2169826 | AB133: =Y133 -> 616.2169826 | AC133: =-AB133 -> -616.2169826 | AE133: 616.2169826 | AF133: -616.2169826 | AG133: =IF(C131>0,L133,"") -> 25.40475202 | AH133: =O132 -> 212.7528931 | AI133: =$R$144/2 -> 928.1100952
B134: 4 | C134: =C131+1 -> 39 | D134: =(D131+D143)/2 -> 1.9 | E134: =E133+(D133-D134)*Panels!Y6 -> 28.26183102 | G134: =IF(Design!$H$17="x",D134,0) -> 1.9 | H134: =IF(Design!$H$17="x",E134,0) -> 28.26183102 | K134: =K133 -> 16.05091937 | L134: =L133 -> 25.40475202 | N134: 1.306276105 | O134: 212.7528931 | P134: 1232.403652 | Q134: =ATAN((E133-E134)/(D133-D134))*180/PI() -> -11.41460172 | S134: 616.201826 | T134: -616.201826 | U134: -0.03031319715 | W134: 616.2169826 | Y134: 616.2169826 | Z134: -616.2169826 | AB134: 616.2169826 | AC134: -616.2169826 | AE134: 616.2169826 | AF134: -616.2169826 | AG134: =IF(C131>0,L134,"") -> 25.40475202 | AH134: =AH133 -> 212.7528931 | AI134: =-AI133 -> -928.1100952
K135: =K134 -> 16.05091937 | L135: =L134 -> 25.40475202 | M135: =((D133-D134)^2+(E133-E134)^2)^0.5 -> 28.87292292 | N135: =((I133-I130)^2+(J133-J130)^2)^0.5 -> 0.6747009167 | O135: =O132+N135 -> 213.427594 | P135: =((D133-D134)^2+(E133-E134)^2)^0.5*Panels!$T$114 -> 1244.422978 | S135: 622.211489 | T135: -622.211489 | U135: -8.136023894e-05 | W135: 622.2115297 | Y135: 622.2115297 | Z135: -622.2115297 | AB135: 622.2115297 | AC135: -622.2115297 | AE135: =Y135 -> 622.2115297 | AF135: =-AE135 -> -622.2115297 | AG135: =IF(C131>0,L135,"") -> 25.40475202 | AJ135: =AJ132+N135 -> 210.6290961
D136: =Path!AS16 -> 38.11154497 | E136: =Path!AT16 -> 40.91711904 | G136: =IF(Design!$H$17="x",D136,0) -> 38.11154497 | H136: =IF(Design!$H$17="x",E136,0) -> 40.91711904 | I136: =SUM(D136:D137)/2 -> 20.00577248 | J136: =SUM(E136:E137)/2 -> 44.57268523 | K136: =IF(Design!$H$16="x",I136,0) -> 20.00577248 | L136: =IF(Design!$H$16="x",J136,0) -> 44.57268523 | N136: =N135 -> 0.6747009167 | O136: 213.427594 | P136: 1244.422978 | S136: =P136/2 -> 622.211489 | T136: =-S136 -> -622.211489 | U136: -8.136023894e-05 | W136: 622.2115297 | Y136: 622.2115297 | Z136: =-Y136 -> -622.2115297 | AB136: 622.2115297 | AC136: -622.2115297 | AE136: 622.2115297 | AF136: -622.2115297 | AG136: =IF(C134>0,L136,"") -> 44.57268523 | AH136: =O135 -> 213.427594 | AI136: =$R$144/2 -> 928.1100952
A137: S4 | B137: =B140+1 -> 3 | C137: =C134+1 -> 40 | D137: =(D128+D134)/2 -> 1.9 | E137: =E136+(D136-D137)*Panels!Y6 -> 48.22825142 | G137: =IF(Design!$H$17="x",D137,0) -> 1.9 | H137: =IF(Design!$H$17="x",E137,0) -> 48.22825142 | K137: =K136 -> 20.00577248 | L137: =L136 -> 44.57268523 | N137: =N136 -> 0.6747009167 | O137: 213.427594 | P137: 1244.422978 | Q137: =ATAN((E136-E137)/(D136-D137))*180/PI() -> -11.41460172 | S137: 622.211489 | T137: -622.211489 | U137: -8.136023894e-05 | W137: 622.2115297 | Y137: 622.2115297 | Z137: -622.2115297 | AB137: 622.2115297 | AC137: -622.2115297 | AE137: 622.2115297 | AF137: -622.2115297 | AG137: =IF(C134>0,L137,"") -> 44.57268523 | AH137: =AH136 -> 213.427594 | AI137: =-AI136 -> -928.1100952
K138: =K137 -> 20.00577248 | L138: =L137 -> 44.57268523 | M138: =((D136-D137)^2+(E136-E137)^2)^0.5 -> 36.9422339 | N138: =((I136-I133)^2+(J136-J133)^2)^0.5 -> 19.57167665 | O138: =O135+N138 -> 232.9992706 | P138: =((D136-D137)^2+(E136-E137)^2)^0.5*Panels!$T$114 -> 1592.210281 | S138: 796.1051405 | T138: -796.1051405 | U138: 0.008422612503 | W138: 796.1009292 | Y138: 796.1009292 | Z138: -796.1009292 | AB138: 796.1009292 | AC138: -796.1009292 | AE138: 796.1009292 | AF138: -796.1009292 | AG138: =IF(C134>0,L138,"") -> 44.57268523 | AJ138: =AJ135+N138 -> 230.2007727
D139: =Panels!C15 -> 1.9 | E139: =Panels!D15 -> 60.96 | G139: =IF(Design!$H$17="x",D139,0) -> 1.9 | H139: =IF(Design!$H$17="x",E139,0) -> 60.96 | I139: =SUM(D139:D140)/2 -> 22.49298303 | J139: =SUM(E139:E140)/2 -> 56.71483978 | K139: =IF(Design!$H$16="x",I139,0) -> 22.49298303 | L139: =IF(Design!$H$16="x",J139,0) -> 56.71483978 | N139: =N138 -> 19.57167665 | O139: 232.9992706 | P139: 1592.210281 | S139: 796.1051405 | T139: -796.1051405 | U139: 0.008422612503 | W139: 796.1009292 | Y139: 796.1009292 | Z139: -796.1009292 | AB139: 796.1009292 | AC139: -796.1009292 | AE139: 796.1009292 | AF139: -796.1009292 | AG139: =IF(C137>0,L139,"") -> 56.71483978 | AH139: =O138 -> 232.9992706 | AI139: =$R$144/2 -> 928.1100952 | AL139: Panel B | AM139: =Panels!C37 -> 30.20183875 | AN139: =Panels!D37 -> 22.54767301 | AO139: =Panels!C36 -> 47.06537122 | AP139: =Panels!D36 -> 61.71142209 | AQ139: =(AP139-AN139)/(AO139-AM139) -> 2.322392959 | AR139: =(AP139*AM139-AN139*AO139)/(AM139-AO139) -> -47.59286463
B140: =B143+1 -> 2 | C140: =C137+1 -> 41 | D140: =AS140 -> 43.08596606 | E140: =AT140 -> 52.46967956 | G140: =IF(Design!$H$17="x",D140,0) -> 43.08596606 | H140: =IF(Design!$H$17="x",E140,0) -> 52.46967956 | K140: =K139 -> 22.49298303 | L140: =L139 -> 56.71483978 | N140: =N139 -> 19.57167665 | O140: 232.9992706 | P140: 1592.210281 | Q140: =ATAN((E139-E140)/(D139-D140))*180/PI() -> -11.64812255 | S140: 796.1051405 | T140: -796.1051405 | U140: 0.008422612503 | W140: 796.1009292 | Y140: 796.1009292 | Z140: -796.1009292 | AB140: 796.1009292 | AC140: -796.1009292 | AE140: 796.1009292 | AF140: -796.1009292 | AG140: =IF(C137>0,L140,"") -> 56.71483978 | AH140: =AH139 -> 232.9992706 | AI140: =-AI139 -> -928.1100952 | AL140: Panel A | AM140: =Panels!C15 -> 1.9 | AN140: =Panels!D15 -> 60.96 | AO140: =AM140+100*Panels!X6 -> 99.84060194 | AP140: =AN140-100*Panels!Y6 -> 40.76994076 | AQ140: =(AP140-AN140)/(AO140-AM140) -> -0.2061459583 | AR140: =(AP140*AM140-AN140*AO140)/(AM140-AO140) -> 61.35167732 | AS140: =(AR139-AR140)/(AQ140-AQ139) -> 43.08596606 | AT140: =AS140*AQ140+AR140 -> 52.46967956
K141: =K140 -> 22.49298303 | L141: =L140 -> 56.71483978 | M141: =((D139-D140)^2+(E139-E140)^2)^0.5 -> 42.0519838 | N141: =((I139-I136)^2+(J139-J136)^2)^0.5 -> 12.39427825 | O141: =O138+N141 -> 245.3935489 | P141: =((D139-D140)^2+(E139-E140)^2)^0.5*Panels!$T$114 -> 1812.440502 | S141: 906.2202508 | T141: -906.2202508 | U141: -0.001415055654 | W141: 906.2209583 | Y141: 906.2209583 | Z141: -906.2209583 | AB141: 906.2209583 | AC141: -906.2209583 | AE141: 906.2209583 | AF141: -906.2209583 | AG141: =IF(C137>0,L141,"") -> 56.71483978 | AJ141: =AJ138+N141 -> 242.595051
D142: =(Panels!C36+D140)/2 -> 45.07566864 | E142: =(Panels!D36+E140)/2 -> 57.09055083 | G142: =IF(Design!$H$17="x",D142,0) -> 45.07566864 | H142: =IF(Design!$H$17="x",E142,0) -> 57.09055083 | I142: =SUM(D142:D143)/2 -> 23.48783432 | J142: =SUM(E142:E143)/2 -> 61.54079562 | K142: =IF(Design!$H$16="x",I142,0) -> 23.48783432 | L142: =IF(Design!$H$16="x",J142,0) -> 61.54079562 | N142: =N141 -> 12.39427825 | O142: 245.3935489 | P142: 1812.440502 | S142: =P142/2 -> 906.2202508 | T142: =-S142 -> -906.2202508 | U142: -0.001415055654 | W142: 906.2209583 | Y142: 906.2209583 | Z142: =-Y142 -> -906.2209583 | AB142: 906.2209583 | AC142: -906.2209583 | AE142: 906.2209583 | AF142: -906.2209583 | AG142: =IF(C140>0,L142,"") -> 61.54079562 | AH142: =O141 -> 245.3935489 | AI142: =$R$144/2 -> 928.1100952 | AL142: Panel A | AM142: =D142 -> 45.07566864 | AN142: =E142 -> 57.09055083 | AO142: =AM142-100*Panels!X6 -> -52.8649333 | AP142: =AN142+100*Panels!Y6 -> 77.28061007 | AQ142: =(AP142-AN142)/(AO142-AM142) -> -0.2061459583 | AR142: =(AP142*AM142-AN142*AO142)/(AM142-AO142) -> 66.38271773
A143: S5 | B143: 1 | C143: =C140+1 -> 42 | D143: =D131 -> 1.9 | E143: =AT143 -> 65.99104041 | G143: =IF(Design!$H$17="x",D143,0) -> 1.9 | H143: =IF(Design!$H$17="x",E143,0) -> 65.99104041 | K143: =K142 -> 23.48783432 | L143: =L142 -> 61.54079562 | N143: =N142 -> 12.39427825 | O143: 245.3935489 | P143: 1812.440502 | Q143: =ATAN((E142-E143)/(D142-D143))*180/PI() -> -11.64812255 | S143: 906.2202508 | T143: -906.2202508 | U143: -0.001415055654 | W143: 906.2209583 | Y143: 906.2209583 | Z143: -906.2209583 | AB143: 906.2209583 | AC143: -906.2209583 | AE143: 906.2209583 | AF143: -906.2209583 | AG143: =IF(C140>0,L143,"") -> 61.54079562 | AH143: =AH142 -> 245.3935489 | AI143: =-AI142 -> -928.1100952 | AL143: Panel A | AM143: =Panels!C14 -> 1.9 | AN143: =Panels!D14 -> 0 | AO143: =Panels!C15 -> 1.9 | AP143: =Panels!D15 -> 60.96 | AQ143: =IF(AO143<>AM143,(AP143-AN143)/(AO143-AM143),"") ->  | AR143: =IF(AQ143<>"",(AP143*AM143-AN143*AO143)/(AM143-AO143),AM143) -> 1.9 | AS143: =IF(AQ143<>"",(AR142-AR143)/(AQ143-AQ142),AM143) -> 1.9 | AT143: =AS143*AQ142+AR142 -> 65.99104041
K144: =K143 -> 23.48783432 | L144: =L143 -> 61.54079562 | M144: =((D142-D143)^2+(E142-E143)^2)^0.5 -> 44.08352388 | N144: =((I142-I139)^2+(J142-J139)^2)^0.5 -> 4.927431262 | O144: =O141+N144 -> 250.3209802 | P144: =((D142-D143)^2+(E142-E143)^2)^0.5*Panels!$T$114 -> 1899.999879 | Q144: =($O$141+O144)/2 -> 247.8572645 | R144: =($P$141+P144)/2 -> 1856.22019 | S144: 949.9999395 | T144: -949.9999395 | U144: 0 | W144: 949.9999395 | Y144: 949.9999395 | Z144: -949.9999395 | AB144: 949.9999395 | AC144: -949.9999395 | AE144: 949.9999395 | AF144: -949.9999395 | AG144: =IF(C140>0,L144,"") -> 61.54079562 | AJ144: =AJ141+N144 -> 247.5224822

Sheet Guides
A1: Guides | C1: x | D1: y | F1: x | G1: y
C2: =AB6 -> 59.49018666 | D2: =AC6 -> 60.96 | F2: =IF(Design!$H$20="x",C2,0) -> 59.49018666 | G2: =IF(Design!$H$20="x",D2,0) -> 60.96 | U2: Intersection points
B3: 1 | C3: =AB7 -> 28.60871697 | D3: =AC7 -> 0 | F3: =IF(Design!$H$20="x",C3,0) -> 28.60871697 | G3: =IF(Design!$H$20="x",D3,0) -> 0
V4: x1 | W4: y1 | X4: x2 | Y4: y2 | Z4: a | AA4: b | AB4: x | AC4: y | AD4: l
C5: =Panels!C39 -> 48.81046859 | D5: =Panels!D39 -> 60.96 | F5: =IF(Design!$H$20="x",C5,0) -> 48.81046859 | G5: =IF(Design!$H$20="x",D5,0) -> 60.96 | U5: Front | V5: =Panels!C19 -> 0 | W5: =Panels!D19 -> 60.96 | X5: =Panels!C18 -> 86.36 | Y5: =Panels!D18 -> 60.96 | Z5: =(Y5-W5)/(X5-V5) -> 0 | AA5: =(Y5*V5-W5*X5)/(V5-X5) -> 60.96
B6: 2 | C6: =(D6-Panels!D38)*(Panels!C39-Panels!C38)/(Panels!D39-Panels!D38)+Panels!C38 -> 22.56168078 | D6: =Panels!D20 -> 0 | F6: =IF(Design!$H$20="x",C6,0) -> 22.56168078 | G6: =IF(Design!$H$20="x",D6,0) -> 0 | U6: Panel G1 | V6: =Panels!C51 -> 39.66734731 | W6: =Panels!D51 -> 21.82972872 | X6: =Panels!C50 -> 53.74795643 | Y6: =Panels!D50 -> 49.62484145 | Z6: =(Y6-W6)/(X6-V6) -> 1.973999314 | AA6: =(Y6*V6-W6*X6)/(V6-X6) -> -56.47358768 | AB6: =(AA5-AA6)/(Z6-Z5) -> 59.49018666 | AC6: =AB6*Z6+AA6 -> 60.96 | AD6: =(AB6^2+AC6^2)^0.5 -> 85.17748476
U7: Back | V7: =Panels!C20 -> 0 | W7: =Panels!D20 -> 0 | X7: =Panels!C21 -> 86.36 | Y7: =Panels!D21 -> 0 | Z7: =(Y7-W7)/(X7-V7) -> 0 | AA7: =(Y7*V7-W7*X7)/(V7-X7) -> 0 | AB7: =(AA6-AA7)/(Z7-Z6) -> 28.60871697 | AC7: =AB7*Z7+AA7 -> 0 | AD7: =(AB7^2+AC7^2)^0.5 -> 28.60871697
C8: =AB14 -> 75.20351227 | D8: =AC14 -> 60.96 | F8: =IF(Design!$H$20="x",C8,0) -> 75.20351227 | G8: =IF(Design!$H$20="x",D8,0) -> 60.96
B9: 3 | C9: =AB15 -> 66.41285993 | D9: =AC15 -> 0 | F9: =IF(Design!$H$20="x",C9,0) -> 66.41285993 | G9: =IF(Design!$H$20="x",D9,0) -> 0 | U9: Front | V9: =V5 -> 0 | W9: =W5 -> 60.96 | X9: =X5 -> 86.36 | Y9: =Y5 -> 60.96 | Z9: =(Y9-W9)/(X9-V9) -> 0 | AA9: =(Y9*V9-W9*X9)/(V9-X9) -> 60.96
U10: Panel G1 | V10: =V6 -> 39.66734731 | W10: =W6 -> 21.82972872 | X10: =X6 -> 53.74795643 | Y10: =Y6 -> 49.62484145 | Z10: =(Y10-W10)/(X10-V10) -> 1.973999314 | AA10: =(Y10*V10-W10*X10)/(V10-X10) -> -56.47358768 | AB10: =(AA9-AA10)/(Z10-Z9) -> 59.49018666 | AC10: =AB10*Z10+AA10 -> 60.96 | AD10: =(AB10^2+AC10^2)^0.5 -> 85.17748476
C11: =Panels!C20 -> 0 | D11: =Panels!D20 -> 0 | F11: =IF(Design!$H$20="x",C11,0) -> 0 | G11: =IF(Design!$H$20="x",D11,0) -> 0 | U11: Back | V11: =V7 -> 0 | W11: =W7 -> 0 | X11: =X7 -> 86.36 | Y11: =Y7 -> 0 | Z11: =(Y11-W11)/(X11-V11) -> 0 | AA11: =(Y11*V11-W11*X11)/(V11-X11) -> 0 | AB11: =(AA10-AA11)/(Z11-Z10) -> 28.60871697 | AC11: =AB11*Z11+AA11 -> 0 | AD11: =(AB11^2+AC11^2)^0.5 -> 28.60871697
B12: 4 | C12: =Panels!C19 -> 0 | D12: =Panels!D19 -> 60.96 | F12: =IF(Design!$H$20="x",C12,0) -> 0 | G12: =IF(Design!$H$20="x",D12,0) -> 60.96
U13: Front | V13: =V9 -> 0 | W13: =W9 -> 60.96 | X13: =X9 -> 86.36 | Y13: =Y9 -> 60.96 | Z13: =(Y13-W13)/(X13-V13) -> 0 | AA13: =(Y13*V13-W13*X13)/(V13-X13) -> 60.96
C14: =Panels!C20 -> 0 | D14: =(C14-Panels!C43)*(Panels!D44-Panels!D43)/(Panels!C44-Panels!C43)+Panels!D43 -> 22.47917455 | F14: =IF(Design!$H$20="x",C14,0) -> 0 | G14: =IF(Design!$H$20="x",D14,0) -> 22.47917455 | U14: Edges | V14: =Panels!C44 -> 69.03338488 | W14: =Panels!D44 -> 18.17239433 | X14: =Panels!C56 -> 73.21639901 | Y14: =Panels!D56 -> 47.180087 | Z14: =(Y14-W14)/(X14-V14) -> 6.934638941 | AA14: =(Y14*V14-W14*X14)/(V14-X14) -> -460.5492047 | AB14: =(AA13-AA14)/(Z14-Z13) -> 75.20351227 | AC14: =AB14*Z14+AA14 -> 60.96 | AD14: =(AB14^2+AC14^2)^0.5 -> 96.80748864
B15: 5 | C15: =Panels!C21 -> 86.36 | D15: =(C15-Panels!C43)*(Panels!D44-Panels!D43)/(Panels!C44-Panels!C43)+Panels!D43 -> 17.09144019 | F15: =IF(Design!$H$20="x",C15,0) -> 86.36 | G15: =IF(Design!$H$20="x",D15,0) -> 17.09144019 | U15: Back | V15: =V11 -> 0 | W15: =W11 -> 0 | X15: =X11 -> 86.36 | Y15: =Y11 -> 0 | Z15: =(Y15-W15)/(X15-V15) -> 0 | AA15: =(Y15*V15-W15*X15)/(V15-X15) -> 0 | AB15: =(AA14-AA15)/(Z15-Z14) -> 66.41285993 | AC15: =AB15*Z15+AA15 -> 0 | AD15: =(AB15^2+AC15^2)^0.5 -> 66.41285993
C17: =Panels!C20 -> 0 | D17: =Panels!D20 -> 0 | F17: =IF(Design!$H$20="x",C17,0) -> 0 | G17: =IF(Design!$H$20="x",D17,0) -> 0
B18: 6 | C18: =Panels!C21 -> 86.36 | D18: =Panels!D21 -> 0 | F18: =IF(Design!$H$20="x",C18,0) -> 86.36 | G18: =IF(Design!$H$20="x",D18,0) -> 0
C20: =Panels!C20 -> 0 | D20: =(C20-Panels!C54)*(Panels!D55-Panels!D54)/(Panels!C55-Panels!C54)+Panels!D54 -> 53.05036001 | F20: =IF(Design!$H$20="x",C20,0) -> 0 | G20: =IF(Design!$H$20="x",D20,0) -> 53.05036001
B21: 7 | C21: =Panels!C21 -> 86.36 | D21: =(C21-Panels!C54)*(Panels!D55-Panels!D54)/(Panels!C55-Panels!C54)+Panels!D54 -> 47.66262565 | F21: =IF(Design!$H$20="x",C21,0) -> 86.36 | G21: =IF(Design!$H$20="x",D21,0) -> 47.66262565
C23: =Panels!C23 -> 0 | D23: =Panels!D61 -> 34.02003353 | F23: =IF(Design!$H$20="x",C23,0) -> 0 | G23: =IF(Design!$H$20="x",D23,0) -> 34.02003353
B24: 8 | C24: =Panels!C21 -> 86.36 | D24: =Panels!D60 -> 34.02003353 | F24: =IF(Design!$H$20="x",C24,0) -> 86.36 | G24: =IF(Design!$H$20="x",D24,0) -> 34.02003353
C26: =Panels!C20 -> 0 | D26: =Panels!D20 -> 0 | F26: =IF(Design!$H$20="x",C26,0) -> 0 | G26: =IF(Design!$H$20="x",D26,0) -> 0
B27: 9 | C27: =Panels!C19 -> 0 | D27: =Panels!D19 -> 60.96 | F27: =IF(Design!$H$20="x",C27,0) -> 0 | G27: =IF(Design!$H$20="x",D27,0) -> 60.96
C29: =Panels!C23 -> 0 | D29: =Panels!D23 -> 0 | F29: =IF(Design!$H$20="x",C29,0) -> 0 | G29: =IF(Design!$H$20="x",D29,0) -> 0
B30: 10 | C30: =Panels!C21 -> 86.36 | D30: =Panels!D21 -> 0 | F30: =IF(Design!$H$20="x",C30,0) -> 86.36 | G30: =IF(Design!$H$20="x",D30,0) -> 0

Sheet Layout

Sheet Instructions
B2: Instructions
B4: 1 | C4: =CONCATENATE("Cut out the side panels, ",Design!$E$49,"cm x ",Design!$F$49,"cm (2 are required)") -> Cut out the side panels, 86.4cm x 61cm (2 are required)
B5: =B4+1 -> 2 | C5: Draw out the guides on the side panels as illustrated. One panel must mirror the other
B6: 3 | C6: =CONCATENATE("Prepare the speaker baffle. This panel should be ",ROUND(Design!$E$48,1),"cm x ",ROUND(Design!$F$48,1)," cm. Cut the mounting hole for the speaker so that it is ",Design!D16," cm from one of the ends that measures ",Design!E47," cm.") -> Prepare the speaker baffle. This panel should be 43.1cm x 42.6 cm. Cut the mounting hole for the speaker so that it is 20 cm from one of the ends that measures 43.1 cm.
B7: 4 | C7: Using the guides on the side panel, join the speaker baffle and all of the internal panels to the side panel.
B8: 5 | C8: Cut out and join all the rest of the bracing panels to the internal panels.
B9: 6 | C9: =CONCATENATE("Cut out the front panel (",ROUND(Design!E51,1),"cm x ",ROUND(Design!F51,1),"cm), top and bottom panels (",ROUND(Design!E47,1),"cm x ",ROUND(Design!F47,1),"cm), and back panel (",ROUND(Design!E50,1),"cm x ",ROUND(Design!F50,1),"cm)") -> Cut out the front panel (43.1cm x 35.6cm), top and bottom panels (43.1cm x 61cm), and back panel (43.1cm x 82.6cm)
B10: 7 | C10: Join the front panel, top and bottom panels and back panels to the side panel to which the other panels have already been joined.
B11: 8 | C11: Double-check to ensure that all joins are airtight.
B12: 9 | C12: Finally, join the remaining side panel to the rest of the box. This should complete the build. Again, ensure that all joins are airtight.

Sheet Bracing
A1: Bracing | C1: x | D1: y | F1: x | G1: y | S1: Intersection points
C2: =Z5 -> 71.31867173 | D2: =AA5 -> 34.02003353 | F2: =IF(Design!$H$19="x",C2,0) -> 0 | G2: =IF(Design!$H$19="x",D2,0) -> 0
B3: 1 | C3: =Panels!C60 -> 84.46 | D3: =Panels!D60 -> 34.02003353 | F3: =IF(Design!$H$19="x",C3,0) -> 0 | G3: =IF(Design!$H$19="x",D3,0) -> 0 | T3: x1 | U3: y1 | V3: x2 | W3: y2 | X3: a | Y3: b | Z3: x | AA3: y | AB3: l
C4: =Panels!C25 -> 84.46 | D4: =Panels!D25 -> 1.9 | F4: =IF(Design!$H$19="x",C4,0) -> 0 | G4: =IF(Design!$H$19="x",D4,0) -> 0 | S4: Guide 1 | T4: =Guides!C9 -> 66.41285993 | U4: =Guides!D9 -> 0 | V4: =Guides!C8 -> 75.20351227 | W4: =Guides!D8 -> 60.96 | X4: =(W4-U4)/(V4-T4) -> 6.934638941 | Y4: =(W4*T4-U4*V4)/(T4-V4) -> -460.5492047
C5: =Panels!C24 -> 1.9 | D5: =Panels!D24 -> 1.9 | F5: =IF(Design!$H$19="x",C5,0) -> 0 | G5: =IF(Design!$H$19="x",D5,0) -> 0 | S5: Guide 2 | T5: =Guides!C23 -> 0 | U5: =Guides!D23 -> 34.02003353 | V5: =Guides!C24 -> 86.36 | W5: =Guides!D24 -> 34.02003353 | X5: =(W5-U5)/(V5-T5) -> 0 | Y5: =(W5*T5-U5*V5)/(T5-V5) -> 34.02003353 | Z5: =(Y4-Y5)/(X5-X4) -> 71.31867173 | AA5: =Z5*X5+Y5 -> 34.02003353 | AB5: =(Z5^2+AA5^2)^0.5 -> 79.01718559
C6: =C5 -> 1.9 | D6: =(Guides!D20+Guides!D14)/2 -> 37.76476728 | F6: =IF(Design!$H$19="x",C6,0) -> 0 | G6: =IF(Design!$H$19="x",D6,0) -> 0
C7: =Z8 -> 29.38302181 | D7: =AA8 -> 20.64605834 | F7: =IF(Design!$H$19="x",C7,0) -> 0 | G7: =IF(Design!$H$19="x",D7,0) -> 0 | S7: Guide 3 | T7: =Guides!C14 -> 0 | U7: =Guides!D14 -> 22.47917455 | V7: =Guides!C15 -> 86.36 | W7: =Guides!D15 -> 17.09144019 | X7: =(W7-U7)/(V7-T7) -> -0.06238691944 | Y7: =(W7*T7-U7*V7)/(T7-V7) -> 22.47917455
C8: =Panels!C44 -> 69.03338488 | D8: =Panels!D44 -> 18.17239433 | F8: =IF(Design!$H$19="x",C8,0) -> 0 | G8: =IF(Design!$H$19="x",D8,0) -> 0 | S8: Panel B | T8: =Panels!C36 -> 47.06537122 | U8: =Panels!D36 -> 61.71142209 | V8: =Panels!C37 -> 30.20183875 | W8: =Panels!D37 -> 22.54767301 | X8: =(W8-U8)/(V8-T8) -> 2.322392959 | Y8: =(W8*T8-U8*V8)/(T8-V8) -> -47.59286463 | Z8: =(Y7-Y8)/(X8-X7) -> 29.38302181 | AA8: =Z8*X8+Y8 -> 20.64605834 | AB8: =(Z8^2+AA8^2)^0.5 -> 35.91130318
C9: =C2 -> 71.31867173 | D9: =D2 -> 34.02003353 | F9: =IF(Design!$H$19="x",C9,0) -> 0 | G9: =IF(Design!$H$19="x",D9,0) -> 0
S10: Guide 3 | T10: =Guides!C8 -> 75.20351227 | U10: =Guides!D8 -> 60.96 | V10: =Guides!C9 -> 66.41285993 | W10: =Guides!D9 -> 0 | X10: =(W10-U10)/(V10-T10) -> 6.934638941 | Y10: =(W10*T10-U10*V10)/(T10-V10) -> -460.5492047
C11: =Panels!C32 -> 48.81046859 | D11: =Panels!D32 -> 59.06 | F11: =IF(Design!$H$19="x",C11,0) -> 0 | G11: =IF(Design!$H$19="x",D11,0) -> 0 | S11: Panel I | T11: =Panels!C62 -> 62.21924302 | U11: =Panels!D62 -> 35.32003353 | V11: =Panels!C63 -> 84.46 | W11: =Panels!D63 -> 35.32003353 | X11: =(W11-U11)/(V11-T11) -> 0 | Y11: =(W11*T11-U11*V11)/(T11-V11) -> 35.32003353 | Z11: =(Y10-Y11)/(X11-X10) -> 71.50613643 | AA11: =Z11*X11+Y11 -> 35.32003353 | AB11: =(Z11^2+AA11^2)^0.5 -> 79.75357243
B12: 2 | C12: =Panels!C54 -> 54.90764075 | D12: =Panels!D54 -> 49.62484145 | F12: =IF(Design!$H$19="x",C12,0) -> 0 | G12: =IF(Design!$H$19="x",D12,0) -> 0
C13: =Panels!C55 -> 73.29734463 | D13: =Panels!D55 -> 48.47756447 | F13: =IF(Design!$H$19="x",C13,0) -> 0 | G13: =IF(Design!$H$19="x",D13,0) -> 0
C14: =Z11 -> 71.50613643 | D14: =AA11 -> 35.32003353 | F14: =IF(Design!$H$19="x",C14,0) -> 0 | G14: =IF(Design!$H$19="x",D14,0) -> 0
C15: =Panels!C63 -> 84.46 | D15: =Panels!D63 -> 35.32003353 | F15: =IF(Design!$H$19="x",C15,0) -> 0 | G15: =IF(Design!$H$19="x",D15,0) -> 0
C16: =Panels!C33 -> 84.46 | D16: =Panels!D33 -> 59.06 | F16: =IF(Design!$H$19="x",C16,0) -> 0 | G16: =IF(Design!$H$19="x",D16,0) -> 0
C17: =C11 -> 48.81046859 | D17: =D11 -> 59.06 | F17: =IF(Design!$H$19="x",C17,0) -> 0 | G17: =IF(Design!$H$19="x",D17,0) -> 0
B21: 3
